Ref No,Fund Type,Dept,Cost Centre Description    ,Description    ,Creditor Name    ,GL Code Net Amount,Payment date        
2,Revenue,CAHD,18-25 Year Olds,Permanent Residential,1 St Georges House,13333.52, 10-Mar-2020
3,Revenue,CAHD,CSC - Care Leavers Independent Living,Grants to Voluntary Bodies,1625 Independent People,13266.00, 19-Mar-2020
4,Revenue,CAHD,CSC - LAC Housing Support Grants,Grants to Voluntary Bodies,1625 Independent People,3343.00, 18-Mar-2020
5,Revenue,CAHD,CSC - Care Leavers Independent Living,Adults - Family Support,16Pluscare Support Solutions,6660.72, 05-Mar-2020
6,Revenue,CAHD,Central - Commissioned Services,Day Care / Social Activities,3 Trees Community Support Ltd,195.20, 04-Mar-2020
7,Revenue,CAHD,Central - Commissioned Services,Other Small Contracts,3 Trees Community Support Ltd,5165.44, 04-Mar-2020
8,Revenue,CAHD,Central - Commissioned Services,Supported Living,3 Trees Community Support Ltd,4817.11, 04-Mar-2020
9,Revenue,CAHD,North - Community based support,Day Care / Social Activities,3 Trees Community Support Ltd,683.20, 04-Mar-2020
10,Revenue,CAHD,Central - Commissioned Services,Day Care / Social Activities,3 Trees Community Support Ltd,195.20, 16-Mar-2020
11,Revenue,CAHD,Central - Commissioned Services,Other Small Contracts,3 Trees Community Support Ltd,5023.94, 16-Mar-2020
12,Revenue,CAHD,Central - Commissioned Services,Supported Living,3 Trees Community Support Ltd,4829.36, 16-Mar-2020
13,Revenue,CAHD,North - Community based support,Day Care / Social Activities,3 Trees Community Support Ltd,683.20, 16-Mar-2020
14,Revenue,CAHD,Central - Commissioned Services,Day Care / Social Activities,3 Trees Community Support Ltd,195.20, 20-Mar-2020
15,Revenue,CAHD,Central - Commissioned Services,Other Small Contracts,3 Trees Community Support Ltd,5295.24, 20-Mar-2020
16,Revenue,CAHD,Central - Commissioned Services,Supported Living,3 Trees Community Support Ltd,4826.91, 20-Mar-2020
17,Revenue,CAHD,North - Community based support,Day Care / Social Activities,3 Trees Community Support Ltd,683.20, 20-Mar-2020
18,Revenue,CAHD,Central - Commissioned Services,Day Care / Social Activities,3 Trees Community Support Ltd,195.20, 30-Mar-2020
19,Revenue,CAHD,Central - Commissioned Services,Other Small Contracts,3 Trees Community Support Ltd,5168.86, 30-Mar-2020
20,Revenue,CAHD,Central - Commissioned Services,Supported Living,3 Trees Community Support Ltd,4829.36, 30-Mar-2020
21,Revenue,CAHD,North - Community based support,Day Care / Social Activities,3 Trees Community Support Ltd,683.20, 30-Mar-2020
22,Revenue,CAHD,South - Commissioned Services,Permanent Nursing,3Rd Floor  The Aspect,2287.36, 10-Mar-2020
23,Revenue,CAHD,South - S117,Permanent Nursing,3Rd Floor  The Aspect,2287.36, 10-Mar-2020
24,Revenue,CAHD,South - Commissioned Services,Permanent Nursing,3Rd Floor  The Aspect,3593.88, 10-Mar-2020
25,Revenue,CAHD,North - Community based support,Permanent Nursing,3Rd Floor  The Aspect,2287.36, 10-Mar-2020
26,Revenue,CAHD,North - Community based support,Permanent Nursing,3Rd Floor  The Aspect,3234.72, 10-Mar-2020
27,Revenue,CAHD,South - Commissioned Services,Permanent Nursing,3Rd Floor  The Aspect,2287.36, 10-Mar-2020
28,Revenue,CAHD,South - Commissioned Services,Permanent Residential,5Th Floor Harlech Court,16667.12, 10-Mar-2020
29,Revenue,CAHD,South - Commissioned Services,Permanent Residential,5Th Floor Harlech Court,10419.52, 10-Mar-2020
30,Revenue,CAHD,S28A cases,Permanent Residential,5Th Floor Harlech Court,10904.68, 10-Mar-2020
31,Revenue,CAHD,South - Commissioned Services,Permanent Residential,5Th Floor Harlech Court,11436.40, 10-Mar-2020
32,Revenue,CAHD,North - Community based support,Permanent Residential,5Th Floor Harlech Court,12498.56, 10-Mar-2020
33,Revenue,CAHD,North - Community based support,Permanent Residential,5Th Floor Harlech Court,10537.24, 10-Mar-2020
34,Revenue,CAHD,North - Community based support,Permanent Residential,5Th Floor Harlech Court,9071.12, 10-Mar-2020
35,Revenue,CAHD,CSC - Vinney Green Secure Unit,R & M by Departments,A E Horder (Contracting) Limited,2482.50, 20-Mar-2020
36,Revenue,CAHD,Alexandra Way,Mechanical & Electrical Maintenance,A E Horder (Contracting) Limited,1647.60, 05-Mar-2020
37,Revenue,CAHD,CSC - Section 17 0-25,Preventative Assistance,A+bility Ltd,556.00, 13-Mar-2020
38,Revenue,CAHD,EARLY YEARS DEPRIVATION PAYMENT,Preventative Assistance,Abacus Pre School @ Mangotsfield,693.51, 24-Mar-2020
39,Revenue,CAHD,Early Years Inclusion Fund,Other Public Bodies,Abacus Pre-School,1000.00, 02-Mar-2020
40,Revenue,CAHD,Early Years Inclusion Fund,Other Public Bodies,Abacus Pre-School,650.00, 31-Mar-2020
41,Revenue,CAHD,EARLY YEARS DEPRIVATION PAYMENT,Preventative Assistance,Abacus Pre-School (Meadowbrook),693.51, 24-Mar-2020
42,Revenue,CAHD,Early Years Pupil Premium Grant,Preventative Assistance,Abbeywood Tots Day Nursery Ltd,667.80, 24-Mar-2020
43,Revenue,CAHD,EARLY YEARS DEPRIVATION PAYMENT,Preventative Assistance,Abbeywood Tots Day Nursery Ltd,1618.20, 24-Mar-2020
44,Revenue,CAHD,Post 16 High Needs Placements,Other Private Contractors,Access To Music Ltd,2213.33, 30-Mar-2020
45,Revenue,CAHD,Mental Health and Emotional Wellbeing,Training Expenses,Ace Wellbeing Ltd,1200.00, 17-Mar-2020
46,Revenue,CAHD,Jointly Funded H&SC Packages,Permanent Residential,Acorn Care Providers,11247.09, 10-Mar-2020
47,Revenue,CAHD,Section 117 Placements MH Younger,Permanent Residential,Acorn Care Providers,26677.08, 10-Mar-2020
48,Revenue,CAHD,Jointly Funded H&SC Packages,Permanent Residential,Acorn Care Providers,2265.60, 10-Mar-2020
49,Revenue,CAHD,Section 117 Placements MH Younger,Permanent Residential,Acorn Care Providers,5373.80, 10-Mar-2020
50,Revenue,CAHD,North - S117,Permanent Residential,Acorn Care Providers,3900.00, 10-Mar-2020
51,Revenue,CAHD,Jointly Funded H&SC Packages,Permanent Residential,Acorn Care Providers,2100.00, 10-Mar-2020
52,Revenue,CAHD,MH Purchasing - Younger,Permanent Residential,Acorn Care Providers,6256.90, 10-Mar-2020
53,Revenue,CAHD,Jointly Funded H&SC Packages,Fees & Charges Income - General,Acorn Care Providers,3369.10, 10-Mar-2020
54,Revenue,CAHD,MH Purchasing - Younger,Permanent Residential,Acorn Care Providers,2234.61, 10-Mar-2020
55,Revenue,CAHD,Jointly Funded H&SC Packages,Fees & Charges Income - General,Acorn Care Providers,1203.25, 10-Mar-2020
56,Revenue,CAHD,MH Purchasing - Younger,Permanent Residential,Acorn Care Providers,6144.00, 10-Mar-2020
57,Revenue,CAHD,Training Budget - Children`s Social Serv,Training Expenses,Acorn Health & Safety Limited,479.00, 05-Mar-2020
58,Revenue,CAHD,Training - Adult Services,Training Expenses,Acorn Health & Safety Limited,422.75, 12-Mar-2020
59,Revenue,CAHD,Training - Adult Services,Training Expenses,Acorn Health & Safety Limited,477.00, 12-Mar-2020
60,Revenue,CAHD,Training - Adult Services,Training Expenses,Acorn Health & Safety Limited,477.00, 19-Mar-2020
61,Revenue,CAHD,Training - Adult Services,Training Expenses,Acorn Health & Safety Limited,432.25, 26-Mar-2020
62,Revenue,CAHD,Training - Adult Services,Training Expenses,Acorn Health & Safety Limited,437.00, 26-Mar-2020
63,Revenue,CAHD,CSC - Agency Fostering,Foster Parent Allowances,Action for Children,6525.00, 19-Mar-2020
64,Revenue,CAHD,CSC - Agency Fostering,Foster Parent Allowances,Action for Children,3424.03, 19-Mar-2020
65,Revenue,CAHD,CSC - Agency Fostering,Foster Parent Allowances,Action for Children,3424.03, 19-Mar-2020
66,Revenue,CAHD,CSC - Agency Fostering,Foster Parent Allowances,Action for Children,4242.81, 19-Mar-2020
67,Revenue,CAHD,South - Commissioned Services,Supported Living,Action on Hearing Loss,750.40, 06-Mar-2020
68,Revenue,CAHD,South - Commissioned Services,Supported Living,Action on Hearing Loss,750.40, 06-Mar-2020
69,Revenue,CAHD,South - Commissioned Services,Supported Living,Action on Hearing Loss,750.40, 06-Mar-2020
70,Revenue,CAHD,South - Commissioned Services,Supported Living,Action on Hearing Loss,830.80, 06-Mar-2020
71,Revenue,CAHD,South - Commissioned Services,Permanent Residential,Administration & Revenue Centre,3744.04, 10-Mar-2020
72,Revenue,CAHD,South - Commissioned Services,Permanent Nursing,Administration And Revenue Centre,2735.08, 10-Mar-2020
73,Revenue,CAHD,South Glos Users in South Glos Homes,Permanent Nursing,Administration And Revenue Centre,662.24, 10-Mar-2020
74,Revenue,CAHD,South - Commissioned Services,Permanent Nursing,Administration And Revenue Centre,2398.00, 10-Mar-2020
75,Revenue,CAHD,South - Commissioned Services,Permanent Nursing,Administration And Revenue Centre,2398.00, 10-Mar-2020
76,Revenue,CAHD,South Glos Users in South Glos Homes,Permanent Nursing,Administration And Revenue Centre,662.24, 10-Mar-2020
77,Revenue,CAHD,South - Commissioned Services,Permanent Nursing,Administration And Revenue Centre,2398.00, 10-Mar-2020
78,Revenue,CAHD,South Glos Users in South Glos Homes,Permanent Nursing,Administration And Revenue Centre,662.24, 10-Mar-2020
79,Revenue,CAHD,South - Commissioned Services,Permanent Residential,Administration And Revenue Centre,2462.56, 10-Mar-2020
80,Revenue,CAHD,South Glos Users in South Glos Homes,Permanent Nursing,Administration And Revenue Centre,662.24, 10-Mar-2020
81,Revenue,CAHD,North - Community based support,Permanent Nursing,Administration And Revenue Centre,2891.76, 10-Mar-2020
82,Revenue,CAHD,South Glos Users in South Glos Homes,Permanent Nursing,Administration And Revenue Centre,662.24, 10-Mar-2020
83,Revenue,CAHD,South - Commissioned Services,Permanent Nursing,Administration And Revenue Centre,2662.40, 10-Mar-2020
84,Revenue,CAHD,South Glos Users in South Glos Homes,Permanent Nursing,Administration And Revenue Centre,662.24, 10-Mar-2020
85,Revenue,CAHD,South - Commissioned Services,Permanent Nursing,Administration And Revenue Centre,2891.76, 10-Mar-2020
86,Revenue,CAHD,South - Commissioned Services,Permanent Nursing,Administration And Revenue Centre,2621.44, 10-Mar-2020
87,Revenue,CAHD,South Glos Users in South Glos Homes,Permanent Nursing,Administration And Revenue Centre,662.24, 10-Mar-2020
88,Revenue,CAHD,South Glos Users in South Glos Homes,Permanent Nursing,Administration And Revenue Centre,662.24, 10-Mar-2020
89,Revenue,CAHD,South Glos Users in South Glos Homes,Permanent Nursing,Administration And Revenue Centre,662.24, 10-Mar-2020
90,Revenue,CAHD,North - Community based support,Respite Planned - Residential,Administration And Revenue Centre,1900.00, 10-Mar-2020
91,Revenue,CAHD,South - Commissioned Services,Permanent Nursing,Administration And Revenue Centre,2867.20, 10-Mar-2020
92,Revenue,CAHD,South - Commissioned Services,Permanent Nursing,Administration And Revenue Centre,1171.74, 10-Mar-2020
93,Revenue,CAHD,South - bed purchasing and direct  payments,Permanent Nursing,Administration And Revenue Centre,3160.00, 10-Mar-2020
94,Revenue,CAHD,South - Commissioned Services,Permanent Nursing,Administration And Revenue Centre,2462.56, 10-Mar-2020
95,Revenue,CAHD,South Glos Users in South Glos Homes,Permanent Nursing,Administration And Revenue Centre,662.24, 10-Mar-2020
96,Revenue,CAHD,South - Commissioned Services,Permanent Nursing,Administration And Revenue Centre,2398.00, 10-Mar-2020
97,Revenue,CAHD,South Glos Users in South Glos Homes,Permanent Nursing,Administration And Revenue Centre,662.24, 10-Mar-2020
98,Revenue,CAHD,South - Commissioned Services,Permanent Nursing,Administration And Revenue Centre,2398.00, 10-Mar-2020
99,Revenue,CAHD,South - S117,Permanent Residential,Administration And Revenue Centre,3128.00, 10-Mar-2020
100,Revenue,CAHD,South - Commissioned Services,Permanent Nursing,Administration And Revenue Centre,2398.00, 10-Mar-2020
101,Revenue,CAHD,South Glos Users in South Glos Homes,Permanent Nursing,Administration And Revenue Centre,662.24, 10-Mar-2020
102,Revenue,CAHD,Central - Commissioned Services,Respite Planned - Residential,Administration And Revenue Centre,950.00, 10-Mar-2020
103,Revenue,CAHD,Central - Commissioned Services,Respite Planned - Residential,Administration And Revenue Centre,950.00, 10-Mar-2020
104,Revenue,CAHD,South - Commissioned Services,Permanent Nursing,Administration And Revenue Centre,2933.00, 10-Mar-2020
105,Revenue,CAHD,North - Community based support,Permanent Residential,Administration And Revenue Centre,2891.76, 10-Mar-2020
106,Revenue,CAHD,South Glos Users in South Glos Homes,Permanent Nursing,Administration And Revenue Centre,662.24, 10-Mar-2020
107,Revenue,CAHD,North - Community based support,Permanent Nursing,Administration And Revenue Centre,2367.00, 10-Mar-2020
108,Revenue,CAHD,North - Community based support,Permanent Nursing,Admirals Reach Care Home,2662.24, 10-Mar-2020
109,Revenue,CAHD,South - Commissioned Services,Other Small Contracts,Advantedge Commercial Finance Limited,1732.64, 12-Mar-2020
110,Revenue,CAHD,South - Commissioned Services,Other Small Contracts,Advantedge Commercial Finance Limited,2094.40, 12-Mar-2020
111,Revenue,CAHD,South - Commissioned Services,Other Small Contracts,Advantedge Commercial Finance Limited,833.00, 12-Mar-2020
112,Revenue,CAHD,South - Commissioned Services,Other Small Contracts,Advantedge Commercial Finance Limited,647.36, 12-Mar-2020
113,Revenue,CAHD,South - Commissioned Services,Other Small Contracts,Advantedge Commercial Finance Limited,742.56, 09-Mar-2020
114,Revenue,CAHD,South - Commissioned Services,Other Small Contracts,Advantedge Commercial Finance Limited,937.72, 05-Mar-2020
115,Revenue,CAHD,North - Community based support,Other Small Contracts,Advantedge Commercial Finance Limited,666.40, 12-Mar-2020
116,Revenue,CAHD,South - Commissioned Services,Other Small Contracts,Advantedge Commercial Finance Limited,552.16, 05-Mar-2020
117,Revenue,CAHD,South - Commissioned Services,Other Small Contracts,Advantedge Commercial Finance Limited,794.92, 18-Mar-2020
118,Revenue,CAHD,South - Commissioned Services,Other Small Contracts,Advantedge Commercial Finance Limited,1599.36, 18-Mar-2020
119,Revenue,CAHD,South - Commissioned Services,Other Small Contracts,Advantedge Commercial Finance Limited,1337.56, 18-Mar-2020
120,Revenue,CAHD,South - Commissioned Services,Other Small Contracts,Advantedge Commercial Finance Limited,580.72, 18-Mar-2020
121,Revenue,CAHD,South - Commissioned Services,Other Small Contracts,Advantedge Commercial Finance Limited,799.68, 18-Mar-2020
122,Revenue,CAHD,South - Commissioned Services,Other Small Contracts,Advantedge Commercial Finance Limited,952.00, 18-Mar-2020
123,Revenue,CAHD,North - Community based support,Other Small Contracts,Advantedge Commercial Finance Limited,666.40, 18-Mar-2020
124,Revenue,CAHD,South - Commissioned Services,Other Small Contracts,Advantedge Commercial Finance Limited,647.36, 18-Mar-2020
125,Revenue,CAHD,South - Commissioned Services,Other Small Contracts,Advantedge Commercial Finance Limited,1865.92, 18-Mar-2020
126,Revenue,CAHD,South - Commissioned Services,Day Care / Social Activities,Age Concern,621.60, 10-Mar-2020
127,Revenue,CAHD,North - Community based support,Day Care / Social Activities,Age Concern,720.00, 10-Mar-2020
128,Revenue,CAHD,Central - Commissioned Services,Day Care / Social Activities,Age Concern,536.00, 10-Mar-2020
129,Revenue,CAHD,Central - Commissioned Services,Day Care / Social Activities,Age Concern,621.60, 10-Mar-2020
130,Revenue,CAHD,Central - Commissioned Services,Day Care / Social Activities,Age Concern,621.60, 10-Mar-2020
131,Revenue,CAHD,South - Commissioned Services,Other Small Contracts,Agincare UK Limited,402.05, 02-Mar-2020
132,Revenue,CAHD,Younger MH non-res purchasing,Other Small Contracts,Agincare UK Limited,132.44, 02-Mar-2020
133,Revenue,CAHD,South - Commissioned Services,Other Small Contracts,Agincare UK Limited,397.32, 24-Mar-2020
134,Revenue,CAHD,Younger MH non-res purchasing,Other Small Contracts,Agincare UK Limited,132.44, 24-Mar-2020
135,Revenue,CAHD,South - Commissioned Services,Other Small Contracts,Agincare UK Limited,577.06, 24-Mar-2020
136,Revenue,CAHD,Younger MH non-res purchasing,Other Small Contracts,Agincare UK Limited,94.60, 24-Mar-2020
137,Revenue,CAHD,Extra Care Housing,Private & Voluntary Home Care,Agincare UK Limited,28508.53, 04-Mar-2020
138,Revenue,CAHD,Extra Care Housing,Private & Voluntary Home Care,Agincare UK Limited,3410.24, 16-Mar-2020
139,Revenue,CAHD,Extra Care Housing,Private & Voluntary Home Care,Agincare UK Limited,2515.27, 16-Mar-2020
140,Revenue,CAHD,Prison Assessments & Costs,Other Supplies & Services,Agincare UK Limited,4418.25, 09-Mar-2020
141,Revenue,CAHD,Prison Assessments & Costs,Other Supplies & Services,Agincare UK Limited,4724.63, 09-Mar-2020
142,Revenue,CAHD,Built Environment,Other Small Contracts,Air Monitors Limited,3990.00, 13-Mar-2020
143,Revenue,CAHD,18-25 Year Olds,Permanent Residential,Alexander House,12155.16, 10-Mar-2020
144,Revenue,CAHD,South - Commissioned Services,Other Small Contracts,AliMo Care Ltd,1071.72, 19-Mar-2020
145,Revenue,CAHD,North - Community based support,Other Small Contracts,AliMo Care Ltd,341.64, 19-Mar-2020
146,Revenue,CAHD,South - Commissioned Services,Other Small Contracts,AliMo Care Ltd,1043.64, 19-Mar-2020
147,Revenue,CAHD,North - Community based support,Other Small Contracts,AliMo Care Ltd,304.20, 19-Mar-2020
148,Revenue,CAHD,South - Commissioned Services,Other Small Contracts,AliMo Care Ltd,1085.76, 19-Mar-2020
149,Revenue,CAHD,North - Community based support,Other Small Contracts,AliMo Care Ltd,355.68, 19-Mar-2020
150,Revenue,CAHD,South - Commissioned Services,Other Small Contracts,AliMo Care Ltd,1118.52, 19-Mar-2020
151,Revenue,CAHD,North - Community based support,Other Small Contracts,AliMo Care Ltd,351.00, 19-Mar-2020
152,Revenue,CAHD,North - Community based support,Permanent Nursing,Allambie Court,2320.44, 10-Mar-2020
153,Revenue,CAHD,Central - Commissioned Services,Permanent Residential,Alvony House Residential Care Home,3000.00, 10-Mar-2020
154,Revenue,CAHD,North - Community based support,Permanent Nursing,Amerind Grove Nursing Home,2706.32, 10-Mar-2020
155,Revenue,CAHD,CSC - Agency Fostering,Foster Parent Allowances,Amicus Foster Care Ltd,4564.23, 05-Mar-2020
156,Revenue,CAHD,CSC - Agency Fostering,Foster Parent Allowances,Amicus Foster Care Ltd,3630.09, 05-Mar-2020
157,Revenue,CAHD,Alexandra Way,Premises Maintenance by Contractor,Amy Flooring Limited,567.00, 25-Mar-2020
158,Revenue,CAHD,30 Hours Development Fund,Other Public Bodies,Anchor Day Nursery Ltd,1200.00, 04-Mar-2020
159,Revenue,CAHD,CSC - Vinney Green Secure Unit,External Lecturers Fees,Individual,1100.00, 12-Mar-2020
160,Revenue,CAHD,EARLY YEARS DEPRIVATION PAYMENT,Preventative Assistance,Apple Tree Pre-School,693.52, 24-Mar-2020
161,Revenue,CAHD,Built Environment,Other Small Contracts,AQDM,750.00, 27-Mar-2020
162,Revenue,CAHD,South - Commissioned Services,Permanent Residential,Ash View House,5421.04, 10-Mar-2020
163,Revenue,CAHD,Jointly Funded H&SC Packages,Permanent Residential,Ash View House,1111.40, 10-Mar-2020
164,Revenue,CAHD,S117 Placements PCT,Permanent Residential,Ash View House,7556.32, 10-Mar-2020
165,Revenue,CAHD,18-25 Year Olds,Permanent Residential,Ash View House,7099.52, 10-Mar-2020
166,Revenue,CAHD,North - Community based support,Permanent Residential,Ash View House,7120.00, 10-Mar-2020
167,Revenue,CAHD,Section 117 Placements MH Younger,Permanent Residential,Ash View House,4924.12, 10-Mar-2020
168,Revenue,CAHD,Jointly Funded H&SC Packages,Permanent Residential,Ash View House,2110.40, 10-Mar-2020
169,Revenue,CAHD,South - S117,Permanent Residential,Ash View House,6692.80, 10-Mar-2020
170,Revenue,CAHD,18-25 Year Olds,Permanent Residential,Ash View House,6615.52, 10-Mar-2020
171,Revenue,CAHD,Bed and Breakfast,Bed & Breakfast,Ashley Guest Houses Limited,420.00, 23-Mar-2020
172,Revenue,CAHD,Bed and Breakfast,Bed & Breakfast,Ashley Guest Houses Limited,420.00, 30-Mar-2020
173,Revenue,CAHD,Drug and Alcohol Programme,Rent,Ashville Asset Management Limited,4550.00, 25-Mar-2020
174,Revenue,CAHD,North - Community based support,Permanent Residential,Aspects 2 Limited,7231.88, 10-Mar-2020
175,Revenue,CAHD,HQ Office & Communications (ICT),Membership Fees,Association of Directors of Childrens Services Ltd,2633.00, 24-Mar-2020
176,Revenue,CAHD,South - Commissioned Services,Adults - Family Support,Ategi Limited,1429.92, 13-Mar-2020
177,Revenue,CAHD,South - Commissioned Services,Adults - Family Support,Ategi Limited,1429.92, 09-Mar-2020
178,Revenue,CAHD,South - Commissioned Services,Adults - Family Support,Ategi Limited,739.03, 13-Mar-2020
179,Revenue,CAHD,North - Community based support,Adults - Family Support,Ategi Limited,1082.40, 13-Mar-2020
180,Revenue,CAHD,South - Commissioned Services,Adults - Family Support,Ategi Limited,953.28, 13-Mar-2020
181,Revenue,CAHD,South - Commissioned Services,Adults - Family Support,Ategi Limited,1191.60, 16-Mar-2020
182,Revenue,CAHD,Shared Lives,Other Supplies & Services,Ategi Limited,51943.75, 31-Mar-2020
183,Revenue,CAHD,South - bed purchasing and direct  payments,Adults - Family Support,Ategi Limited,17425.02, 11-Mar-2020
184,Revenue,CAHD,Independent Special Placements - Pre 16,Other Private Contractors,Aurora Hedgeway School,8241.66, 13-Mar-2020
185,Revenue,CAHD,Independent Special Placements - Pre 16,Other Private Contractors,Aurora Hedgeway School,9112.59, 13-Mar-2020
186,Revenue,CAHD,South - Commissioned Services,Permanent Residential,Autism Specialised Care Homes,6506.88, 10-Mar-2020
187,Revenue,CAHD,CSC - LAC - Counselling & Therapy,Other Supplies & Services,Avon & Wiltshire Mental Health,15000.00, 12-Mar-2020
188,Revenue,CAHD,Younger Adult Mental Health,Health Services (Third Party Payments),Avon & Wiltshire Mental Health,1693.33, 18-Mar-2020
189,Revenue,CAHD,South - Commissioned Services,Permanent Nursing,Avon Lodge Care Centre,4256.24, 10-Mar-2020
190,Revenue,CAHD,South Glos Users in South Glos Homes,Permanent Nursing,Avon Lodge Care Centre,662.24, 10-Mar-2020
191,Revenue,CAHD,South Glos Users in South Glos Homes,Permanent Nursing,Avon Lodge Care Centre,662.24, 10-Mar-2020
192,Revenue,CAHD,South - Commissioned Services,Permanent Nursing,Avon Lodge Care Centre,4537.76, 10-Mar-2020
193,Revenue,CAHD,South Glos Users in South Glos Homes,Permanent Nursing,Avon Lodge Care Centre,3263.90, 10-Mar-2020
194,Revenue,CAHD,South Glos Users in South Glos Homes,Permanent Nursing,Avon Lodge Care Centre,662.24, 10-Mar-2020
195,Revenue,CAHD,South - Commissioned Services,Permanent Nursing,Avon Lodge Care Centre,4226.64, 10-Mar-2020
196,Revenue,CAHD,South Glos Users in South Glos Homes,Permanent Nursing,Avon Lodge Care Centre,662.24, 10-Mar-2020
197,Revenue,CAHD,South Glos Users in South Glos Homes,Permanent Nursing,Avon Lodge Care Centre,662.24, 10-Mar-2020
198,Revenue,CAHD,South Glos Users in South Glos Homes,Permanent Nursing,Avon Lodge Care Centre,662.24, 10-Mar-2020
199,Revenue,CAHD,South - Commissioned Services,Permanent Nursing,Avon Lodge Care Centre,4226.64, 10-Mar-2020
200,Revenue,CAHD,South - Commissioned Services,Permanent Nursing,Avon Lodge Care Centre,3809.28, 10-Mar-2020
201,Revenue,CAHD,South Glos Users in South Glos Homes,Permanent Nursing,Avon Lodge Care Centre,662.24, 10-Mar-2020
202,Revenue,CAHD,South - Commissioned Services,Permanent Nursing,Avon Lodge Care Centre,4537.76, 10-Mar-2020
203,Revenue,CAHD,South Glos Users in South Glos Homes,Permanent Nursing,Avon Lodge Care Centre,662.24, 10-Mar-2020
204,Revenue,CAHD,South Glos Users in South Glos Homes,Permanent Nursing,Avon Lodge Care Centre,662.24, 10-Mar-2020
205,Revenue,CAHD,Central - Commissioned Services,Permanent Nursing,Avon Lodge Care Centre,4226.64, 10-Mar-2020
206,Revenue,CAHD,South Glos Users in South Glos Homes,Permanent Nursing,Avon Lodge Care Centre,662.24, 10-Mar-2020
207,Revenue,CAHD,South - Commissioned Services,Permanent Nursing,Avon Lodge Care Centre,4226.64, 10-Mar-2020
208,Revenue,CAHD,South Glos Users in South Glos Homes,Permanent Nursing,Avon Lodge Care Centre,662.24, 10-Mar-2020
209,Revenue,CAHD,South Glos Users in South Glos Homes,Permanent Nursing,Avon Lodge Care Centre,662.24, 10-Mar-2020
210,Revenue,CAHD,South - Commissioned Services,Fees & Charges Income - General,Avon Lodge Care Centre,1574.00, 10-Mar-2020
211,Revenue,CAHD,South - Commissioned Services,Fees & Charges Income - General,Avon Lodge Care Centre,2743.26, 10-Mar-2020
212,Revenue,CAHD,South Glos Users in South Glos Homes,Permanent Nursing,Avon Lodge Care Centre,662.24, 10-Mar-2020
213,Revenue,CAHD,South - Commissioned Services,Permanent Nursing,Avon Lodge Care Centre,3380.60, 10-Mar-2020
214,Revenue,CAHD,South Glos Users in South Glos Homes,Permanent Nursing,Avon Lodge Care Centre,662.24, 10-Mar-2020
215,Revenue,CAHD,South - Commissioned Services,Permanent Nursing,Avon Lodge Care Centre,4226.64, 10-Mar-2020
216,Revenue,CAHD,South Glos Users in South Glos Homes,Permanent Nursing,Avon Lodge Care Centre,662.24, 10-Mar-2020
217,Revenue,CAHD,South - Commissioned Services,Permanent Nursing,Avon Lodge Care Centre,4537.76, 10-Mar-2020
218,Revenue,CAHD,South Glos Users in South Glos Homes,Permanent Nursing,Avon Lodge Care Centre,662.24, 10-Mar-2020
219,Revenue,CAHD,South - Commissioned Services,Permanent Nursing,Avon Lodge Care Centre,4226.64, 10-Mar-2020
220,Revenue,CAHD,South Glos Users in South Glos Homes,Permanent Nursing,Avon Lodge Care Centre,3453.11, 10-Mar-2020
221,Revenue,CAHD,South Glos Users in South Glos Homes,Permanent Nursing,Avon Lodge Care Centre,662.24, 10-Mar-2020
222,Revenue,CAHD,South - Commissioned Services,Permanent Nursing,Avon Lodge Care Centre,4262.64, 10-Mar-2020
223,Revenue,CAHD,South Glos Users in South Glos Homes,Permanent Nursing,Avon Lodge Care Centre,662.24, 10-Mar-2020
224,Revenue,CAHD,South Glos Users in South Glos Homes,Permanent Nursing,Avon Lodge Care Centre,662.24, 10-Mar-2020
225,Revenue,CAHD,South Glos Users in South Glos Homes,Permanent Nursing,Avon Lodge Care Centre,662.24, 10-Mar-2020
226,Revenue,CAHD,South Glos Users in South Glos Homes,Permanent Nursing,Avon Lodge Care Centre,662.24, 10-Mar-2020
227,Revenue,CAHD,South - Commissioned Services,Permanent Nursing,Avon Lodge Care Centre,4226.64, 10-Mar-2020
228,Revenue,CAHD,South Glos Users in South Glos Homes,Permanent Nursing,Avon Lodge Care Centre,662.24, 10-Mar-2020
229,Revenue,CAHD,South - Commissioned Services,Permanent Nursing,Avon Lodge Care Centre,4317.48, 10-Mar-2020
230,Revenue,CAHD,South Glos Users in South Glos Homes,Permanent Nursing,Avon Lodge Care Centre,662.24, 10-Mar-2020
231,Revenue,CAHD,South - Commissioned Services,Permanent Nursing,Avon Lodge Care Centre,4358.40, 10-Mar-2020
232,Revenue,CAHD,South Glos Users in South Glos Homes,Permanent Nursing,Avon Lodge Care Centre,662.24, 10-Mar-2020
233,Revenue,CAHD,South Glos Users in South Glos Homes,Permanent Nursing,Avon Lodge Care Centre,662.24, 10-Mar-2020
234,Revenue,CAHD,South - Commissioned Services,Permanent Nursing,Avon Lodge Care Centre,4226.64, 10-Mar-2020
235,Revenue,CAHD,South Glos Users in South Glos Homes,Permanent Nursing,Avon Lodge Care Centre,662.24, 10-Mar-2020
236,Revenue,CAHD,South - Commissioned Services,Permanent Nursing,Avon Lodge Care Centre,4214.12, 10-Mar-2020
237,Revenue,CAHD,South Glos Users in South Glos Homes,Permanent Nursing,Avon Lodge Care Centre,662.24, 10-Mar-2020
238,Revenue,CAHD,South Glos Users in South Glos Homes,Permanent Nursing,Avon Lodge Care Centre,662.24, 10-Mar-2020
239,Revenue,CAHD,South Glos Users in South Glos Homes,Permanent Nursing,Avon Lodge Care Centre,662.24, 10-Mar-2020
240,Revenue,CAHD,South - Commissioned Services,Permanent Nursing,Avon Lodge Care Centre,4226.64, 10-Mar-2020
241,Revenue,CAHD,Central - Commissioned Services,Permanent Nursing,Avon Lodge Care Centre,3808.64, 10-Mar-2020
242,Revenue,CAHD,South Glos Users in South Glos Homes,Permanent Nursing,Avon Lodge Care Centre,662.24, 10-Mar-2020
243,Revenue,CAHD,South - Commissioned Services,Permanent Nursing,Avon Lodge Care Centre,4226.64, 10-Mar-2020
244,Revenue,CAHD,South Glos Users in South Glos Homes,Permanent Nursing,Avon Lodge Care Centre,662.24, 10-Mar-2020
245,Revenue,CAHD,South Glos Users in South Glos Homes,Permanent Nursing,Avon Lodge Care Centre,662.24, 10-Mar-2020
246,Revenue,CAHD,South - bed purchasing and direct  payments,Permanent Nursing,Avon Lodge Care Centre,4226.64, 10-Mar-2020
247,Revenue,CAHD,South Glos Users in South Glos Homes,Permanent Nursing,Avon Lodge Care Centre,662.24, 10-Mar-2020
248,Revenue,CAHD,North - Community based support,Respite Planned - Nursing,Avon Lodge Care Centre,2113.32, 10-Mar-2020
249,Revenue,CAHD,South Glos Users in South Glos Homes,Permanent Nursing,Avon Lodge Care Centre,1892.11, 10-Mar-2020
250,Revenue,CAHD,North - Community based support,Permanent Nursing,Avon Lodge Care Centre,4226.64, 10-Mar-2020
251,Revenue,CAHD,South Glos Users in South Glos Homes,Permanent Nursing,Avon Lodge Care Centre,3311.20, 10-Mar-2020
252,Revenue,CAHD,South Glos Users in South Glos Homes,Permanent Nursing,Avon Lodge Care Centre,662.24, 10-Mar-2020
253,Revenue,CAHD,South - Commissioned Services,Permanent Nursing,Avon Lodge Care Centre,4441.20, 10-Mar-2020
254,Revenue,CAHD,South Glos Users in South Glos Homes,Permanent Nursing,Avon Lodge Care Centre,662.24, 10-Mar-2020
255,Revenue,CAHD,South - S117,Permanent Nursing,Avon Lodge Care Centre,3809.28, 10-Mar-2020
256,Revenue,CAHD,South Glos Users in South Glos Homes,Permanent Nursing,Avon Lodge Care Centre,662.24, 10-Mar-2020
257,Revenue,CAHD,South Glos Users in South Glos Homes,Permanent Nursing,Avon Lodge Care Centre,662.24, 10-Mar-2020
258,Revenue,CAHD,South Glos Users in South Glos Homes,Permanent Nursing,Avon Lodge Care Centre,662.24, 10-Mar-2020
259,Revenue,CAHD,South Glos Users in South Glos Homes,Permanent Nursing,Avon Lodge Care Centre,662.24, 10-Mar-2020
260,Revenue,CAHD,South - Commissioned Services,Permanent Residential,Avon Valley Care Home,3960.00, 10-Mar-2020
261,Revenue,CAHD,South - Commissioned Services,Permanent Residential,Avon Valley Care Home,1980.00, 10-Mar-2020
262,Revenue,CAHD,South - Commissioned Services,Fees & Charges Income - General,Avon Valley Care Home,540.00, 10-Mar-2020
263,Revenue,CAHD,South - Commissioned Services,Permanent Residential,Avon Valley Care Home,2057.14, 10-Mar-2020
264,Revenue,CAHD,South - Commissioned Services,Respite Planned - Residential,Avon Valley Care Home,2000.00, 10-Mar-2020
265,Revenue,CAHD,South - Commissioned Services,Fees & Charges Income - General,Avon Valley Care Home,16428.57, 10-Mar-2020
266,Revenue,CAHD,South - Commissioned Services,Permanent Residential,Avon Valley Care Home,4000.00, 10-Mar-2020
267,Revenue,CAHD,South - Commissioned Services,Fees & Charges Income - General,Avon Valley Care Home,3848.01, 10-Mar-2020
268,Revenue,CAHD,South - Commissioned Services,Permanent Residential,Avon Valley Care Home,22571.43, 10-Mar-2020
269,Revenue,CAHD,South - Commissioned Services,Fees & Charges Income - General,Avon Valley Care Home,2652.48, 10-Mar-2020
270,Revenue,CAHD,South - Commissioned Services,Fees & Charges Income - General,Avon Valley Care Home,3192.71, 10-Mar-2020
271,Revenue,CAHD,South - Commissioned Services,Permanent Residential,Avon Valley Care Home,3960.00, 10-Mar-2020
272,Revenue,CAHD,Central - Commissioned Services,Respite Planned - Residential,Avon Valley Care Home,2857.14, 10-Mar-2020
273,Revenue,CAHD,South - Commissioned Services,Permanent Residential,Avon Valley Care Home,4000.00, 10-Mar-2020
274,Revenue,CAHD,South - Commissioned Services,Permanent Residential,Avon Valley Care Home,4800.00, 10-Mar-2020
275,Revenue,CAHD,Central - Commissioned Services,Respite Planned - Residential,Avon Valley Care Home,1980.00, 10-Mar-2020
276,Revenue,CAHD,Leadership and Business Support,Other Supplies & Services,Avon Wildlife Trust,1000.00, 19-Mar-2020
277,Revenue,CAHD,North - Community based support,Permanent Residential,Avonmere Care Home,4200.00, 10-Mar-2020
278,Revenue,CAHD,North - Community based support,Permanent Residential,Avonmere Care Home,4300.80, 10-Mar-2020
279,Revenue,CAHD,North - Community based support,Permanent Residential,Avonmere Care Home,5420.00, 10-Mar-2020
280,Revenue,CAHD,North - Community based support,Permanent Residential,Avonmere Care Home,4420.00, 10-Mar-2020
281,Revenue,CAHD,North - Community based support,Permanent Residential,Avonmere Care Home,23595.00, 10-Mar-2020
282,Revenue,CAHD,North - Community based support,Permanent Residential,Avonmere Care Home,4620.00, 10-Mar-2020
283,Revenue,CAHD,North - Community based support,Fees & Charges Income - General,Avonmere Care Home,6531.18, 10-Mar-2020
284,Revenue,CAHD,Early Years High Needs Support,Other Private Contractors,Baker Street Nursery & Pre-School,699.68, 20-Mar-2020
285,Revenue,CAHD,Pensions - Non DSG,Annual Pension,Bath & North East Somerset Council,106505.76, 05-Mar-2020
286,Revenue,CAHD,Pensions - Non DSG,Annual Pension,Bath & North East Somerset Council,105986.65, 06-Mar-2020
287,Revenue,CAHD,Pensions - Non DSG,Annual Pension,Bath & North East Somerset Council,106478.36, 05-Mar-2020
288,Revenue,CAHD,CSC - Adoption Support Fund,Post Adoption,Individual,1995.00, 05-Mar-2020
289,Revenue,CAHD,Pathway 3 - (Complex Beds),Permanent Nursing,Beaufort Care Ltd,5571.00, 06-Mar-2020
290,Revenue,CAHD,South Glos Users in South Glos Homes,Permanent Nursing,Beaufort Grange Care Home,662.24, 10-Mar-2020
291,Revenue,CAHD,South Glos Users in South Glos Homes,Permanent Nursing,Beaufort Grange Care Home,662.24, 10-Mar-2020
292,Revenue,CAHD,South Glos Users in South Glos Homes,Permanent Nursing,Beaufort Grange Care Home,662.24, 10-Mar-2020
293,Revenue,CAHD,South Glos Users in South Glos Homes,Permanent Nursing,Beaufort Grange Care Home,662.24, 10-Mar-2020
294,Revenue,CAHD,South Glos Users in South Glos Homes,Permanent Nursing,Beaufort Grange Care Home,662.24, 10-Mar-2020
295,Revenue,CAHD,South Glos Users in South Glos Homes,Permanent Nursing,Beaufort Grange Care Home,662.24, 10-Mar-2020
296,Revenue,CAHD,South Glos Users in South Glos Homes,Permanent Nursing,Beaufort Grange Care Home,662.24, 10-Mar-2020
297,Revenue,CAHD,South Glos Users in South Glos Homes,Permanent Nursing,Beaufort Grange Care Home,662.24, 10-Mar-2020
298,Revenue,CAHD,South Glos Users in South Glos Homes,Permanent Nursing,Beaufort Grange Care Home,662.24, 10-Mar-2020
299,Revenue,CAHD,North - S117,Permanent Nursing,Beaufort Grange Care Home,4877.04, 10-Mar-2020
300,Revenue,CAHD,South Glos Users in South Glos Homes,Permanent Nursing,Beaufort Grange Care Home,662.24, 10-Mar-2020
301,Revenue,CAHD,South Glos Users in South Glos Homes,Permanent Nursing,Beaufort Grange Care Home,662.24, 10-Mar-2020
302,Revenue,CAHD,South Glos Users in South Glos Homes,Permanent Nursing,Beaufort Grange Care Home,662.24, 10-Mar-2020
303,Revenue,CAHD,South Glos Users in South Glos Homes,Permanent Nursing,Beaufort Grange Care Home,662.24, 10-Mar-2020
304,Revenue,CAHD,Central - Commissioned Services,Respite Planned - Nursing,Beaufort Grange Care Home,2226.71, 10-Mar-2020
305,Revenue,CAHD,Central - Commissioned Services,Respite Planned - Nursing,Beaufort Grange Care Home,607.29, 10-Mar-2020
306,Revenue,CAHD,Central - Commissioned Services,Permanent Nursing,Beaufort Grange Care Home,4428.00, 10-Mar-2020
307,Revenue,CAHD,North - Community based support,Permanent Residential,Beaufort Grange Care Home,5600.00, 10-Mar-2020
308,Revenue,CAHD,North - Community based support,Permanent Residential,Beaufort Grange Care Home,600.00, 10-Mar-2020
309,Revenue,CAHD,South Glos Users in South Glos Homes,Permanent Nursing,Beaufort Grange Care Home,662.24, 10-Mar-2020
310,Revenue,CAHD,South Glos Users in South Glos Homes,Permanent Nursing,Beaufort Grange Care Home,662.24, 10-Mar-2020
311,Revenue,CAHD,South Glos Users in South Glos Homes,Permanent Nursing,Beaufort Grange Care Home,662.24, 10-Mar-2020
312,Revenue,CAHD,North - S117,Permanent Nursing,Beaufort Grange Care Home,5005.76, 10-Mar-2020
313,Revenue,CAHD,Central - Commissioned Services,Respite Planned - Residential,Beaufort Grange Care Home,4251.00, 10-Mar-2020
314,Revenue,CAHD,Central - Commissioned Services,Respite Planned - Residential,Beaufort Grange Care Home,3643.71, 10-Mar-2020
315,Revenue,CAHD,South Glos Users in South Glos Homes,Permanent Nursing,Beaufort Grange Care Home,662.24, 10-Mar-2020
316,Revenue,CAHD,South Glos Users in South Glos Homes,Permanent Nursing,Beaufort Grange Care Home,662.24, 10-Mar-2020
317,Revenue,CAHD,South Glos Users in South Glos Homes,Permanent Nursing,Beaufort Grange Care Home,662.24, 10-Mar-2020
318,Revenue,CAHD,South Glos Users in South Glos Homes,Permanent Nursing,Beaufort Grange Care Home,662.24, 10-Mar-2020
319,Revenue,CAHD,South Glos Users in South Glos Homes,Permanent Nursing,Beaufort Grange Care Home,662.24, 10-Mar-2020
320,Revenue,CAHD,South Glos Users in South Glos Homes,Permanent Nursing,Beaufort Grange Care Home,662.24, 10-Mar-2020
321,Revenue,CAHD,South Glos Users in South Glos Homes,Permanent Nursing,Beaufort Grange Care Home,662.24, 10-Mar-2020
322,Revenue,CAHD,South Glos Users in South Glos Homes,Permanent Nursing,Beaufort Grange Care Home,662.24, 10-Mar-2020
323,Revenue,CAHD,South Glos Users in South Glos Homes,Permanent Nursing,Beaufort Grange Care Home,662.24, 10-Mar-2020
324,Revenue,CAHD,South Glos Users in South Glos Homes,Permanent Nursing,Beaufort Grange Care Home,662.24, 10-Mar-2020
325,Revenue,CAHD,South Glos Users in South Glos Homes,Permanent Nursing,Beaufort Grange Care Home,662.24, 10-Mar-2020
326,Revenue,CAHD,South Glos Users in South Glos Homes,Permanent Nursing,Beaufort Grange Care Home,662.24, 10-Mar-2020
327,Revenue,CAHD,South Glos Users in South Glos Homes,Permanent Nursing,Beaufort Grange Care Home,662.24, 10-Mar-2020
328,Revenue,CAHD,South Glos Users in South Glos Homes,Permanent Nursing,Beaufort Grange Care Home,662.24, 10-Mar-2020
329,Revenue,CAHD,South Glos Users in South Glos Homes,Permanent Nursing,Beaufort Grange Care Home,662.24, 10-Mar-2020
330,Revenue,CAHD,South Glos Users in South Glos Homes,Permanent Nursing,Beaufort Grange Care Home,662.24, 10-Mar-2020
331,Revenue,CAHD,South Glos Users in South Glos Homes,Permanent Nursing,Beaufort Grange Care Home,662.24, 10-Mar-2020
332,Revenue,CAHD,South Glos Users in South Glos Homes,Permanent Nursing,Beaufort Grange Care Home,662.24, 10-Mar-2020
333,Revenue,CAHD,South Glos Users in South Glos Homes,Permanent Nursing,Beaufort Grange Care Home,662.24, 10-Mar-2020
334,Revenue,CAHD,North - Community based support,Permanent Nursing,Beaufort Grange Care Home,5405.76, 10-Mar-2020
335,Revenue,CAHD,South Glos Users in South Glos Homes,Permanent Nursing,Beaufort Grange Care Home,662.24, 10-Mar-2020
336,Revenue,CAHD,North - Community based support,Permanent Residential,Beaufort House,2549.56, 10-Mar-2020
337,Revenue,CAHD,Central - Commissioned Services,Permanent Residential,Beaufort House,2867.20, 10-Mar-2020
338,Revenue,CAHD,Central - Commissioned Services,Permanent Residential,Beaufort House,2775.60, 10-Mar-2020
339,Revenue,CAHD,Central - Commissioned Services,Permanent Residential,Beaufort House,11414.29, 10-Mar-2020
340,Revenue,CAHD,Central - Commissioned Services,Permanent Residential,Beaufort House,3400.00, 10-Mar-2020
341,Revenue,CAHD,Central - Commissioned Services,Fees & Charges Income - General,Beaufort House,1894.01, 10-Mar-2020
342,Revenue,CAHD,North - Community based support,Permanent Residential,Beaufort House,2571.40, 10-Mar-2020
343,Revenue,CAHD,South - Commissioned Services,Permanent Residential,Beaufort House,2536.84, 10-Mar-2020
344,Revenue,CAHD,Central - Commissioned Services,Permanent Residential,Beaufort House,3400.00, 10-Mar-2020
345,Revenue,CAHD,South - Commissioned Services,Permanent Residential,Beaufort House,3400.00, 10-Mar-2020
346,Revenue,CAHD,North - Community based support,Permanent Residential,Beaufort House,2699.92, 10-Mar-2020
347,Revenue,CAHD,Central - Commissioned Services,Permanent Residential,Beaufort House,3400.00, 10-Mar-2020
348,Revenue,CAHD,Central - Bed Purchasing and Direct Payments,Permanent Residential,Beaufort House,3400.00, 10-Mar-2020
349,Revenue,CAHD,South - Commissioned Services,Permanent Residential,Beech House,2959.64, 10-Mar-2020
350,Revenue,CAHD,South Glos Users in South Glos Homes,Permanent Nursing,Beech House,662.24, 10-Mar-2020
351,Revenue,CAHD,South Glos Users in South Glos Homes,Permanent Nursing,Beech House,662.24, 10-Mar-2020
352,Revenue,CAHD,North - Community based support,Permanent Residential,Beech House,4180.00, 10-Mar-2020
353,Revenue,CAHD,South Glos Users in South Glos Homes,Permanent Nursing,Beech House,662.24, 10-Mar-2020
354,Revenue,CAHD,South Glos Users in South Glos Homes,Permanent Nursing,Beech House,662.24, 10-Mar-2020
355,Revenue,CAHD,South Glos Users in South Glos Homes,Permanent Nursing,Beech House,662.24, 10-Mar-2020
356,Revenue,CAHD,South Glos Users in South Glos Homes,Permanent Nursing,Beech House,662.24, 10-Mar-2020
357,Revenue,CAHD,South Glos Users in South Glos Homes,Permanent Nursing,Beech House,662.24, 10-Mar-2020
358,Revenue,CAHD,North - Community based support,Permanent Nursing,Beech House,3547.76, 10-Mar-2020
359,Revenue,CAHD,South Glos Users in South Glos Homes,Permanent Nursing,Beech House,662.24, 10-Mar-2020
360,Revenue,CAHD,South Glos Users in South Glos Homes,Permanent Nursing,Beech House,662.24, 10-Mar-2020
361,Revenue,CAHD,South Glos Users in South Glos Homes,Permanent Nursing,Beech House,662.24, 10-Mar-2020
362,Revenue,CAHD,North - Community based support,Permanent Nursing,Beech House,4283.20, 10-Mar-2020
363,Revenue,CAHD,South Glos Users in South Glos Homes,Permanent Nursing,Beech House,662.24, 10-Mar-2020
364,Revenue,CAHD,South Glos Users in South Glos Homes,Permanent Nursing,Beech House,662.24, 10-Mar-2020
365,Revenue,CAHD,South Glos Users in South Glos Homes,Permanent Nursing,Beech House,662.24, 10-Mar-2020
366,Revenue,CAHD,South Glos Users in South Glos Homes,Permanent Nursing,Beech House,662.24, 10-Mar-2020
367,Revenue,CAHD,South Glos Users in South Glos Homes,Permanent Nursing,Beech House,662.24, 10-Mar-2020
368,Revenue,CAHD,North - Community based support,Permanent Nursing,Beech House,3993.60, 10-Mar-2020
369,Revenue,CAHD,South Glos Users in South Glos Homes,Permanent Nursing,Beech House,662.24, 10-Mar-2020
370,Revenue,CAHD,South Glos Users in South Glos Homes,Permanent Nursing,Beech House,662.24, 10-Mar-2020
371,Revenue,CAHD,South Glos Users in South Glos Homes,Permanent Nursing,Beech House,662.24, 10-Mar-2020
372,Revenue,CAHD,North - Community based support,Permanent Nursing,Beech House,4223.56, 10-Mar-2020
373,Revenue,CAHD,South Glos Users in South Glos Homes,Permanent Nursing,Beech House,662.24, 10-Mar-2020
374,Revenue,CAHD,South Glos Users in South Glos Homes,Permanent Nursing,Beech House,662.24, 10-Mar-2020
375,Revenue,CAHD,South Glos Users in South Glos Homes,Permanent Nursing,Beech House,662.24, 10-Mar-2020
376,Revenue,CAHD,North - Community based support,Permanent Nursing,Beech House,4100.00, 10-Mar-2020
377,Revenue,CAHD,South Glos Users in South Glos Homes,Permanent Nursing,Beech House,662.24, 10-Mar-2020
378,Revenue,CAHD,South Glos Users in South Glos Homes,Permanent Nursing,Beech House,662.24, 10-Mar-2020
379,Revenue,CAHD,South Glos Users in South Glos Homes,Permanent Nursing,Beech House,662.24, 10-Mar-2020
380,Revenue,CAHD,South Glos Users in South Glos Homes,Permanent Nursing,Beech House,662.24, 10-Mar-2020
381,Revenue,CAHD,North - Community based support,Permanent Residential,Beech House,4280.32, 10-Mar-2020
382,Revenue,CAHD,South Glos Users in South Glos Homes,Permanent Nursing,Beech House,662.24, 10-Mar-2020
383,Revenue,CAHD,South Glos Users in South Glos Homes,Permanent Nursing,Beechwood Care Home,1028.00, 10-Mar-2020
384,Revenue,CAHD,18-25 Year Olds,Permanent Residential,Beechwood Court,15254.92, 10-Mar-2020
385,Revenue,CAHD,CSC - Residential Placements,Permanent Residential,Beechwood Court Ltd,13341.46, 20-Mar-2020
386,Revenue,CAHD,CSC - Residential Placements,Permanent Residential,Beechwood Court Ltd,21974.17, 06-Mar-2020
387,Revenue,CAHD,CSC - Residential Placements,Permanent Residential,Beechwood Court Ltd,21974.17, 06-Mar-2020
388,Revenue,CAHD,CSC - Residential Placements,Permanent Residential,Beechwood Court Ltd,21974.17, 06-Mar-2020
389,Revenue,CAHD,CSC - Residential Placements,Permanent Residential,Beechwood Court Ltd,21974.17, 06-Mar-2020
390,Revenue,CAHD,CSC - Residential Placements,Permanent Residential,Beechwood Court Ltd,21794.66, 06-Mar-2020
391,Revenue,CAHD,CSC - Residential Placements,Permanent Residential,Beechwood Court Ltd,21794.66, 06-Mar-2020
392,Revenue,CAHD,South - S117,Permanent Residential,Bidna House,3692.64, 10-Mar-2020
393,Revenue,CAHD,Statemented Support Payments to OLAs,Other L.A.'s - General,Blaise High School,907.83, 20-Mar-2020
394,Revenue,CAHD,Personnel Costs,Training Expenses,Blake Morgan LLP,2435.00, 12-Mar-2020
395,Revenue,CAHD,Central - Commissioned Services,Other Small Contracts,Blakehill Healthcare Ltd,743.75, 10-Mar-2020
396,Revenue,CAHD,Central - Commissioned Services,Other Small Contracts,Blakehill Healthcare Ltd,4331.25, 10-Mar-2020
397,Revenue,CAHD,Central - Commissioned Services,Other Small Contracts,Blakehill Healthcare Ltd,1700.00, 10-Mar-2020
398,Revenue,CAHD,Central - Commissioned Services,Other Small Contracts,Blakehill Healthcare Ltd,3200.00, 13-Mar-2020
399,Revenue,CAHD,Central - Commissioned Services,Other Small Contracts,Blakehill Healthcare Ltd,1200.00, 10-Mar-2020
400,Revenue,CAHD,Central - Commissioned Services,Other Small Contracts,Blakehill Healthcare Ltd,525.00, 26-Mar-2020
401,Revenue,CAHD,Central - Commissioned Services,Other Small Contracts,Blakehill Healthcare Ltd,3450.00, 19-Mar-2020
402,Revenue,CAHD,Central - Commissioned Services,Other Small Contracts,Blakehill Healthcare Ltd,5241.60, 25-Mar-2020
403,Revenue,CAHD,Pathway 1 - Re-Ablement Home Care,Other Small Contracts,Blakehill Healthcare Ltd,525.00, 19-Mar-2020
404,Revenue,CAHD,South - Commissioned Services,Other Small Contracts,Blakehill Healthcare Ltd,3746.40, 17-Mar-2020
405,Revenue,CAHD,South - Commissioned Services,Permanent Nursing,Blossom Field,4780.36, 10-Mar-2020
406,Revenue,CAHD,South Glos Users in South Glos Homes,Permanent Nursing,Blossom Field,662.24, 10-Mar-2020
407,Revenue,CAHD,South Glos Users in South Glos Homes,Permanent Nursing,Blossom Field,662.24, 10-Mar-2020
408,Revenue,CAHD,North - Community based support,Permanent Nursing,Blossom Field,4770.40, 10-Mar-2020
409,Revenue,CAHD,South Glos Users in South Glos Homes,Permanent Nursing,Blossom Field,662.24, 10-Mar-2020
410,Revenue,CAHD,South Glos Users in South Glos Homes,Permanent Nursing,Blossom Field,662.24, 10-Mar-2020
411,Revenue,CAHD,North - Community based support,Permanent Nursing,Blossom Field,4267.44, 10-Mar-2020
412,Revenue,CAHD,South Glos Users in South Glos Homes,Permanent Nursing,Blossom Field,662.24, 10-Mar-2020
413,Revenue,CAHD,North - bed purchasing and direct  payments,Fees & Charges Income - General,Blossom Field,5897.36, 10-Mar-2020
414,Revenue,CAHD,South Glos Users in South Glos Homes,Permanent Nursing,Blossom Field,662.24, 10-Mar-2020
415,Revenue,CAHD,South - Commissioned Services,Permanent Nursing,Blossom Field,4413.08, 10-Mar-2020
416,Revenue,CAHD,South Glos Users in South Glos Homes,Permanent Nursing,Blossom Field,662.24, 10-Mar-2020
417,Revenue,CAHD,North - Community based support,Permanent Nursing,Blossom Field,3533.92, 10-Mar-2020
418,Revenue,CAHD,South Glos Users in South Glos Homes,Permanent Nursing,Blossom Field,662.24, 10-Mar-2020
419,Revenue,CAHD,South - Commissioned Services,Permanent Nursing,Blossom Field,1697.14, 10-Mar-2020
420,Revenue,CAHD,South - Commissioned Services,Permanent Nursing,Blossom Field,565.71, 10-Mar-2020
421,Revenue,CAHD,South Glos Users in South Glos Homes,Permanent Nursing,Blossom Field,662.24, 10-Mar-2020
422,Revenue,CAHD,North - Community based support,Permanent Nursing,Blossom Field,4799.88, 10-Mar-2020
423,Revenue,CAHD,South Glos Users in South Glos Homes,Permanent Nursing,Blossom Field,662.24, 10-Mar-2020
424,Revenue,CAHD,South Glos Users in South Glos Homes,Permanent Nursing,Blossom Field,662.24, 10-Mar-2020
425,Revenue,CAHD,North - Community based support,Permanent Nursing,Blossom Field,4800.00, 10-Mar-2020
426,Revenue,CAHD,South Glos Users in South Glos Homes,Permanent Nursing,Blossom Field,662.24, 10-Mar-2020
427,Revenue,CAHD,South Glos Users in South Glos Homes,Permanent Nursing,Blossom Field,662.24, 10-Mar-2020
428,Revenue,CAHD,South Glos Users in South Glos Homes,Permanent Nursing,Blossom Field,662.24, 10-Mar-2020
429,Revenue,CAHD,Central - Commissioned Services,Permanent Nursing,Blossom Field,4267.36, 10-Mar-2020
430,Revenue,CAHD,South Glos Users in South Glos Homes,Permanent Nursing,Blossom Field,662.24, 10-Mar-2020
431,Revenue,CAHD,South - Commissioned Services,Respite Planned - Nursing,Blossom Field,565.71, 10-Mar-2020
432,Revenue,CAHD,North - Community based support,Permanent Nursing,Blossom Field,4267.36, 10-Mar-2020
433,Revenue,CAHD,South Glos Users in South Glos Homes,Permanent Nursing,Blossom Field,662.24, 10-Mar-2020
434,Revenue,CAHD,South - Commissioned Services,Permanent Nursing,Blossom Field,3960.00, 10-Mar-2020
435,Revenue,CAHD,South Glos Users in South Glos Homes,Permanent Nursing,Blossom Field,662.24, 10-Mar-2020
436,Revenue,CAHD,South Glos Users in South Glos Homes,Permanent Nursing,Blossom Field,662.24, 10-Mar-2020
437,Revenue,CAHD,South Glos Users in South Glos Homes,Permanent Nursing,Blossom Field,662.24, 10-Mar-2020
438,Revenue,CAHD,Central - Commissioned Services,Respite Planned - Nursing,Blossom Field,1371.43, 10-Mar-2020
439,Revenue,CAHD,South Glos Users in South Glos Homes,Permanent Nursing,Blossom Field,662.24, 10-Mar-2020
440,Revenue,CAHD,South Glos Users in South Glos Homes,Permanent Nursing,Blossom Field,662.24, 10-Mar-2020
441,Revenue,CAHD,South Glos Users in South Glos Homes,Permanent Nursing,Blossom Field,662.24, 10-Mar-2020
442,Revenue,CAHD,North - Community based support,Permanent Nursing,Blossom Field,3634.96, 10-Mar-2020
443,Revenue,CAHD,South Glos Users in South Glos Homes,Permanent Nursing,Blossom Field,662.24, 10-Mar-2020
444,Revenue,CAHD,North - bed purchasing and direct  payments,Permanent Nursing,Blossom Field,3960.00, 10-Mar-2020
445,Revenue,CAHD,South Glos Users in South Glos Homes,Permanent Nursing,Blossom Field,662.24, 10-Mar-2020
446,Revenue,CAHD,Early Years High Needs Support,Other Private Contractors,Blue Coat Pre-School & Busy Bees,1009.89, 20-Mar-2020
447,Revenue,CAHD,North - Community based support,Permanent Residential,Bluebells,3699.60, 10-Mar-2020
448,Revenue,CAHD,Early Years Inclusion Fund,Other Public Bodies,Bluebells Pre School,1650.00, 30-Mar-2020
449,Revenue,CAHD,EARLY YEARS DEPRIVATION PAYMENT,Preventative Assistance,Bluebells Pre School,832.21, 24-Mar-2020
450,Revenue,CAHD,Central - Commissioned Services,Other Small Contracts,Bluebird Care (South Gloucestershire),3736.05, 02-Mar-2020
451,Revenue,CAHD,South - Commissioned Services,Other Small Contracts,Bluebird Care (South Gloucestershire),1245.75, 02-Mar-2020
452,Revenue,CAHD,North - Community based support,Other Small Contracts,Bluebird Care (South Gloucestershire),4203.56, 02-Mar-2020
453,Revenue,CAHD,Central - Commissioned Services,Other Small Contracts,Bluebird Care (South Gloucestershire),3909.70, 16-Mar-2020
454,Revenue,CAHD,South - Commissioned Services,Other Small Contracts,Bluebird Care (South Gloucestershire),1102.60, 16-Mar-2020
455,Revenue,CAHD,North - Community based support,Other Small Contracts,Bluebird Care (South Gloucestershire),3894.01, 16-Mar-2020
456,Revenue,CAHD,Central - Commissioned Services,Other Small Contracts,Bluebird Care (South Gloucestershire),4045.60, 16-Mar-2020
457,Revenue,CAHD,South - Commissioned Services,Other Small Contracts,Bluebird Care (South Gloucestershire),1079.65, 16-Mar-2020
458,Revenue,CAHD,North - Community based support,Other Small Contracts,Bluebird Care (South Gloucestershire),3524.21, 16-Mar-2020
459,Revenue,CAHD,Central - Commissioned Services,Other Small Contracts,Bluebird Care (South Gloucestershire),3773.80, 26-Mar-2020
460,Revenue,CAHD,South - Commissioned Services,Other Small Contracts,Bluebird Care (South Gloucestershire),1147.60, 26-Mar-2020
461,Revenue,CAHD,North - Community based support,Other Small Contracts,Bluebird Care (South Gloucestershire),2723.91, 26-Mar-2020
462,Revenue,CAHD,Central - Commissioned Services,Other Small Contracts,Bluebird Care (South Gloucestershire),3909.70, 26-Mar-2020
463,Revenue,CAHD,South - Commissioned Services,Other Small Contracts,Bluebird Care (South Gloucestershire),1087.20, 26-Mar-2020
464,Revenue,CAHD,North - Community based support,Other Small Contracts,Bluebird Care (South Gloucestershire),3380.76, 26-Mar-2020
465,Revenue,CAHD,Training - Adult Services,Training Expenses,Individual,2625.00, 20-Mar-2020
466,Revenue,CAHD,CSC - Vinney Green Secure Unit,"Provisions (Food, etc)",Booker Cash & Carry,507.12, 06-Mar-2020
467,Revenue,CAHD,S28A cases,Permanent Residential,Bradbury House,6505.16, 10-Mar-2020
468,Revenue,CAHD,18-25 Year Olds,Permanent Residential,Bradbury House,9917.08, 10-Mar-2020
469,Revenue,CAHD,North - S117,Permanent Residential,Bradbury House,5740.24, 10-Mar-2020
470,Revenue,CAHD,Jointly Funded H&SC Packages,Permanent Residential,Bradbury House,7927.00, 10-Mar-2020
471,Revenue,CAHD,South - Commissioned Services,Permanent Residential,Bradbury House,9777.00, 10-Mar-2020
472,Revenue,CAHD,Early Years Development,Premises Hire,Bradley Stoke Town Council,585.17, 13-Mar-2020
473,Revenue,CAHD,CSC - Residential Placements,Permanent Residential,Branas ISAF Ltd,19678.57, 17-Mar-2020
474,Revenue,CAHD,CSC - Residential Placements,Permanent Residential,Branas ISAF Ltd,18642.86, 17-Mar-2020
475,Revenue,CAHD,North - Community based support,Permanent Residential,Breadstone House Care Centre,2088.68, 10-Mar-2020
476,Revenue,CAHD,North - Community based support,Permanent Residential,Breadstone House Care Centre,2364.36, 10-Mar-2020
477,Revenue,CAHD,North - Community based support,Respite Emergency - Residential,Breadstone House Care Centre,2400.72, 10-Mar-2020
478,Revenue,CAHD,North - Community based support,Respite Emergency - Residential,Breadstone House Care Centre,2400.72, 10-Mar-2020
479,Revenue,CAHD,North - Community based support,Respite Emergency - Residential,Breadstone House Care Centre,1114.62, 10-Mar-2020
480,Revenue,CAHD,North - bed purchasing and direct  payments,Permanent Residential,Bridge House Care Home,1467.86, 10-Mar-2020
481,Revenue,CAHD,North - bed purchasing and direct  payments,Permanent Residential,Bridge House Care Home,1272.14, 10-Mar-2020
482,Revenue,CAHD,North - Community based support,Permanent Residential,Bridge House Care Home,2625.52, 10-Mar-2020
483,Revenue,CAHD,CSC - Vinney Green Secure Unit,Training Expenses,Bridgwater and Taunton College,2647.00, 27-Mar-2020
484,Revenue,CAHD,North - Community based support,Permanent Residential,Bridgwater Court Care Home,10773.64, 10-Mar-2020
485,Revenue,CAHD,EARLY YEARS DISABILITY  ACCES FUND,Preventative Assistance,Bright Sparks,615.00, 24-Mar-2020
486,Revenue,CAHD,Early Years High Needs Support,Other Private Contractors,Bright Sparks Pre-School,634.11, 20-Mar-2020
487,Revenue,CAHD,"Education, Learning and Skills",Consultants Fees,Brio Limited,1300.00, 10-Mar-2020
488,Revenue,CAHD,Schools Specific Grant Income,Other Public Bodies,Bristol Cathedral Choir School,500.00, 24-Mar-2020
489,Revenue,CAHD,Transport OLA Special Schools and RB,Client Transport,Bristol City Council,2128.37, 13-Mar-2020
490,Revenue,CAHD,Independent Special Placements - Pre 16,Other Private Contractors,Bristol City Council,540.00, 26-Mar-2020
491,Revenue,CAHD,Sensory Support Joint Arrangement,Other L.A.'s - General,Bristol City Council,114471.00, 16-Mar-2020
492,Revenue,CAHD,Early Years Development,Membership Fees,Bristol City Council,1000.00, 19-Mar-2020
493,Revenue,CAHD,Early Years Development,Membership Fees,Bristol City Council,1000.00, 19-Mar-2020
494,Revenue,CAHD,Early Years Development,Educational Materials,Bristol City Council,550.00, 19-Mar-2020
495,Revenue,CAHD,NTS Grant - Trainee Social Wor,Training Expenses,Bristol City Council,3640.00, 31-Mar-2020
496,Revenue,CAHD,Schools Specific Grant Income,Other Public Bodies,Bristol City Council - Schools,2000.00, 24-Mar-2020
497,Revenue,CAHD,Placements OLA Special Schools and RB,Other L.A.'s - General,Bristol City Council - Schools,2578.00, 25-Mar-2020
498,Revenue,CAHD,Placements OLA Special Schools and RB,Other L.A.'s - General,Bristol City Council - Schools,1381.00, 25-Mar-2020
499,Revenue,CAHD,Statemented Support Payments to OLAs,Other L.A.'s - General,Bristol City Council - Schools,1379.43, 20-Mar-2020
500,Revenue,CAHD,Placements OLA Special Schools and RB,Other L.A.'s - General,Bristol City Council - Schools,914.33, 25-Mar-2020
501,Revenue,CAHD,Placements OLA Special Schools and RB,Other L.A.'s - General,Bristol City Council - Schools,1305.58, 25-Mar-2020
502,Revenue,CAHD,Statemented Support Payments to OLAs,Other L.A.'s - General,Bristol City Council - Schools,3878.91, 20-Mar-2020
503,Revenue,CAHD,Statemented Support Payments to OLAs,Other L.A.'s - General,Bristol City Council - Schools,660.24, 20-Mar-2020
504,Revenue,CAHD,Placements OLA Special Schools and RB,Other L.A.'s - General,Bristol City Council - Schools,3356.33, 25-Mar-2020
505,Revenue,CAHD,Placements OLA Special Schools and RB,Other L.A.'s - General,Bristol City Council - Schools,2722.50, 25-Mar-2020
506,Revenue,CAHD,Placements OLA Special Schools and RB,Other L.A.'s - General,Bristol City Council - Schools,1275.67, 25-Mar-2020
507,Revenue,CAHD,Placements OLA Special Schools and RB,Other L.A.'s - General,Bristol City Council - Schools,2578.00, 25-Mar-2020
508,Revenue,CAHD,Placements OLA Special Schools and RB,Other L.A.'s - General,Bristol City Council - Schools,1381.00, 25-Mar-2020
509,Revenue,CAHD,Placements OLA Special Schools and RB,Other L.A.'s - General,Bristol City Council - Schools,2050.17, 25-Mar-2020
510,Revenue,CAHD,Placements OLA Special Schools and RB,Other L.A.'s - General,Bristol City Council - Schools,1381.00, 25-Mar-2020
511,Revenue,CAHD,Placements OLA Special Schools and RB,Other L.A.'s - General,Bristol City Council - Schools,1381.00, 25-Mar-2020
512,Revenue,CAHD,Placements OLA Special Schools and RB,Other L.A.'s - General,Bristol City Council - Schools,2050.17, 25-Mar-2020
513,Revenue,CAHD,Placements OLA Special Schools and RB,Other L.A.'s - General,Bristol City Council - Schools,1675.30, 25-Mar-2020
514,Revenue,CAHD,Placements OLA Special Schools and RB,Other L.A.'s - General,Bristol City Council - Schools,1976.78, 25-Mar-2020
515,Revenue,CAHD,Placements OLA Special Schools and RB,Other L.A.'s - General,Bristol City Council - Schools,2722.50, 25-Mar-2020
516,Revenue,CAHD,Placements OLA Special Schools and RB,Other L.A.'s - General,Bristol City Council - Schools,1975.67, 25-Mar-2020
517,Revenue,CAHD,Placements OLA Special Schools and RB,Other L.A.'s - General,Bristol City Council - Schools,19057.50, 25-Mar-2020
518,Revenue,CAHD,Placements OLA Special Schools and RB,Other L.A.'s - General,Bristol City Council - Schools,883.50, 25-Mar-2020
519,Revenue,CAHD,Placements OLA Special Schools and RB,Other L.A.'s - General,Bristol City Council - Schools,4107.54, 25-Mar-2020
520,Revenue,CAHD,Placements OLA Special Schools and RB,Other L.A.'s - General,Bristol City Council - Schools,777.50, 25-Mar-2020
521,Revenue,CAHD,Placements OLA Special Schools and RB,Other L.A.'s - General,Bristol City Council - Schools,1031.20, 25-Mar-2020
522,Revenue,CAHD,Placements OLA Special Schools and RB,Other L.A.'s - General,Bristol City Council - Schools,3356.33, 25-Mar-2020
523,Revenue,CAHD,Placements OLA Special Schools and RB,Other L.A.'s - General,Bristol City Council - Schools,2578.00, 25-Mar-2020
524,Revenue,CAHD,Placements OLA Special Schools and RB,Other L.A.'s - General,Bristol City Council - Schools,809.00, 25-Mar-2020
525,Revenue,CAHD,Placements OLA Special Schools and RB,Other L.A.'s - General,Bristol City Council - Schools,3356.33, 25-Mar-2020
526,Revenue,CAHD,Placements OLA Special Schools and RB,Other L.A.'s - General,Bristol City Council - Schools,3405.92, 25-Mar-2020
527,Revenue,CAHD,Placements OLA Special Schools and RB,Other L.A.'s - General,Bristol City Council - Schools,2062.40, 25-Mar-2020
528,Revenue,CAHD,Placements OLA Special Schools and RB,Other L.A.'s - General,Bristol City Council - Schools,2578.00, 25-Mar-2020
529,Revenue,CAHD,Placements OLA Special Schools and RB,Other L.A.'s - General,Bristol City Council - Schools,2828.50, 25-Mar-2020
530,Revenue,CAHD,Placements OLA Special Schools and RB,Other L.A.'s - General,Bristol City Council - Schools,1305.58, 25-Mar-2020
531,Revenue,CAHD,Schools Specific Grant Income,Other Public Bodies,Bristol City Council Schools General,630.00, 12-Mar-2020
532,Revenue,CAHD,Bed and Breakfast,Bed & Breakfast,Bristol Housing & Support Limited,420.00, 30-Mar-2020
533,Revenue,CAHD,Bed and Breakfast,Bed & Breakfast,Bristol Housing & Support Limited,420.00, 30-Mar-2020
534,Revenue,CAHD,Training - Adult Services,Training Expenses,Bristol MIND,1900.00, 20-Mar-2020
535,Revenue,CAHD,SEN High Needs - Not at School Base,Other Private Contractors,Bristol Tuition Limited,608.00, 10-Mar-2020
536,Revenue,CAHD,SEN High Needs - Not at School Base,Other Private Contractors,Bristol Tuition Limited,604.00, 12-Mar-2020
537,Revenue,CAHD,Intermediate Care Accommodation,Water Charges,Bristol Wessex Billing Services Limited,503.46, 27-Mar-2020
538,Revenue,CAHD,Statemented Support Payments to OLAs,Other L.A.'s - General,Broadlands Academy,1332.27, 20-Mar-2020
539,Revenue,CAHD,Discretionary Housing Payment,Other Supplies & Services,Bromford  :  Merlin Housing Society,640.00, 04-Mar-2020
540,Revenue,CAHD,Discretionary Housing Payment,Other Supplies & Services,Bromford  :  Merlin Housing Society,850.00, 06-Mar-2020
541,Revenue,CAHD,Discretionary Housing Payment,Other Supplies & Services,Bromford  :  Merlin Housing Society,698.01, 18-Mar-2020
542,Revenue,CAHD,Parent Partnership,Fees - General,Browne Jacobson,9000.00, 27-Mar-2020
543,Revenue,CAHD,Parent Partnership,Fees - General,Browne Jacobson,5558.00, 30-Mar-2020
544,Revenue,CAHD,Parent Partnership,Fees - General,Browne Jacobson,3656.00, 30-Mar-2020
545,Revenue,CAHD,South Glos Users in South Glos Homes,Permanent Nursing,Brunelcare,685.89, 23-Mar-2020
546,Revenue,CAHD,South Glos Users in South Glos Homes,Permanent Nursing,Brunelcare,685.89, 23-Mar-2020
547,Revenue,CAHD,South Glos Users in South Glos Homes,Permanent Nursing,Brunelcare,685.89, 23-Mar-2020
548,Revenue,CAHD,South Glos Users in South Glos Homes,Permanent Nursing,Brunelcare,685.89, 23-Mar-2020
549,Revenue,CAHD,South Glos Users in South Glos Homes,Permanent Nursing,Brunelcare,685.89, 23-Mar-2020
550,Revenue,CAHD,South Glos Users in South Glos Homes,Permanent Nursing,Brunelcare,685.89, 23-Mar-2020
551,Revenue,CAHD,South Glos Users in South Glos Homes,Permanent Nursing,Brunelcare,685.89, 23-Mar-2020
552,Revenue,CAHD,South Glos Users in South Glos Homes,Permanent Nursing,Brunelcare,685.89, 23-Mar-2020
553,Revenue,CAHD,South Glos Users in South Glos Homes,Permanent Nursing,Brunelcare,685.89, 23-Mar-2020
554,Revenue,CAHD,South Glos Users in South Glos Homes,Permanent Nursing,Brunelcare,685.89, 23-Mar-2020
555,Revenue,CAHD,South Glos Users in South Glos Homes,Permanent Nursing,Brunelcare,685.89, 23-Mar-2020
556,Revenue,CAHD,South Glos Users in South Glos Homes,Permanent Nursing,Brunelcare,685.89, 23-Mar-2020
557,Revenue,CAHD,South Glos Users in South Glos Homes,Permanent Nursing,Brunelcare,614.94, 23-Mar-2020
558,Revenue,CAHD,South Glos Users in South Glos Homes,Permanent Nursing,Brunelcare,685.89, 23-Mar-2020
559,Revenue,CAHD,South - S117,Permanent Nursing,Brunelcare,3432.36, 23-Mar-2020
560,Revenue,CAHD,North - S117,Permanent Nursing,Brunelcare,3432.36, 23-Mar-2020
561,Revenue,CAHD,North - S117,Permanent Nursing,Brunelcare,3432.36, 23-Mar-2020
562,Revenue,CAHD,South - Commissioned Services,Permanent Nursing,Brunelcare,3432.36, 23-Mar-2020
563,Revenue,CAHD,South - Commissioned Services,Permanent Nursing,Brunelcare,2502.29, 23-Mar-2020
564,Revenue,CAHD,South - Commissioned Services,Permanent Nursing,Brunelcare,2649.27, 23-Mar-2020
565,Revenue,CAHD,South - Commissioned Services,Permanent Nursing,Brunelcare,2748.74, 23-Mar-2020
566,Revenue,CAHD,South - Commissioned Services,Permanent Nursing,Brunelcare,2859.19, 23-Mar-2020
567,Revenue,CAHD,South - Commissioned Services,Permanent Nursing,Brunelcare,2492.01, 23-Mar-2020
568,Revenue,CAHD,South - Commissioned Services,Permanent Nursing,Brunelcare,1455.63, 23-Mar-2020
569,Revenue,CAHD,Enhanced Dementia Beds,Respite Planned - Nursing,Brunelcare,1693.71, 23-Mar-2020
570,Revenue,CAHD,South - Commissioned Services,Respite Planned - Nursing,Brunelcare,1538.64, 23-Mar-2020
571,Revenue,CAHD,North - Community based support,Permanent Nursing,Brunelcare,2755.08, 23-Mar-2020
572,Revenue,CAHD,North - Community based support,Permanent Nursing,Brunelcare,2748.91, 23-Mar-2020
573,Revenue,CAHD,North - Community based support,Permanent Nursing,Brunelcare,3432.36, 23-Mar-2020
574,Revenue,CAHD,North - Community based support,Respite Planned - Nursing,Brunelcare,1065.22, 23-Mar-2020
575,Revenue,CAHD,North - Community based support,Respite Planned - Nursing,Brunelcare,710.04, 23-Mar-2020
576,Revenue,CAHD,Central - Commissioned Services,Permanent Nursing,Brunelcare,2821.91, 23-Mar-2020
577,Revenue,CAHD,South - Commissioned Services,Other Small Contracts,Brunelcare,18422.12, 18-Mar-2020
578,Revenue,CAHD,North - Community based support,Other Small Contracts,Brunelcare,286.80, 18-Mar-2020
579,Revenue,CAHD,South - Commissioned Services,Day Care / Social Activities,Brunelcare,9.56, 18-Mar-2020
580,Revenue,CAHD,South - Commissioned Services,Other Small Contracts,Brunelcare,18748.24, 18-Mar-2020
581,Revenue,CAHD,North - Community based support,Other Small Contracts,Brunelcare,329.82, 18-Mar-2020
582,Revenue,CAHD,South - Commissioned Services,Other Small Contracts,Brunelcare,18661.12, 20-Mar-2020
583,Revenue,CAHD,North - Community based support,Other Small Contracts,Brunelcare,339.38, 20-Mar-2020
584,Revenue,CAHD,South - Commissioned Services,Other Small Contracts,Brunelcare,18579.86, 20-Mar-2020
585,Revenue,CAHD,North - Community based support,Other Small Contracts,Brunelcare,291.58, 20-Mar-2020
586,Revenue,CAHD,South - Commissioned Services,Other Small Contracts,Brunelcare,18398.22, 23-Mar-2020
587,Revenue,CAHD,North - Community based support,Other Small Contracts,Brunelcare,301.14, 23-Mar-2020
588,Revenue,CAHD,South - Commissioned Services,Other Small Contracts,Brunelcare,18794.96, 30-Mar-2020
589,Revenue,CAHD,North - Community based support,Other Small Contracts,Brunelcare,296.36, 30-Mar-2020
590,Revenue,CAHD,South - Commissioned Services,Other Small Contracts,Brunelcare,19416.36, 26-Mar-2020
591,Revenue,CAHD,North - Community based support,Other Small Contracts,Brunelcare,296.36, 26-Mar-2020
592,Revenue,CAHD,South - Commissioned Services,Other Small Contracts,Brunelcare,18598.98, 31-Mar-2020
593,Revenue,CAHD,North - Community based support,Other Small Contracts,Brunelcare,291.58, 31-Mar-2020
594,Revenue,CAHD,CSC - Vinney Green Secure Unit,Catering Equipment,Bunzl Lockhart Catering Equiptment,503.26, 20-Mar-2020
595,Revenue,CAHD,School Improvement and Support,Catering,Burhill Golf Centres,442.92, 11-Mar-2020
596,Revenue,CAHD,School Improvement and Support,Premises Hire,Burhill Golf Centres,380.00, 11-Mar-2020
597,Revenue,CAHD,Early Years Inclusion Fund,Other Public Bodies,Busy Bees Day Nursery,900.00, 10-Mar-2020
598,Revenue,CAHD,CSC - Vinney Green Secure Unit,R & M by Departments,BWS Standfast Fire & Security Systems,994.00, 30-Mar-2020
599,Revenue,CAHD,CSC - Agency Fostering,Foster Parent Allowances,By the Bridge Ltd,4495.00, 02-Mar-2020
600,Revenue,CAHD,CSC - Agency Fostering,Foster Parent Allowances,By the Bridge Ltd,4205.00, 31-Mar-2020
601,Revenue,CAHD,Social Lettings Agency,Fees - General,Individual,16.16, 26-Mar-2020
602,Revenue,CAHD,Social Lettings Agency,Other Supplies & Services,Individual,710.96, 26-Mar-2020
603,Revenue,CAHD,CSC - Vinney Green Secure Unit,Furniture & Fittings Loose,C W Jones Carpet & Flooring Limited,594.00, 06-Mar-2020
604,Revenue,CAHD,Statemented Support Payments to OLAs,Other L.A.'s - General,Cabot Learning Federation,1544.49, 20-Mar-2020
605,Revenue,CAHD,Schools Specific Grant Income - from OLA,Other Public Bodies,Cabot Learning Federation,650.00, 27-Mar-2020
606,Revenue,CAHD,Schools Specific Grant Income - from OLA,Other Public Bodies,Cabot Learning Federation,1950.00, 27-Mar-2020
607,Revenue,CAHD,High Risk Group Funding,Other Public Bodies,Cabot Learning Federation,612.00, 09-Mar-2020
608,Revenue,CAHD,Schools Specific Grant Income - from OLA,Other Public Bodies,Cabot Learning Federation,1950.00, 16-Mar-2020
609,Revenue,CAHD,Schools Specific Grant Income - from OLA,Other Public Bodies,Cabot Learning Federation,1950.00, 16-Mar-2020
610,Revenue,CAHD,Schools Specific Grant Income - from OLA,Other Public Bodies,Cabot Learning Federation,1950.00, 20-Mar-2020
611,Revenue,CAHD,Statemented Support Academies,Other Public Bodies,Cabot Learning Federation,918.71, 20-Mar-2020
612,Revenue,CAHD,Statemented Support Academies,Other Public Bodies,Cabot Learning Federation,1202.39, 20-Mar-2020
613,Revenue,CAHD,Statemented Support Academies,Other Public Bodies,Cabot Learning Federation,803.97, 20-Mar-2020
614,Revenue,CAHD,Statemented Support Academies,Other Public Bodies,Cabot Learning Federation,518.76, 20-Mar-2020
615,Revenue,CAHD,Statemented Support Academies,Other Public Bodies,Cabot Learning Federation,907.83, 20-Mar-2020
616,Revenue,CAHD,Statemented Support Academies,Other Public Bodies,Cabot Learning Federation,554.13, 20-Mar-2020
617,Revenue,CAHD,Statemented Support Academies,Other Public Bodies,Cabot Learning Federation,565.92, 20-Mar-2020
618,Revenue,CAHD,Statemented Support Academies,Other Public Bodies,Cabot Learning Federation,1048.67, 20-Mar-2020
619,Revenue,CAHD,Statemented Support Academies,Other Public Bodies,Cabot Learning Federation,2616.63, 20-Mar-2020
620,Revenue,CAHD,KS2 Moderation,Other Public Bodies,Cabot Learning Federation,800.00, 09-Mar-2020
621,Revenue,CAHD,Statemented Support Payments to OLAs,Other L.A.'s - General,Cabot Learning Federation,1013.94, 20-Mar-2020
622,Revenue,CAHD,Statemented Support Academies,Other Public Bodies,Cabot Learning Federation,8250.00, 20-Mar-2020
623,Revenue,CAHD,Statemented Support Academies,Other Public Bodies,Cabot Learning Federation,695.61, 20-Mar-2020
624,Revenue,CAHD,Statemented Support Academies,Other Public Bodies,Cabot Learning Federation,530.55, 20-Mar-2020
625,Revenue,CAHD,Statemented Support Academies,Other Public Bodies,Cabot Learning Federation,918.75, 20-Mar-2020
626,Revenue,CAHD,Statemented Support Academies,Other Public Bodies,Cabot Learning Federation,975.58, 20-Mar-2020
627,Revenue,CAHD,Academy Resource Base Funding,Other Public Bodies,Cabot Learning Federation,1698.31, 24-Mar-2020
628,Revenue,CAHD,Academy Resource Base Funding,Other Public Bodies,Cabot Learning Federation,1172.69, 24-Mar-2020
629,Revenue,CAHD,Academy Resource Base Funding,Other Public Bodies,Cabot Learning Federation,1536.63, 24-Mar-2020
630,Revenue,CAHD,Academy Resource Base Funding,Other Public Bodies,Cabot Learning Federation,1536.63, 24-Mar-2020
631,Revenue,CAHD,Academy Resource Base Funding,Other Public Bodies,Cabot Learning Federation,1172.69, 24-Mar-2020
632,Revenue,CAHD,Academy Resource Base Funding,Other Public Bodies,Cabot Learning Federation,646.93, 24-Mar-2020
633,Revenue,CAHD,Academy Resource Base Funding,Other Public Bodies,Cabot Learning Federation,1172.69, 24-Mar-2020
634,Revenue,CAHD,Academy Resource Base Funding,Other Public Bodies,Cabot Learning Federation,1698.31, 24-Mar-2020
635,Revenue,CAHD,Academy Resource Base Funding,Other Public Bodies,Cabot Learning Federation,8593.33, 24-Mar-2020
636,Revenue,CAHD,Academy Resource Base Funding,Other Public Bodies,Cabot Learning Federation,8041.48, 24-Mar-2020
637,Revenue,CAHD,Academy Resource Base Funding,Other Public Bodies,Cabot Learning Federation,13845.26, 24-Mar-2020
638,Revenue,CAHD,Academy Resource Base Funding,Other Public Bodies,Cabot Learning Federation,1172.69, 24-Mar-2020
639,Revenue,CAHD,Academy Resource Base Funding,Other Public Bodies,Cabot Learning Federation,1172.69, 24-Mar-2020
640,Revenue,CAHD,Academy Resource Base Funding,Other Public Bodies,Cabot Learning Federation,1172.69, 24-Mar-2020
641,Revenue,CAHD,Academy Resource Base Funding,Other Public Bodies,Cabot Learning Federation,646.93, 24-Mar-2020
642,Revenue,CAHD,Academy Resource Base Funding,Other Public Bodies,Cabot Learning Federation,1698.31, 24-Mar-2020
643,Revenue,CAHD,Academy Resource Base Funding,Other Public Bodies,Cabot Learning Federation,1536.63, 24-Mar-2020
644,Revenue,CAHD,Academy Resource Base Funding,Other Public Bodies,Cabot Learning Federation,1536.63, 24-Mar-2020
645,Revenue,CAHD,Academy Resource Base Funding,Other Public Bodies,Cabot Learning Federation,1010.95, 24-Mar-2020
646,Revenue,CAHD,Academy Resource Base Funding,Other Public Bodies,Cabot Learning Federation,2183.55, 24-Mar-2020
647,Revenue,CAHD,Statemented Support Payments to OLAs,Other L.A.'s - General,Cabot Learning Federation,872.46, 20-Mar-2020
648,Revenue,CAHD,Statemented Support Academies,Other Public Bodies,Cabot Learning Federation,804.08, 20-Mar-2020
649,Revenue,CAHD,Statemented Support Academies,Other Public Bodies,Cabot Learning Federation,554.13, 20-Mar-2020
650,Revenue,CAHD,Statemented Support Academies,Other Public Bodies,Cabot Learning Federation,742.77, 20-Mar-2020
651,Revenue,CAHD,Statemented Support Academies,Other Public Bodies,Cabot Learning Federation,778.14, 20-Mar-2020
652,Revenue,CAHD,Statemented Support Academies,Other Public Bodies,Cabot Learning Federation,943.20, 20-Mar-2020
653,Revenue,CAHD,Statemented Support Academies,Other Public Bodies,Cabot Learning Federation,813.51, 20-Mar-2020
654,Revenue,CAHD,Schools Specific Grant Income,Other Public Bodies,Cabot Learning Federation,2550.00, 05-Mar-2020
655,Revenue,CAHD,Schools Block Growth Contingency,Other Public Bodies,Cabot Learning Federation,33445.48, 10-Mar-2020
656,Revenue,CAHD,High Risk Group Funding,Other Public Bodies,Cabot Learning Federation,972.00, 24-Mar-2020
657,Revenue,CAHD,High Risk Group Funding,Other Public Bodies,Cabot Learning Federation,1872.00, 24-Mar-2020
658,Revenue,CAHD,Schools Block Growth Contingency,Other Public Bodies,Cabot Learning Federation,75950.70, 10-Mar-2020
659,Revenue,CAHD,Statemented Support Payments to OLAs,Other L.A.'s - General,Cabot Learning Federation,601.29, 20-Mar-2020
660,Revenue,CAHD,Statemented Support Academies,Other Public Bodies,Cabot Learning Federation,860.67, 20-Mar-2020
661,Revenue,CAHD,Statemented Support Academies,Other Public Bodies,Cabot Learning Federation,589.50, 20-Mar-2020
662,Revenue,CAHD,Statemented Support Academies,Other Public Bodies,Cabot Learning Federation,801.72, 20-Mar-2020
663,Revenue,CAHD,Statemented Support Academies,Other Public Bodies,Cabot Learning Federation,1096.47, 20-Mar-2020
664,Revenue,CAHD,Statemented Support Academies,Other Public Bodies,Cabot Learning Federation,730.98, 20-Mar-2020
665,Revenue,CAHD,Statemented Support Academies,Other Public Bodies,Cabot Learning Federation,907.83, 20-Mar-2020
666,Revenue,CAHD,Statemented Support Academies,Other Public Bodies,Cabot Learning Federation,530.55, 20-Mar-2020
667,Revenue,CAHD,Statemented Support Academies,Other Public Bodies,Cabot Learning Federation,907.83, 20-Mar-2020
668,Revenue,CAHD,Health Promotion in Schools,Project Funding,Cabot Learning Federation,500.00, 17-Mar-2020
669,Revenue,CAHD,Schools Specific Grant Income,Other Public Bodies,Cabot Learning Federation,1500.00, 24-Mar-2020
670,Revenue,CAHD,Schools Specific Grant Income,Other Public Bodies,Cabot Learning Federation,1500.00, 24-Mar-2020
671,Revenue,CAHD,Schools Specific Grant Income,Other Public Bodies,Cabot Learning Federation,1500.00, 24-Mar-2020
672,Revenue,CAHD,Schools Specific Grant Income,Other Public Bodies,Cabot Learning Federation,500.00, 24-Mar-2020
673,Revenue,CAHD,Schools Specific Grant Income,Other Public Bodies,Cabot Learning Federation,1500.00, 24-Mar-2020
674,Revenue,CAHD,Schools Specific Grant Income,Other Public Bodies,Cabot Learning Federation,1500.00, 24-Mar-2020
675,Revenue,CAHD,Schools Specific Grant Income,Other Public Bodies,Cabot Learning Federation,2000.00, 24-Mar-2020
676,Revenue,CAHD,Schools Specific Grant Income,Other Public Bodies,Cabot Learning Federation,1500.00, 24-Mar-2020
677,Revenue,CAHD,Schools Specific Grant Income,Other Public Bodies,Cabot Learning Federation,5000.00, 24-Mar-2020
678,Revenue,CAHD,Statemented Support Payments to OLAs,Other L.A.'s - General,Cabot Learning Federation,1072.89, 20-Mar-2020
679,Revenue,CAHD,Statemented Support Academies,Other Public Bodies,Cabot Learning Federation,1296.90, 20-Mar-2020
680,Revenue,CAHD,Statemented Support Academies,Other Public Bodies,Cabot Learning Federation,872.46, 20-Mar-2020
681,Revenue,CAHD,Early Years High Needs Support,Other Private Contractors,Caerleon Childcare,515.71, 20-Mar-2020
682,Revenue,CAHD,North - bed purchasing and direct  payments,Fees & Charges Income - General,Caernarvon House,1105.86, 10-Mar-2020
683,Revenue,CAHD,North - Community based support,Permanent Nursing,Caernarvon House,4800.00, 10-Mar-2020
684,Revenue,CAHD,North - Community based support,Permanent Nursing,Caernarvon House,4710.40, 10-Mar-2020
685,Revenue,CAHD,South - Commissioned Services,Permanent Nursing,Caernarvon House,4710.40, 10-Mar-2020
686,Revenue,CAHD,North - S117,Permanent Nursing,Caernarvon House,3990.24, 10-Mar-2020
687,Revenue,CAHD,South - Commissioned Services,Permanent Nursing,Caernarvon House,4915.20, 10-Mar-2020
688,Revenue,CAHD,North - bed purchasing and direct  payments,Permanent Nursing,Caernarvon House,4733.76, 10-Mar-2020
689,Revenue,CAHD,South - Commissioned Services,Permanent Nursing,Caernarvon House,4800.00, 10-Mar-2020
690,Revenue,CAHD,South - Commissioned Services,Permanent Nursing,Caernarvon House,4300.80, 10-Mar-2020
691,Revenue,CAHD,South - S117,Permanent Nursing,Caernarvon House,4915.20, 10-Mar-2020
692,Revenue,CAHD,North - Community based support,Permanent Nursing,Caernarvon House,4800.00, 10-Mar-2020
693,Revenue,CAHD,South - Commissioned Services,Respite Emergency - Residential,Caernarvon House,7714.29, 10-Mar-2020
694,Revenue,CAHD,South - Commissioned Services,Respite Emergency - Residential,Caernarvon House,4800.00, 10-Mar-2020
695,Revenue,CAHD,Schools Specific Grant Income,Other Public Bodies,Caerphilly County Borough Council,630.00, 12-Mar-2020
696,Revenue,CAHD,CSC - Residential Placements,Permanent Residential,Cambian Childcare Ltd,19928.66, 17-Mar-2020
697,Revenue,CAHD,CSC - Residential Placements,Permanent Residential,Cambian Childcare Ltd,19042.99, 17-Mar-2020
698,Revenue,CAHD,North - Community based support,Day Care / Social Activities,Camphill Communities Thornbury Limited,856.13, 05-Mar-2020
699,Revenue,CAHD,North - Community based support,Other Small Contracts,Camphill Communities Thornbury Limited,553.41, 05-Mar-2020
700,Revenue,CAHD,North - Community based support,Supported Living,Camphill Communities Thornbury Limited,1064.25, 05-Mar-2020
701,Revenue,CAHD,North - Community based support,Day Care / Social Activities,Camphill Communities Thornbury Limited,988.57, 13-Mar-2020
702,Revenue,CAHD,North - Community based support,Other Small Contracts,Camphill Communities Thornbury Limited,548.68, 13-Mar-2020
703,Revenue,CAHD,North - Community based support,Supported Living,Camphill Communities Thornbury Limited,1040.60, 13-Mar-2020
704,Revenue,CAHD,North - Community based support,Day Care / Social Activities,Camphill Communities Thornbury Limited,1050.06, 20-Mar-2020
705,Revenue,CAHD,North - Community based support,Other Small Contracts,Camphill Communities Thornbury Limited,496.65, 20-Mar-2020
706,Revenue,CAHD,North - Community based support,Supported Living,Camphill Communities Thornbury Limited,903.43, 20-Mar-2020
707,Revenue,CAHD,North - Community based support,Day Care / Social Activities,Camphill Communities Thornbury Limited,614.90, 27-Mar-2020
708,Revenue,CAHD,North - Community based support,Other Small Contracts,Camphill Communities Thornbury Limited,662.20, 27-Mar-2020
709,Revenue,CAHD,North - Community based support,Supported Living,Camphill Communities Thornbury Limited,610.17, 27-Mar-2020
710,Revenue,CAHD,North - S117,Permanent Residential,Canjayor,3937.76, 10-Mar-2020
711,Revenue,CAHD,Information Systems - Software,Software Support & Maintenance,Capita Business Services Limited,138901.35, 30-Mar-2020
712,Revenue,CAHD,Practitioner Training Grant (PT),Grant Income - Government Depts,Capita Business Services Limited,2747.88, 12-Mar-2020
713,Revenue,CAHD,CSC - Asylum Seekers - Unaccompanied,Foster Parent Allowances,Capstone Foster Care (South West) Limited,3185.94, 04-Mar-2020
714,Revenue,CAHD,Central - Commissioned Services,Other Small Contracts,Care 1st Homecare,2929.92, 04-Mar-2020
715,Revenue,CAHD,Central - Commissioned Services,Other Small Contracts,Care 1st Homecare,2929.92, 04-Mar-2020
716,Revenue,CAHD,Central - Commissioned Services,Other Small Contracts,Care 1st Homecare,2929.92, 04-Mar-2020
717,Revenue,CAHD,Central - Commissioned Services,Other Small Contracts,Care 1st Homecare,2929.92, 17-Mar-2020
718,Revenue,CAHD,Central - Commissioned Services,Other Small Contracts,Care 1st Homecare,2520.08, 17-Mar-2020
719,Revenue,CAHD,Central - Commissioned Services,Other Small Contracts,Care 1st Homecare,2929.92, 24-Mar-2020
720,Revenue,CAHD,Central - Commissioned Services,Other Small Contracts,Care 1st Homecare,2934.28, 24-Mar-2020
721,Revenue,CAHD,Central - Commissioned Services,Other Small Contracts,Care 1st Homecare,2929.92, 31-Mar-2020
722,Revenue,CAHD,North - Community based support,Supported Living,Care Horizons,5328.72, 10-Mar-2020
723,Revenue,CAHD,North - Community based support,Supported Living,Care Horizons,5328.72, 10-Mar-2020
724,Revenue,CAHD,18-25 Year Olds,Other Small Contracts,Care Horizons Limited,77.28, 02-Mar-2020
725,Revenue,CAHD,Central - Commissioned Services,Other Small Contracts,Care Horizons Limited,1212.33, 02-Mar-2020
726,Revenue,CAHD,South - Commissioned Services,Other Small Contracts,Care Horizons Limited,284.97, 02-Mar-2020
727,Revenue,CAHD,North - Community based support,Day Care / Social Activities,Care Horizons Limited,400.89, 02-Mar-2020
728,Revenue,CAHD,North - Community based support,Other Small Contracts,Care Horizons Limited,792.12, 02-Mar-2020
729,Revenue,CAHD,Younger MH non-res purchasing,Other Small Contracts,Care Horizons Limited,115.92, 02-Mar-2020
730,Revenue,CAHD,Central - Commissioned Services,Other Small Contracts,Care Horizons Limited,941.85, 04-Mar-2020
731,Revenue,CAHD,South - Commissioned Services,Other Small Contracts,Care Horizons Limited,289.80, 04-Mar-2020
732,Revenue,CAHD,North - Community based support,Day Care / Social Activities,Care Horizons Limited,405.72, 04-Mar-2020
733,Revenue,CAHD,North - Community based support,Other Small Contracts,Care Horizons Limited,801.78, 04-Mar-2020
734,Revenue,CAHD,Younger MH non-res purchasing,Other Small Contracts,Care Horizons Limited,115.92, 04-Mar-2020
735,Revenue,CAHD,18-25 Year Olds,Other Small Contracts,Care Horizons Limited,77.28, 12-Mar-2020
736,Revenue,CAHD,Central - Commissioned Services,Other Small Contracts,Care Horizons Limited,1178.52, 12-Mar-2020
737,Revenue,CAHD,South - Commissioned Services,Other Small Contracts,Care Horizons Limited,289.80, 12-Mar-2020
738,Revenue,CAHD,North - Community based support,Day Care / Social Activities,Care Horizons Limited,405.72, 12-Mar-2020
739,Revenue,CAHD,North - Community based support,Other Small Contracts,Care Horizons Limited,859.74, 12-Mar-2020
740,Revenue,CAHD,Younger MH non-res purchasing,Other Small Contracts,Care Horizons Limited,115.92, 12-Mar-2020
741,Revenue,CAHD,18-25 Year Olds,Other Small Contracts,Care Horizons Limited,77.28, 19-Mar-2020
742,Revenue,CAHD,Central - Commissioned Services,Other Small Contracts,Care Horizons Limited,1057.77, 19-Mar-2020
743,Revenue,CAHD,South - Commissioned Services,Other Small Contracts,Care Horizons Limited,289.80, 19-Mar-2020
744,Revenue,CAHD,North - Community based support,Day Care / Social Activities,Care Horizons Limited,396.06, 19-Mar-2020
745,Revenue,CAHD,North - Community based support,Other Small Contracts,Care Horizons Limited,743.82, 19-Mar-2020
746,Revenue,CAHD,Younger MH non-res purchasing,Other Small Contracts,Care Horizons Limited,115.92, 19-Mar-2020
747,Revenue,CAHD,18-25 Year Olds,Other Small Contracts,Care Horizons Limited,77.28, 24-Mar-2020
748,Revenue,CAHD,Central - Commissioned Services,Other Small Contracts,Care Horizons Limited,922.53, 24-Mar-2020
749,Revenue,CAHD,South - Commissioned Services,Other Small Contracts,Care Horizons Limited,284.97, 24-Mar-2020
750,Revenue,CAHD,North - Community based support,Day Care / Social Activities,Care Horizons Limited,410.55, 24-Mar-2020
751,Revenue,CAHD,North - Community based support,Other Small Contracts,Care Horizons Limited,903.21, 24-Mar-2020
752,Revenue,CAHD,Younger MH non-res purchasing,Other Small Contracts,Care Horizons Limited,154.56, 24-Mar-2020
753,Revenue,CAHD,General EPH budgets,Other Supplies & Services,Care Quality Commission,8455.00, 04-Mar-2020
754,Revenue,CAHD,Central - Commissioned Services,Other Small Contracts,Carepride Ltd,1014.30, 30-Mar-2020
755,Revenue,CAHD,North - Community based support,Other Small Contracts,Carepride Ltd,652.05, 30-Mar-2020
756,Revenue,CAHD,Central - Commissioned Services,Other Small Contracts,Carepride Ltd,531.30, 30-Mar-2020
757,Revenue,CAHD,North - Community based support,Other Small Contracts,Carepride Ltd,676.20, 30-Mar-2020
758,Revenue,CAHD,North - Community based support,Other Small Contracts,Carepride Ltd,618.24, 30-Mar-2020
759,Revenue,CAHD,North - Community based support,Other Small Contracts,Carepride Ltd,627.90, 30-Mar-2020
760,Revenue,CAHD,Central - Commissioned Services,Other Small Contracts,Carepride Ltd,859.74, 30-Mar-2020
761,Revenue,CAHD,CSC - Care Leavers Independent Living,Independent Living,Caring for Communities and People,17317.96, 27-Mar-2020
762,Revenue,CAHD,Central - Commissioned Services,Other Small Contracts,Cartrefi Cymru Co-operative Ltd,7015.68, 16-Mar-2020
763,Revenue,CAHD,Statemented Support Academies,Other Public Bodies,Castle School Education Trust,530.55, 20-Mar-2020
764,Revenue,CAHD,Statemented Support Academies,Other Public Bodies,Castle School Education Trust,565.92, 20-Mar-2020
765,Revenue,CAHD,Statemented Support Academies,Other Public Bodies,Castle School Education Trust,778.14, 20-Mar-2020
766,Revenue,CAHD,Statemented Support Academies,Other Public Bodies,Castle School Education Trust,931.41, 20-Mar-2020
767,Revenue,CAHD,Statemented Support Academies,Other Public Bodies,Castle School Education Trust,542.34, 20-Mar-2020
768,Revenue,CAHD,Statemented Support Academies,Other Public Bodies,Castle School Education Trust,672.03, 20-Mar-2020
769,Revenue,CAHD,Statemented Support Academies,Other Public Bodies,Castle School Education Trust,577.71, 20-Mar-2020
770,Revenue,CAHD,Statemented Support Academies,Other Public Bodies,Castle School Education Trust,505.08, 20-Mar-2020
771,Revenue,CAHD,Statemented Support Academies,Other Public Bodies,Castle School Education Trust,860.67, 20-Mar-2020
772,Revenue,CAHD,Statemented Support Academies,Other Public Bodies,Castle School Education Trust,1461.96, 20-Mar-2020
773,Revenue,CAHD,Statemented Support Academies,Other Public Bodies,Castle School Education Trust,860.67, 20-Mar-2020
774,Revenue,CAHD,Statemented Support Academies,Other Public Bodies,Castle School Education Trust,1002.15, 20-Mar-2020
775,Revenue,CAHD,Statemented Support Academies,Other Public Bodies,Castle School Education Trust,613.08, 20-Mar-2020
776,Revenue,CAHD,Statemented Support Academies,Other Public Bodies,Castle School Education Trust,672.03, 20-Mar-2020
777,Revenue,CAHD,Statemented Support Academies,Other Public Bodies,Castle School Education Trust,1120.05, 20-Mar-2020
778,Revenue,CAHD,Statemented Support Academies,Other Public Bodies,Castle School Education Trust,636.66, 20-Mar-2020
779,Revenue,CAHD,Statemented Support Academies,Other Public Bodies,Castle School Education Trust,589.50, 20-Mar-2020
780,Revenue,CAHD,Statemented Support Academies,Other Public Bodies,Castle School Education Trust,589.08, 20-Mar-2020
781,Revenue,CAHD,Statemented Support Academies,Other Public Bodies,Castle School Education Trust,954.99, 20-Mar-2020
782,Revenue,CAHD,Statemented Support Academies,Other Public Bodies,Castle School Education Trust,577.71, 20-Mar-2020
783,Revenue,CAHD,Statemented Support Academies,Other Public Bodies,Castle School Education Trust,624.87, 20-Mar-2020
784,Revenue,CAHD,Statemented Support Academies,Other Public Bodies,Castle School Education Trust,825.30, 20-Mar-2020
785,Revenue,CAHD,Statemented Support Academies,Other Public Bodies,Castle School Education Trust,1190.79, 20-Mar-2020
786,Revenue,CAHD,Statemented Support Academies,Other Public Bodies,Castle School Education Trust,848.88, 20-Mar-2020
787,Revenue,CAHD,Statemented Support Academies,Other Public Bodies,Castle School Education Trust,1237.95, 20-Mar-2020
788,Revenue,CAHD,Statemented Support Academies,Other Public Bodies,Castle School Education Trust,1061.10, 20-Mar-2020
789,Revenue,CAHD,Statemented Support Academies,Other Public Bodies,Castle School Education Trust,518.76, 20-Mar-2020
790,Revenue,CAHD,Statemented Support Academies,Other Public Bodies,Castle School Education Trust,577.71, 20-Mar-2020
791,Revenue,CAHD,Statemented Support Academies,Other Public Bodies,Castle School Education Trust,1143.63, 20-Mar-2020
792,Revenue,CAHD,Statemented Support Academies,Other Public Bodies,Castle School Education Trust,1072.89, 20-Mar-2020
793,Revenue,CAHD,Schools Specific Grant Income - from OLA,Other Public Bodies,Castle School Education Trust,650.00, 16-Mar-2020
794,Revenue,CAHD,Schools Specific Grant Income - from OLA,Other Public Bodies,Castle School Education Trust,650.00, 16-Mar-2020
795,Revenue,CAHD,Statemented Support Academies,Other Public Bodies,Castle School Education Trust,1485.54, 20-Mar-2020
796,Revenue,CAHD,Statemented Support Academies,Other Public Bodies,Castle School Education Trust,1322.75, 20-Mar-2020
797,Revenue,CAHD,Statemented Support Academies,Other Public Bodies,Castle School Education Trust,943.17, 20-Mar-2020
798,Revenue,CAHD,Statemented Support Academies,Other Public Bodies,Castle School Education Trust,1267.50, 20-Mar-2020
799,Revenue,CAHD,Academy Resource Base Funding,Other Public Bodies,Castle School Education Trust,1698.31, 24-Mar-2020
800,Revenue,CAHD,Academy Resource Base Funding,Other Public Bodies,Castle School Education Trust,1698.31, 24-Mar-2020
801,Revenue,CAHD,Academy Resource Base Funding,Other Public Bodies,Castle School Education Trust,1698.31, 24-Mar-2020
802,Revenue,CAHD,Academy Resource Base Funding,Other Public Bodies,Castle School Education Trust,1698.31, 24-Mar-2020
803,Revenue,CAHD,Academy Resource Base Funding,Other Public Bodies,Castle School Education Trust,1698.31, 24-Mar-2020
804,Revenue,CAHD,Academy Resource Base Funding,Other Public Bodies,Castle School Education Trust,1698.31, 24-Mar-2020
805,Revenue,CAHD,Academy Resource Base Funding,Other Public Bodies,Castle School Education Trust,1698.31, 24-Mar-2020
806,Revenue,CAHD,Academy Resource Base Funding,Other Public Bodies,Castle School Education Trust,1698.31, 24-Mar-2020
807,Revenue,CAHD,Academy Resource Base Funding,Other Public Bodies,Castle School Education Trust,1698.31, 24-Mar-2020
808,Revenue,CAHD,Academy Resource Base Funding,Other Public Bodies,Castle School Education Trust,2183.55, 24-Mar-2020
809,Revenue,CAHD,Schools Block Growth Contingency,Other Public Bodies,Castle School Education Trust,47570.60, 10-Mar-2020
810,Revenue,CAHD,Schools Specific Grant Income,Other Public Bodies,Castle School Education Trust,500.00, 05-Mar-2020
811,Revenue,CAHD,Statemented Support Academies,Other Public Bodies,Castle School Education Trust,672.03, 20-Mar-2020
812,Revenue,CAHD,Statemented Support Academies,Other Public Bodies,Castle School Education Trust,872.46, 20-Mar-2020
813,Revenue,CAHD,Statemented Support Academies,Other Public Bodies,Castle School Education Trust,848.88, 20-Mar-2020
814,Revenue,CAHD,Statemented Support Academies,Other Public Bodies,Castle School Education Trust,1556.28, 20-Mar-2020
815,Revenue,CAHD,Statemented Support Academies,Other Public Bodies,Castle School Education Trust,1025.73, 20-Mar-2020
816,Revenue,CAHD,Schools Specific Grant Income,Other Public Bodies,Castle School Education Trust,4480.00, 30-Mar-2020
817,Revenue,CAHD,Schools Specific Grant Income,Other Public Bodies,Castle School Education Trust,1000.00, 24-Mar-2020
818,Revenue,CAHD,Schools Specific Grant Income,Other Public Bodies,Castle School Education Trust,5000.00, 24-Mar-2020
819,Revenue,CAHD,Schools Specific Grant Income,Other Public Bodies,Castle School Education Trust,500.00, 24-Mar-2020
820,Revenue,CAHD,Schools Specific Grant Income,Other Public Bodies,Castle School Education Trust,2000.00, 24-Mar-2020
821,Revenue,CAHD,Statemented Support Academies,Other Public Bodies,Castle School Education Trust,630.58, 20-Mar-2020
822,Revenue,CAHD,Statemented Support Academies,Other Public Bodies,Castle School Education Trust,778.14, 20-Mar-2020
823,Revenue,CAHD,Statemented Support Academies,Other Public Bodies,Castle School Education Trust,613.08, 20-Mar-2020
824,Revenue,CAHD,Statemented Support Academies,Other Public Bodies,Castle School Education Trust,4620.00, 10-Mar-2020
825,Revenue,CAHD,High Risk Group Funding,Other Public Bodies,Castle School Educational Turust,4150.00, 09-Mar-2020
826,Revenue,CAHD,High Risk Group Funding,Other Public Bodies,Castle School Educational Turust,5450.00, 09-Mar-2020
827,Revenue,CAHD,High Risk Group Funding,Other Public Bodies,Castle School Educational Turust,5650.00, 09-Mar-2020
828,Revenue,CAHD,Statemented Support Academies,Other Public Bodies,Castle School Educational Turust,1148.20, 20-Mar-2020
829,Revenue,CAHD,Statemented Support Academies,Other Public Bodies,Castle School Educational Turust,788.68, 20-Mar-2020
830,Revenue,CAHD,Statemented Support Academies,Other Public Bodies,Castle School Educational Turust,1497.33, 20-Mar-2020
831,Revenue,CAHD,Schools Specific Grant Income,Other Public Bodies,Castle School Educational Turust,1500.00, 24-Mar-2020
832,Revenue,CAHD,Schools Specific Grant Income,Other Public Bodies,Castle School Educational Turust,1500.00, 24-Mar-2020
833,Revenue,CAHD,CSC - Care Leavers Support Costs,Membership Fees,Catch 22 Charity Ltd,2995.00, 03-Mar-2020
834,Revenue,CAHD,North - Community based support,Day Care / Social Activities,Causeway House,2133.96, 10-Mar-2020
835,Revenue,CAHD,Central - Commissioned Services,Day Care / Social Activities,Causeway House,630.71, 10-Mar-2020
836,Revenue,CAHD,Central - Commissioned Services,Day Care / Social Activities,Causeway House,1291.49, 10-Mar-2020
837,Revenue,CAHD,Central - Commissioned Services,Day Care / Social Activities,Causeway House,1231.48, 10-Mar-2020
838,Revenue,CAHD,South - Commissioned Services,Day Care / Social Activities,Causeway House,5253.12, 10-Mar-2020
839,Revenue,CAHD,18-25 Year Olds,Day Care / Social Activities,Causeway House,1418.72, 10-Mar-2020
840,Revenue,CAHD,18-25 Year Olds,Day Care / Social Activities,Causeway House,4414.64, 10-Mar-2020
841,Revenue,CAHD,Central - Commissioned Services,Day Care / Social Activities,Causeway House,3599.36, 10-Mar-2020
842,Revenue,CAHD,Central - Commissioned Services,Day Care / Social Activities,Causeway House,3891.60, 10-Mar-2020
843,Revenue,CAHD,Central - Commissioned Services,Day Care / Social Activities,Causeway House,1704.96, 10-Mar-2020
844,Revenue,CAHD,North - Community based support,Day Care / Social Activities,Causeway House,3226.20, 10-Mar-2020
845,Revenue,CAHD,North - Community based support,Day Care / Social Activities,Causeway House,4806.44, 10-Mar-2020
846,Revenue,CAHD,Central - Commissioned Services,Day Care / Social Activities,Causeway House,3652.12, 10-Mar-2020
847,Revenue,CAHD,North - Community based support,Day Care / Social Activities,Causeway House,3149.08, 10-Mar-2020
848,Revenue,CAHD,North - Community based support,Day Care / Social Activities,Causeway House,568.32, 10-Mar-2020
849,Revenue,CAHD,Training - Adult Services,Training Expenses,Central Consultancy & Training,9133.75, 20-Mar-2020
850,Revenue,CAHD,South - Commissioned Services,Permanent Residential,Challenge House,2834.44, 10-Mar-2020
851,Revenue,CAHD,South - Commissioned Services,Permanent Residential,Challenge House,2836.00, 10-Mar-2020
852,Revenue,CAHD,South - Commissioned Services,Permanent Residential,Challenge House,709.00, 10-Mar-2020
853,Revenue,CAHD,North - S117,Permanent Residential,Challenge House,2571.40, 10-Mar-2020
854,Revenue,CAHD,North - Community based support,Permanent Residential,Challenge House,2233.00, 10-Mar-2020
855,Revenue,CAHD,Central - Commissioned Services,Permanent Residential,Challenge House,2365.60, 10-Mar-2020
856,Revenue,CAHD,Central - Commissioned Services,Permanent Residential,Challenge House,2363.40, 10-Mar-2020
857,Revenue,CAHD,North - Community based support,Permanent Residential,Challenge House,2363.40, 10-Mar-2020
858,Revenue,CAHD,North - Community based support,Permanent Residential,Challenge House,2525.71, 10-Mar-2020
859,Revenue,CAHD,North - Community based support,Permanent Residential,Challenge House,2834.40, 10-Mar-2020
860,Revenue,CAHD,North - Community based support,Permanent Nursing,Challenge House,3130.36, 10-Mar-2020
861,Revenue,CAHD,North - S117,Permanent Nursing,Challenge House,2395.80, 10-Mar-2020
862,Revenue,CAHD,Central - Commissioned Services,Permanent Nursing,Challenge House,3056.00, 10-Mar-2020
863,Revenue,CAHD,North - Community based support,Permanent Nursing,Challenge House,2571.40, 10-Mar-2020
864,Revenue,CAHD,South Glos Users in South Glos Homes,Permanent Nursing,Challenge House,662.24, 10-Mar-2020
865,Revenue,CAHD,North - Community based support,Permanent Nursing,Challenge House,2395.80, 10-Mar-2020
866,Revenue,CAHD,North - Community based support,Permanent Nursing,Challenge House,3130.36, 10-Mar-2020
867,Revenue,CAHD,North - Community based support,Respite Planned - Nursing,Challenge House,1071.43, 10-Mar-2020
868,Revenue,CAHD,South Glos Users in South Glos Homes,Permanent Nursing,Challenge House,662.24, 10-Mar-2020
869,Revenue,CAHD,South - Commissioned Services,Permanent Nursing,Challenge House,2884.20, 10-Mar-2020
870,Revenue,CAHD,South Glos Users in South Glos Homes,Permanent Nursing,Challenge House,662.24, 10-Mar-2020
871,Revenue,CAHD,North - Community based support,Permanent Nursing,Challenge House,3335.08, 10-Mar-2020
872,Revenue,CAHD,South Glos Users in South Glos Homes,Permanent Nursing,Challenge House,662.24, 10-Mar-2020
873,Revenue,CAHD,North - Community based support,Permanent Nursing,Challenge House,3208.48, 10-Mar-2020
874,Revenue,CAHD,South Glos Users in South Glos Homes,Permanent Nursing,Challenge House,662.24, 10-Mar-2020
875,Revenue,CAHD,South Glos Users in South Glos Homes,Permanent Nursing,Challenge House,662.24, 10-Mar-2020
876,Revenue,CAHD,North - Community based support,Permanent Nursing,Challenge House,3338.84, 10-Mar-2020
877,Revenue,CAHD,South Glos Users in South Glos Homes,Permanent Nursing,Challenge House,662.24, 10-Mar-2020
878,Revenue,CAHD,South - Commissioned Services,Permanent Nursing,Challenge House,3000.00, 10-Mar-2020
879,Revenue,CAHD,South Glos Users in South Glos Homes,Permanent Nursing,Challenge House,662.24, 10-Mar-2020
880,Revenue,CAHD,South - Commissioned Services,Permanent Residential,Challenge House,3000.00, 10-Mar-2020
881,Revenue,CAHD,South Glos Users in South Glos Homes,Permanent Nursing,Challenge House,662.24, 10-Mar-2020
882,Revenue,CAHD,Central - Commissioned Services,Permanent Nursing,Challenge House,3000.00, 10-Mar-2020
883,Revenue,CAHD,North - Community based support,Respite Emergency - Residential,Challenge House,1516.00, 10-Mar-2020
884,Revenue,CAHD,North - Community based support,Respite Emergency - Residential,Challenge House,1516.00, 10-Mar-2020
885,Revenue,CAHD,South Glos Users in South Glos Homes,Permanent Nursing,Challenge House,662.24, 10-Mar-2020
886,Revenue,CAHD,North - Community based support,Permanent Nursing,Challenge House,2827.52, 10-Mar-2020
887,Revenue,CAHD,South Glos Users in South Glos Homes,Permanent Nursing,Challenge House,662.24, 10-Mar-2020
888,Revenue,CAHD,North - Community based support,Permanent Nursing,Challenge House,3338.84, 10-Mar-2020
889,Revenue,CAHD,South Glos Users in South Glos Homes,Permanent Nursing,Challenge House,662.24, 10-Mar-2020
890,Revenue,CAHD,South Glos Users in South Glos Homes,Permanent Nursing,Challenge House,662.24, 10-Mar-2020
891,Revenue,CAHD,North - Community based support,Permanent Nursing,Challenge House,2827.52, 10-Mar-2020
892,Revenue,CAHD,South Glos Users in South Glos Homes,Permanent Nursing,Challenge House,662.24, 10-Mar-2020
893,Revenue,CAHD,South Glos Users in South Glos Homes,Permanent Nursing,Challenge House,662.24, 10-Mar-2020
894,Revenue,CAHD,EARLY YEARS DEPRIVATION PAYMENT,Preventative Assistance,Charfield Pre-School,924.69, 24-Mar-2020
895,Revenue,CAHD,Alexandra Way,"Provisions (Food, etc)",Charles Saunders Limited,626.46, 23-Mar-2020
896,Revenue,CAHD,Training - Adult Services,Training Expenses,Individual,550.00, 30-Mar-2020
897,Revenue,CAHD,Schools Block Growth Contingency,Other Public Bodies,Charlton Wood Primary Academy,29166.67, 10-Mar-2020
898,Revenue,CAHD,Statemented Support Academies,Other Public Bodies,Charlton Wood Primary Academy,702.17, 20-Mar-2020
899,Revenue,CAHD,Central - Commissioned Services,Other Small Contracts,Cherish Able Care Limited,2123.77, 04-Mar-2020
900,Revenue,CAHD,South - Commissioned Services,Other Small Contracts,Cherish Able Care Limited,4724.14, 04-Mar-2020
901,Revenue,CAHD,North - Community based support,Other Small Contracts,Cherish Able Care Limited,1239.26, 04-Mar-2020
902,Revenue,CAHD,Central - Commissioned Services,Other Small Contracts,Cherish Able Care Limited,2119.04, 04-Mar-2020
903,Revenue,CAHD,South - Commissioned Services,Other Small Contracts,Cherish Able Care Limited,4707.24, 04-Mar-2020
904,Revenue,CAHD,North - Community based support,Other Small Contracts,Cherish Able Care Limited,1135.20, 04-Mar-2020
905,Revenue,CAHD,Central - Commissioned Services,Other Small Contracts,Cherish Able Care Limited,2123.77, 12-Mar-2020
906,Revenue,CAHD,South - Commissioned Services,Other Small Contracts,Cherish Able Care Limited,4749.12, 12-Mar-2020
907,Revenue,CAHD,North - Community based support,Other Small Contracts,Cherish Able Care Limited,1220.34, 12-Mar-2020
908,Revenue,CAHD,Central - Commissioned Services,Other Small Contracts,Cherish Able Care Limited,2076.47, 19-Mar-2020
909,Revenue,CAHD,South - Commissioned Services,Other Small Contracts,Cherish Able Care Limited,4657.92, 19-Mar-2020
910,Revenue,CAHD,North - Community based support,Other Small Contracts,Cherish Able Care Limited,1220.34, 19-Mar-2020
911,Revenue,CAHD,Central - Commissioned Services,Other Small Contracts,Cherish Able Care Limited,2114.31, 24-Mar-2020
912,Revenue,CAHD,South - Commissioned Services,Other Small Contracts,Cherish Able Care Limited,4430.19, 24-Mar-2020
913,Revenue,CAHD,North - Community based support,Other Small Contracts,Cherish Able Care Limited,1196.69, 24-Mar-2020
914,Revenue,CAHD,18-25 Year Olds,Other Small Contracts,Cherry Orchards,3188.02, 12-Mar-2020
915,Revenue,CAHD,South - Commissioned Services,Supported Living,Cherry Orchards,1154.12, 02-Mar-2020
916,Revenue,CAHD,18-25 Year Olds,Other Small Contracts,Cherry Orchards,775.72, 05-Mar-2020
917,Revenue,CAHD,18-25 Year Olds,Other Small Contracts,Cherry Orchards,2374.46, 05-Mar-2020
918,Revenue,CAHD,18-25 Year Olds,Other Small Contracts,Cherry Orchards,2960.98, 27-Mar-2020
919,Revenue,CAHD,South - Commissioned Services,Supported Living,Cherry Orchards,1286.56, 05-Mar-2020
920,Revenue,CAHD,South - Commissioned Services,Supported Living,Cherry Orchards,1286.56, 27-Mar-2020
921,Revenue,CAHD,18-25 Year Olds,Other Small Contracts,Cherry Orchards,1560.90, 11-Mar-2020
922,Revenue,CAHD,18-25 Year Olds,Other Small Contracts,Cherry Orchards,1589.28, 27-Mar-2020
923,Revenue,CAHD,South - Commissioned Services,Other Small Contracts,Cherry Orchards,6357.19, 25-Mar-2020
924,Revenue,CAHD,South - Commissioned Services,Other Small Contracts,Cherry Orchards,6357.19, 27-Mar-2020
925,Revenue,CAHD,18-25 Year Olds,Supported Living,Cherry Orchards,1682.00, 10-Mar-2020
926,Revenue,CAHD,South - Commissioned Services,Supported Living,Cherry Orchards,2044.96, 10-Mar-2020
927,Revenue,CAHD,18-25 Year Olds,Supported Living,Cherry Orchards,1990.72, 10-Mar-2020
928,Revenue,CAHD,North - Community based support,Supported Living,Cherry Orchards,1022.52, 10-Mar-2020
929,Revenue,CAHD,S28A cases,Permanent Residential,Chescombe Trust Ltd,9764.44, 10-Mar-2020
930,Revenue,CAHD,Training Budget - Children`s Social Serv,Training Expenses,Child Bereavement UK,894.20, 19-Mar-2020
931,Revenue,CAHD,18-25 Year Olds,Other Small Contracts,Cintre,39.04, 04-Mar-2020
932,Revenue,CAHD,Central - Commissioned Services,Other Small Contracts,Cintre,351.36, 04-Mar-2020
933,Revenue,CAHD,South - Commissioned Services,Other Small Contracts,Cintre,956.48, 04-Mar-2020
934,Revenue,CAHD,18-25 Year Olds,Other Small Contracts,Cintre,78.08, 12-Mar-2020
935,Revenue,CAHD,Central - Commissioned Services,Other Small Contracts,Cintre,312.32, 12-Mar-2020
936,Revenue,CAHD,South - Commissioned Services,Other Small Contracts,Cintre,1005.28, 12-Mar-2020
937,Revenue,CAHD,18-25 Year Olds,Other Small Contracts,Cintre,39.04, 20-Mar-2020
938,Revenue,CAHD,Central - Commissioned Services,Other Small Contracts,Cintre,390.40, 20-Mar-2020
939,Revenue,CAHD,South - Commissioned Services,Other Small Contracts,Cintre,1015.04, 20-Mar-2020
940,Revenue,CAHD,18-25 Year Olds,Other Small Contracts,Cintre,78.08, 24-Mar-2020
941,Revenue,CAHD,Central - Commissioned Services,Other Small Contracts,Cintre,375.76, 24-Mar-2020
942,Revenue,CAHD,South - Commissioned Services,Other Small Contracts,Cintre,1005.28, 24-Mar-2020
943,Revenue,CAHD,18-25 Year Olds,Other Small Contracts,Cintre,78.08, 31-Mar-2020
944,Revenue,CAHD,Central - Commissioned Services,Other Small Contracts,Cintre,370.88, 31-Mar-2020
945,Revenue,CAHD,South - Commissioned Services,Other Small Contracts,Cintre,1015.04, 31-Mar-2020
946,Revenue,CAHD,Learning Difficulties,Premises Hire,Circadian Trust,520.04, 16-Mar-2020
947,Revenue,CAHD,South - Commissioned Services,Permanent Residential,Clearwater Care,5280.28, 10-Mar-2020
948,Revenue,CAHD,South - Commissioned Services,Permanent Residential,Cleeve Lodge,3686.40, 10-Mar-2020
949,Revenue,CAHD,South - Commissioned Services,Permanent Residential,Cleeve Lodge,3686.40, 10-Mar-2020
950,Revenue,CAHD,South - Commissioned Services,Permanent Residential,Cleeve Lodge,1308.44, 10-Mar-2020
951,Revenue,CAHD,South - Commissioned Services,Permanent Residential,Cleeve Lodge,2921.68, 10-Mar-2020
952,Revenue,CAHD,South - Commissioned Services,Respite Planned - Residential,Cleeve Lodge,1414.29, 10-Mar-2020
953,Revenue,CAHD,South - Commissioned Services,Respite Planned - Residential,Cleeve Lodge,785.71, 10-Mar-2020
954,Revenue,CAHD,South - Commissioned Services,Permanent Residential,Cleeve Lodge,7542.86, 10-Mar-2020
955,Revenue,CAHD,South - Commissioned Services,Permanent Residential,Cleeve Lodge,2042.86, 10-Mar-2020
956,Revenue,CAHD,South - Commissioned Services,Permanent Residential,Cleeve Lodge,2357.14, 10-Mar-2020
957,Revenue,CAHD,South - Commissioned Services,Permanent Residential,Cleeve Lodge,7542.86, 10-Mar-2020
958,Revenue,CAHD,South - Commissioned Services,Fees & Charges Income - General,Cleeve Lodge,955.78, 10-Mar-2020
959,Revenue,CAHD,South - Commissioned Services,Permanent Residential,Cleeve Lodge,4000.00, 10-Mar-2020
960,Revenue,CAHD,South - Commissioned Services,Permanent Residential,Cleeve Lodge,4000.00, 10-Mar-2020
961,Revenue,CAHD,North - Community based support,Respite Planned - Residential,Cleeve Lodge,3428.57, 10-Mar-2020
962,Revenue,CAHD,North - Community based support,Respite Planned - Residential,Cleeve Lodge,2571.43, 10-Mar-2020
963,Revenue,CAHD,South - Commissioned Services,Permanent Residential,Cleeve Lodge,2893.00, 10-Mar-2020
964,Revenue,CAHD,South - Commissioned Services,Permanent Residential,Cleeve Lodge,2635.60, 10-Mar-2020
965,Revenue,CAHD,North - Community based support,Permanent Nursing,Clevedon Court Nursing Home,3448.16, 10-Mar-2020
966,Revenue,CAHD,Resilience Team,Reimbursements to Schools - Recharges,CLH Healthcare,871.50, 04-Mar-2020
967,Revenue,CAHD,North - Community based support,Other Small Contracts,Clover Health and Home Care Ltd,509.76, 16-Mar-2020
968,Revenue,CAHD,Central - Commissioned Services,Other Small Contracts,Clover Health and Home Care Ltd,2166.48, 16-Mar-2020
969,Revenue,CAHD,Central - Commissioned Services,Other Small Contracts,Clover Health and Home Care Ltd,2389.50, 23-Mar-2020
970,Revenue,CAHD,Central - Commissioned Services,Other Small Contracts,Clover Health and Home Care Ltd,870.84, 03-Mar-2020
971,Revenue,CAHD,Central - Commissioned Services,Other Small Contracts,Clover Health and Home Care Ltd,1210.68, 16-Mar-2020
972,Revenue,CAHD,South - Commissioned Services,Permanent Residential,Collingwood Care Home,2826.24, 10-Mar-2020
973,Revenue,CAHD,South - Commissioned Services,Permanent Residential,Collingwood Care Home,2241.28, 10-Mar-2020
974,Revenue,CAHD,North - Community based support,Permanent Residential,Collingwood Care Home,3000.00, 10-Mar-2020
975,Revenue,CAHD,South - Commissioned Services,Permanent Residential,Collingwood Care Home,2504.28, 10-Mar-2020
976,Revenue,CAHD,South - Commissioned Services,Permanent Residential,Community Theraputic Services,7893.40, 10-Mar-2020
977,Revenue,CAHD,Jointly Funded H&SC Packages,Permanent Residential,Community Theraputic Services,4875.84, 10-Mar-2020
978,Revenue,CAHD,Jointly Funded H&SC Packages,Permanent Residential,Community Theraputic Services,2027.52, 10-Mar-2020
979,Revenue,CAHD,North - Community based support,Permanent Residential,Community Theraputic Services,8119.76, 10-Mar-2020
980,Revenue,CAHD,South - Commissioned Services,Respite Planned - Residential,Concorde Lodge,2715.37, 10-Mar-2020
981,Revenue,CAHD,Bed and Breakfast,Bed & Breakfast,Connolly & Callaghan Limited,448.00, 03-Mar-2020
982,Revenue,CAHD,Bed and Breakfast,Bed & Breakfast,Connolly & Callaghan Limited,910.00, 04-Mar-2020
983,Revenue,CAHD,Bed and Breakfast,Bed & Breakfast,Connolly & Callaghan Limited,714.00, 03-Mar-2020
984,Revenue,CAHD,Bed and Breakfast,Bed & Breakfast,Connolly & Callaghan Limited,497.00, 03-Mar-2020
985,Revenue,CAHD,Bed and Breakfast,Bed & Breakfast,Connolly & Callaghan Limited,1181.00, 03-Mar-2020
986,Revenue,CAHD,Bed and Breakfast,Bed & Breakfast,Connolly & Callaghan Limited,497.00, 02-Mar-2020
987,Revenue,CAHD,Bed and Breakfast,Bed & Breakfast,Connolly & Callaghan Limited,448.00, 10-Mar-2020
988,Revenue,CAHD,Bed and Breakfast,Bed & Breakfast,Connolly & Callaghan Limited,910.00, 10-Mar-2020
989,Revenue,CAHD,Bed and Breakfast,Bed & Breakfast,Connolly & Callaghan Limited,539.00, 11-Mar-2020
990,Revenue,CAHD,Bed and Breakfast,Bed & Breakfast,Connolly & Callaghan Limited,455.00, 10-Mar-2020
991,Revenue,CAHD,Bed and Breakfast,Bed & Breakfast,Connolly & Callaghan Limited,714.00, 10-Mar-2020
992,Revenue,CAHD,Bed and Breakfast,Bed & Breakfast,Connolly & Callaghan Limited,539.00, 10-Mar-2020
993,Revenue,CAHD,Bed and Breakfast,Bed & Breakfast,Connolly & Callaghan Limited,497.00, 10-Mar-2020
994,Revenue,CAHD,Bed and Breakfast,Bed & Breakfast,Connolly & Callaghan Limited,756.00, 10-Mar-2020
995,Revenue,CAHD,Bed and Breakfast,Bed & Breakfast,Connolly & Callaghan Limited,455.00, 10-Mar-2020
996,Revenue,CAHD,Bed and Breakfast,Bed & Breakfast,Connolly & Callaghan Limited,497.00, 10-Mar-2020
997,Revenue,CAHD,Bed and Breakfast,Bed & Breakfast,Connolly & Callaghan Limited,448.00, 13-Mar-2020
998,Revenue,CAHD,Bed and Breakfast,Bed & Breakfast,Connolly & Callaghan Limited,910.00, 13-Mar-2020
999,Revenue,CAHD,Bed and Breakfast,Bed & Breakfast,Connolly & Callaghan Limited,455.00, 12-Mar-2020
1000,Revenue,CAHD,Bed and Breakfast,Bed & Breakfast,Connolly & Callaghan Limited,714.00, 16-Mar-2020
1001,Revenue,CAHD,Bed and Breakfast,Bed & Breakfast,Connolly & Callaghan Limited,539.00, 18-Mar-2020
1002,Revenue,CAHD,Bed and Breakfast,Bed & Breakfast,Connolly & Callaghan Limited,756.00, 13-Mar-2020
1003,Revenue,CAHD,Bed and Breakfast,Bed & Breakfast,Connolly & Callaghan Limited,455.00, 12-Mar-2020
1004,Revenue,CAHD,Bed and Breakfast,Bed & Breakfast,Connolly & Callaghan Limited,448.00, 16-Mar-2020
1005,Revenue,CAHD,Bed and Breakfast,Bed & Breakfast,Connolly & Callaghan Limited,910.00, 17-Mar-2020
1006,Revenue,CAHD,Bed and Breakfast,Bed & Breakfast,Connolly & Callaghan Limited,455.00, 18-Mar-2020
1007,Revenue,CAHD,Bed and Breakfast,Bed & Breakfast,Connolly & Callaghan Limited,714.00, 17-Mar-2020
1008,Revenue,CAHD,Bed and Breakfast,Bed & Breakfast,Connolly & Callaghan Limited,539.00, 16-Mar-2020
1009,Revenue,CAHD,Bed and Breakfast,Bed & Breakfast,Connolly & Callaghan Limited,539.00, 16-Mar-2020
1010,Revenue,CAHD,Bed and Breakfast,Bed & Breakfast,Connolly & Callaghan Limited,665.00, 16-Mar-2020
1011,Revenue,CAHD,Bed and Breakfast,Bed & Breakfast,Connolly & Callaghan Limited,455.00, 16-Mar-2020
1012,Revenue,CAHD,Bed and Breakfast,Bed & Breakfast,Connolly & Callaghan Limited,448.00, 19-Mar-2020
1013,Revenue,CAHD,Bed and Breakfast,Bed & Breakfast,Connolly & Callaghan Limited,581.00, 23-Mar-2020
1014,Revenue,CAHD,Bed and Breakfast,Bed & Breakfast,Connolly & Callaghan Limited,539.00, 24-Mar-2020
1015,Revenue,CAHD,Bed and Breakfast,Bed & Breakfast,Connolly & Callaghan Limited,455.00, 24-Mar-2020
1016,Revenue,CAHD,Bed and Breakfast,Bed & Breakfast,Connolly & Callaghan Limited,714.00, 23-Mar-2020
1017,Revenue,CAHD,Bed and Breakfast,Bed & Breakfast,Connolly & Callaghan Limited,539.00, 19-Mar-2020
1018,Revenue,CAHD,Bed and Breakfast,Bed & Breakfast,Connolly & Callaghan Limited,539.00, 19-Mar-2020
1019,Revenue,CAHD,Bed and Breakfast,Bed & Breakfast,Connolly & Callaghan Limited,665.00, 19-Mar-2020
1020,Revenue,CAHD,Bed and Breakfast,Bed & Breakfast,Connolly & Callaghan Limited,455.00, 19-Mar-2020
1021,Revenue,CAHD,Bed and Breakfast,Bed & Breakfast,Connolly & Callaghan Limited,448.00, 27-Mar-2020
1022,Revenue,CAHD,Bed and Breakfast,Bed & Breakfast,Connolly & Callaghan Limited,581.00, 31-Mar-2020
1023,Revenue,CAHD,Bed and Breakfast,Bed & Breakfast,Connolly & Callaghan Limited,539.00, 27-Mar-2020
1024,Revenue,CAHD,Housing Needs,Fees - General,Connolly & Callaghan Limited,455.00, 31-Mar-2020
1025,Revenue,CAHD,Bed and Breakfast,Bed & Breakfast,Connolly & Callaghan Limited,714.00, 31-Mar-2020
1026,Revenue,CAHD,Bed and Breakfast,Bed & Breakfast,Connolly & Callaghan Limited,455.00, 27-Mar-2020
1027,Revenue,CAHD,Bed and Breakfast,Bed & Breakfast,Connolly & Callaghan Limited,593.60, 31-Mar-2020
1028,Revenue,CAHD,Bed and Breakfast,Bed & Breakfast,Connolly & Callaghan Limited,422.80, 31-Mar-2020
1029,Revenue,CAHD,Bed and Breakfast,Bed & Breakfast,Connolly & Callaghan Limited,764.40, 30-Mar-2020
1030,Revenue,CAHD,Bed and Breakfast,Bed & Breakfast,Connolly & Callaghan Limited,727.30, 31-Mar-2020
1031,Revenue,CAHD,Bed and Breakfast,Bed & Breakfast,Connolly & Callaghan Limited,548.80, 30-Mar-2020
1032,Revenue,CAHD,Bed and Breakfast,Bed & Breakfast,Connolly & Callaghan Limited,422.80, 31-Mar-2020
1033,Revenue,CAHD,Bed and Breakfast,Bed & Breakfast,Connolly & Callaghan Limited,490.50, 30-Mar-2020
1034,Revenue,CAHD,Bed and Breakfast,Bed & Breakfast,Connolly & Callaghan Limited,463.40, 30-Mar-2020
1035,Revenue,CAHD,Bed and Breakfast,Bed & Breakfast,Connolly & Callaghan Limited,463.40, 31-Mar-2020
1036,Revenue,CAHD,Bed and Breakfast,Bed & Breakfast,Connolly & Callaghan Limited,422.80, 30-Mar-2020
1037,Revenue,CAHD,Bed and Breakfast,Bed & Breakfast,Connolly & Callaghan Limited,550.20, 30-Mar-2020
1038,Revenue,CAHD,Bed and Breakfast,Bed & Breakfast,Connolly & Callaghan Limited,593.60, 31-Mar-2020
1039,Revenue,CAHD,Bed and Breakfast,Bed & Breakfast,Connolly & Callaghan Limited,422.80, 31-Mar-2020
1040,Revenue,CAHD,Bed and Breakfast,Bed & Breakfast,Connolly & Callaghan Limited,764.40, 31-Mar-2020
1041,Revenue,CAHD,Bed and Breakfast,Bed & Breakfast,Connolly & Callaghan Limited,727.30, 31-Mar-2020
1042,Revenue,CAHD,Bed and Breakfast,Bed & Breakfast,Connolly & Callaghan Limited,548.80, 31-Mar-2020
1043,Revenue,CAHD,Bed and Breakfast,Bed & Breakfast,Connolly & Callaghan Limited,686.70, 31-Mar-2020
1044,Revenue,CAHD,Bed and Breakfast,Bed & Breakfast,Connolly & Callaghan Limited,679.00, 31-Mar-2020
1045,Revenue,CAHD,Bed and Breakfast,Bed & Breakfast,Connolly & Callaghan Limited,463.40, 31-Mar-2020
1046,Revenue,CAHD,Bed and Breakfast,Bed & Breakfast,Connolly & Callaghan Limited,463.40, 31-Mar-2020
1047,Revenue,CAHD,Bed and Breakfast,Bed & Breakfast,Connolly & Callaghan Limited,422.80, 31-Mar-2020
1048,Revenue,CAHD,Bed and Breakfast,Bed & Breakfast,Connolly & Callaghan Limited,641.90, 31-Mar-2020
1049,Revenue,CAHD,Bed and Breakfast,Bed & Breakfast,Connolly & Callaghan Limited,593.60, 31-Mar-2020
1050,Revenue,CAHD,Bed and Breakfast,Bed & Breakfast,Connolly & Callaghan Limited,422.80, 31-Mar-2020
1051,Revenue,CAHD,Bed and Breakfast,Bed & Breakfast,Connolly & Callaghan Limited,727.30, 31-Mar-2020
1052,Revenue,CAHD,Bed and Breakfast,Bed & Breakfast,Connolly & Callaghan Limited,463.40, 31-Mar-2020
1053,Revenue,CAHD,CSC - Vinney Green Secure Unit,Service Contracts (Premises),Coram Voice,1948.50, 30-Mar-2020
1054,Revenue,CAHD,CSC - Fostering Carer Support,Care Mgt/Asesmnt Staff Pay,Core Assets Expert Services Ltd T/A Carter Brown,2400.00, 12-Mar-2020
1055,Revenue,CAHD,CSC - Fostering Carer Support,Care Mgt/Asesmnt Staff Pay,Core Assets Expert Services Ltd T/A Carter Brown,2400.00, 18-Mar-2020
1056,Revenue,CAHD,Alexandra Way,Cleaning & Domestic Services,Countrywide Healthcare Supplies Ltd,1132.18, 20-Mar-2020
1057,Revenue,CAHD,Alexandra Way,Cleaning & Domestic Services,Countrywide Healthcare Supplies Ltd,616.84, 31-Mar-2020
1058,Revenue,CAHD,North - Community based support,Respite Planned - Residential,Court House Residential C.H.,1457.14, 10-Mar-2020
1059,Revenue,CAHD,Early Years Inclusion Fund,Other Public Bodies,Courtney Ladybirds Pre-School,2450.00, 11-Mar-2020
1060,Revenue,CAHD,30 Hours Development Fund,Other Public Bodies,Courtney Ladybirds Pre-School,1200.00, 04-Mar-2020
1061,Revenue,CAHD,South - Commissioned Services,Supported Living,Craegmoor SYI Bristol & Wiltshire Priory,946.00, 05-Mar-2020
1062,Revenue,CAHD,South - Commissioned Services,Supported Living,Craegmoor SYI Bristol & Wiltshire Priory,775.72, 05-Mar-2020
1063,Revenue,CAHD,South - Commissioned Services,Supported Living,Craegmoor SYI Bristol & Wiltshire Priory,870.32, 16-Mar-2020
1064,Revenue,CAHD,South - Commissioned Services,Supported Living,Craegmoor SYI Bristol & Wiltshire Priory,1201.42, 16-Mar-2020
1065,Revenue,CAHD,S28A cases,Permanent Residential,Creedy Court,10597.96, 10-Mar-2020
1066,Revenue,CAHD,S28A cases,Permanent Residential,Creedy Court,8904.92, 10-Mar-2020
1067,Revenue,CAHD,North - Community based support,Permanent Residential,Creedy Court,14054.00, 10-Mar-2020
1068,Revenue,CAHD,Early Years Inclusion Fund,Other Public Bodies,Crossbows pre-school,1000.00, 06-Mar-2020
1069,Revenue,CAHD,Early Years High Needs Support,Other Private Contractors,Crossways Pre-School,709.51, 20-Mar-2020
1070,Revenue,CAHD,CSC - Vinney Green Secure Unit,R & M by Departments,Dale Power Solutions Ltd,1357.14, 18-Mar-2020
1071,Revenue,CAHD,South - Commissioned Services,Permanent Residential,Daneswood,12268.80, 10-Mar-2020
1072,Revenue,CAHD,South - Commissioned Services,Day Care / Social Activities,Daneswood,1413.28, 10-Mar-2020
1073,Revenue,CAHD,North - Community based support,Permanent Residential,Daneswood,13579.68, 10-Mar-2020
1074,Revenue,CAHD,Early Years Development,External Lecturers Expenses,Individual,633.00, 30-Mar-2020
1075,Revenue,CAHD,North - S117,Permanent Nursing,Danshell Healthcare Group,10872.28, 10-Mar-2020
1076,Revenue,CAHD,Jointly Funded H&SC Packages,Permanent Nursing,Danshell Healthcare Group,1613.28, 10-Mar-2020
1077,Revenue,CAHD,Learning Difficulties PSL,Other Supplies & Services,Individual,2400.00, 20-Mar-2020
1078,Revenue,CAHD,South - Commissioned Services,Day Care / Social Activities,Deafblind Uk,1352.28, 06-Mar-2020
1079,Revenue,CAHD,North - Community based support,Day Care / Social Activities,Deafblind Uk,641.76, 20-Mar-2020
1080,Revenue,CAHD,South Glos Users in South Glos Homes,Permanent Nursing,Deerhurst Nursing Home,662.24, 10-Mar-2020
1081,Revenue,CAHD,South - Commissioned Services,Permanent Nursing,Deerhurst Nursing Home,3805.28, 10-Mar-2020
1082,Revenue,CAHD,South Glos Users in South Glos Homes,Permanent Nursing,Deerhurst Nursing Home,662.24, 10-Mar-2020
1083,Revenue,CAHD,South Glos Users in South Glos Homes,Permanent Nursing,Deerhurst Nursing Home,662.24, 10-Mar-2020
1084,Revenue,CAHD,South - Commissioned Services,Day Care / Social Activities,Deerhurst Nursing Home,556.96, 10-Mar-2020
1085,Revenue,CAHD,South Glos Users in South Glos Homes,Permanent Nursing,Deerhurst Nursing Home,662.24, 10-Mar-2020
1086,Revenue,CAHD,South - Commissioned Services,Permanent Nursing,Deerhurst Nursing Home,4018.16, 10-Mar-2020
1087,Revenue,CAHD,South Glos Users in South Glos Homes,Permanent Nursing,Deerhurst Nursing Home,662.24, 10-Mar-2020
1088,Revenue,CAHD,South - Commissioned Services,Permanent Nursing,Deerhurst Nursing Home,4006.00, 10-Mar-2020
1089,Revenue,CAHD,South Glos Users in South Glos Homes,Permanent Nursing,Deerhurst Nursing Home,662.24, 10-Mar-2020
1090,Revenue,CAHD,North - Community based support,Permanent Nursing,Deerhurst Nursing Home,3891.20, 10-Mar-2020
1091,Revenue,CAHD,South - Commissioned Services,Permanent Nursing,Deerhurst Nursing Home,3965.12, 10-Mar-2020
1092,Revenue,CAHD,South Glos Users in South Glos Homes,Permanent Nursing,Deerhurst Nursing Home,662.24, 10-Mar-2020
1093,Revenue,CAHD,South - Commissioned Services,Permanent Nursing,Deerhurst Nursing Home,3891.20, 10-Mar-2020
1094,Revenue,CAHD,South Glos Users in South Glos Homes,Permanent Nursing,Deerhurst Nursing Home,662.24, 10-Mar-2020
1095,Revenue,CAHD,South - Commissioned Services,Day Care / Social Activities,Deerhurst Nursing Home,556.96, 10-Mar-2020
1096,Revenue,CAHD,South - Commissioned Services,Permanent Nursing,Deerhurst Nursing Home,4007.92, 10-Mar-2020
1097,Revenue,CAHD,South Glos Users in South Glos Homes,Permanent Nursing,Deerhurst Nursing Home,662.24, 10-Mar-2020
1098,Revenue,CAHD,South - bed purchasing and direct  payments,Permanent Nursing,Deerhurst Nursing Home,4004.00, 10-Mar-2020
1099,Revenue,CAHD,South Glos Users in South Glos Homes,Permanent Nursing,Deerhurst Nursing Home,662.24, 10-Mar-2020
1100,Revenue,CAHD,South Glos Users in South Glos Homes,Permanent Nursing,Deerhurst Nursing Home,662.24, 10-Mar-2020
1101,Revenue,CAHD,South Glos Users in South Glos Homes,Permanent Nursing,Deerhurst Nursing Home,662.24, 10-Mar-2020
1102,Revenue,CAHD,North - Community based support,Permanent Nursing,Deerhurst Nursing Home,4007.92, 10-Mar-2020
1103,Revenue,CAHD,South Glos Users in South Glos Homes,Permanent Nursing,Deerhurst Nursing Home,662.24, 10-Mar-2020
1104,Revenue,CAHD,South - Commissioned Services,Permanent Nursing,Deerhurst Nursing Home,4005.96, 10-Mar-2020
1105,Revenue,CAHD,South Glos Users in South Glos Homes,Permanent Nursing,Deerhurst Nursing Home,662.24, 10-Mar-2020
1106,Revenue,CAHD,South Glos Users in South Glos Homes,Permanent Nursing,Deerhurst Nursing Home,662.24, 10-Mar-2020
1107,Revenue,CAHD,South - Commissioned Services,Permanent Nursing,Deerhurst Nursing Home,3891.20, 10-Mar-2020
1108,Revenue,CAHD,South Glos Users in South Glos Homes,Permanent Nursing,Deerhurst Nursing Home,662.24, 10-Mar-2020
1109,Revenue,CAHD,South Glos Users in South Glos Homes,Permanent Nursing,Deerhurst Nursing Home,662.24, 10-Mar-2020
1110,Revenue,CAHD,South Glos Users in South Glos Homes,Permanent Nursing,Deerhurst Nursing Home,662.24, 10-Mar-2020
1111,Revenue,CAHD,South Glos Users in South Glos Homes,Permanent Nursing,Deerhurst Nursing Home,662.24, 10-Mar-2020
1112,Revenue,CAHD,South Glos Users in South Glos Homes,Permanent Nursing,Deerhurst Nursing Home,662.24, 10-Mar-2020
1113,Revenue,CAHD,South Glos Users in South Glos Homes,Permanent Nursing,Deerhurst Nursing Home,662.24, 10-Mar-2020
1114,Revenue,CAHD,South Glos Users in South Glos Homes,Permanent Nursing,Deerhurst Nursing Home,662.24, 10-Mar-2020
1115,Revenue,CAHD,South Glos Users in South Glos Homes,Permanent Nursing,Deerhurst Nursing Home,662.24, 10-Mar-2020
1116,Revenue,CAHD,South Glos Users in South Glos Homes,Permanent Nursing,Deerhurst Nursing Home,662.24, 10-Mar-2020
1117,Revenue,CAHD,South Glos Users in South Glos Homes,Permanent Nursing,Deerhurst Nursing Home,662.24, 10-Mar-2020
1118,Revenue,CAHD,North - Community based support,Permanent Nursing,Deerhurst Nursing Home,4006.00, 10-Mar-2020
1119,Revenue,CAHD,South Glos Users in South Glos Homes,Permanent Nursing,Deerhurst Nursing Home,662.24, 10-Mar-2020
1120,Revenue,CAHD,South - Commissioned Services,Permanent Nursing,Deerhurst Nursing Home,4005.24, 10-Mar-2020
1121,Revenue,CAHD,South Glos Users in South Glos Homes,Permanent Nursing,Deerhurst Nursing Home,662.24, 10-Mar-2020
1122,Revenue,CAHD,South Glos Users in South Glos Homes,Permanent Nursing,Deerhurst Nursing Home,662.24, 10-Mar-2020
1123,Revenue,CAHD,South - Commissioned Services,Permanent Nursing,Deerhurst Nursing Home,4006.00, 10-Mar-2020
1124,Revenue,CAHD,South Glos Users in South Glos Homes,Permanent Nursing,Deerhurst Nursing Home,662.24, 10-Mar-2020
1125,Revenue,CAHD,South Glos Users in South Glos Homes,Permanent Nursing,Deerhurst Nursing Home,662.24, 10-Mar-2020
1126,Revenue,CAHD,South - Commissioned Services,Permanent Nursing,Deerhurst Nursing Home,4006.00, 10-Mar-2020
1127,Revenue,CAHD,South - Commissioned Services,Permanent Residential,Deerhurst Nursing Home,3891.20, 10-Mar-2020
1128,Revenue,CAHD,South Glos Users in South Glos Homes,Permanent Nursing,Deerhurst Nursing Home,662.24, 10-Mar-2020
1129,Revenue,CAHD,North - Community based support,Permanent Nursing,Deerhurst Nursing Home,3034.20, 10-Mar-2020
1130,Revenue,CAHD,South Glos Users in South Glos Homes,Permanent Nursing,Deerhurst Nursing Home,662.24, 10-Mar-2020
1131,Revenue,CAHD,North - Community based support,Permanent Nursing,Deerhurst Nursing Home,2835.44, 10-Mar-2020
1132,Revenue,CAHD,South Glos Users in South Glos Homes,Permanent Nursing,Deerhurst Nursing Home,662.24, 10-Mar-2020
1133,Revenue,CAHD,South Glos Users in South Glos Homes,Permanent Nursing,Deerhurst Nursing Home,662.24, 10-Mar-2020
1134,Revenue,CAHD,South Glos Users in South Glos Homes,Permanent Nursing,Deerhurst Nursing Home,662.24, 10-Mar-2020
1135,Revenue,CAHD,South Glos Users in South Glos Homes,Permanent Nursing,Deerhurst Nursing Home,662.24, 10-Mar-2020
1136,Revenue,CAHD,South - Commissioned Services,Permanent Nursing,Deerhurst Nursing Home,4009.16, 10-Mar-2020
1137,Revenue,CAHD,South Glos Users in South Glos Homes,Permanent Nursing,Deerhurst Nursing Home,662.24, 10-Mar-2020
1138,Revenue,CAHD,South - Commissioned Services,Supported Living,Design House,2661.20, 10-Mar-2020
1139,Revenue,CAHD,South - Commissioned Services,Supported Living,Design House,3063.00, 10-Mar-2020
1140,Revenue,CAHD,South - Commissioned Services,Supported Living,Design House,3132.76, 10-Mar-2020
1141,Revenue,CAHD,South - Commissioned Services,Supported Living,Design House,2993.28, 10-Mar-2020
1142,Revenue,CAHD,South - Commissioned Services,Day Care / Social Activities,Design House,516.32, 10-Mar-2020
1143,Revenue,CAHD,Central - Commissioned Services,Day Care / Social Activities,Design House,2932.80, 10-Mar-2020
1144,Revenue,CAHD,South - Commissioned Services,Day Care / Social Activities,Design House,1291.20, 10-Mar-2020
1145,Revenue,CAHD,South - Commissioned Services,Day Care / Social Activities,Design House,921.28, 10-Mar-2020
1146,Revenue,CAHD,South - Commissioned Services,Supported Living,Design House,2638.60, 10-Mar-2020
1147,Revenue,CAHD,South - Commissioned Services,Supported Living,Design House,2638.60, 10-Mar-2020
1148,Revenue,CAHD,South - Commissioned Services,Supported Living,Design House,2149.32, 10-Mar-2020
1149,Revenue,CAHD,South - Commissioned Services,Day Care / Social Activities,Design House,516.32, 10-Mar-2020
1150,Revenue,CAHD,South - Commissioned Services,Supported Living,Design House,1896.52, 10-Mar-2020
1151,Revenue,CAHD,South - Commissioned Services,Supported Living,Design House,2516.60, 10-Mar-2020
1152,Revenue,CAHD,South - Commissioned Services,Supported Living,Design House,4307.12, 10-Mar-2020
1153,Revenue,CAHD,North - Community based support,Supported Living,Design House,3054.24, 10-Mar-2020
1154,Revenue,CAHD,South - Commissioned Services,Day Care / Social Activities,Design House,1505.96, 10-Mar-2020
1155,Revenue,CAHD,South - Commissioned Services,Supported Living,Design House,2924.68, 10-Mar-2020
1156,Revenue,CAHD,South - Commissioned Services,Supported Living,Design House,2542.80, 10-Mar-2020
1157,Revenue,CAHD,South - Commissioned Services,Supported Living,Design House,2257.48, 10-Mar-2020
1158,Revenue,CAHD,South - Commissioned Services,Supported Living,Design House,2257.48, 10-Mar-2020
1159,Revenue,CAHD,Central - Commissioned Services,Other Small Contracts,Dhek Bhal,42.16, 04-Mar-2020
1160,Revenue,CAHD,South - Commissioned Services,Other Small Contracts,Dhek Bhal,505.92, 04-Mar-2020
1161,Revenue,CAHD,Central - Commissioned Services,Other Small Contracts,Dhek Bhal,42.16, 04-Mar-2020
1162,Revenue,CAHD,South - Commissioned Services,Other Small Contracts,Dhek Bhal,505.92, 04-Mar-2020
1163,Revenue,CAHD,Central - Commissioned Services,Other Small Contracts,Dhek Bhal,42.16, 16-Mar-2020
1164,Revenue,CAHD,South - Commissioned Services,Other Small Contracts,Dhek Bhal,463.76, 16-Mar-2020
1165,Revenue,CAHD,Central - Commissioned Services,Other Small Contracts,Dhek Bhal,42.16, 20-Mar-2020
1166,Revenue,CAHD,South - Commissioned Services,Other Small Contracts,Dhek Bhal,505.92, 20-Mar-2020
1167,Revenue,CAHD,South - Commissioned Services,Permanent Residential,Dimensions  Suite 2,5630.76, 10-Mar-2020
1168,Revenue,CAHD,South - Commissioned Services,Permanent Residential,Dimensions  Suite 2,2806.12, 10-Mar-2020
1169,Revenue,CAHD,Training - Adult Services,Training Expenses,Do The Write Thing,1700.00, 13-Mar-2020
1170,Revenue,CAHD,Community Support - South,Preventative Assistance,Dobbins Industrial Cleaning Limited,1005.00, 24-Mar-2020
1171,Revenue,CAHD,Community Support - South,Preventative Assistance,Dobbins Industrial Cleaning Limited,1250.00, 24-Mar-2020
1172,Revenue,CAHD,Statemented Support Academies,Other Public Bodies,Downend School,978.57, 20-Mar-2020
1173,Revenue,CAHD,Statemented Support Academies,Other Public Bodies,Downend School,660.24, 20-Mar-2020
1174,Revenue,CAHD,Statemented Support Academies,Other Public Bodies,Downend School,1025.73, 20-Mar-2020
1175,Revenue,CAHD,Statemented Support Academies,Other Public Bodies,Downend School,1013.94, 20-Mar-2020
1176,Revenue,CAHD,Statemented Support Academies,Other Public Bodies,Downend School,801.72, 20-Mar-2020
1177,Revenue,CAHD,Statemented Support Academies,Other Public Bodies,Downend School,741.00, 20-Mar-2020
1178,Revenue,CAHD,Statemented Support Academies,Other Public Bodies,Downend School,530.55, 20-Mar-2020
1179,Revenue,CAHD,Statemented Support Academies,Other Public Bodies,Downend School,1108.26, 20-Mar-2020
1180,Revenue,CAHD,Statemented Support Academies,Other Public Bodies,Downend School,554.13, 20-Mar-2020
1181,Revenue,CAHD,Statemented Support Academies,Other Public Bodies,Downend School,1438.38, 20-Mar-2020
1182,Revenue,CAHD,Statemented Support Academies,Other Public Bodies,Downend School,1709.55, 20-Mar-2020
1183,Revenue,CAHD,Statemented Support Academies,Other Public Bodies,Downend School,1544.49, 20-Mar-2020
1184,Revenue,CAHD,High Risk Group Funding,Other Public Bodies,Downend School,3200.00, 09-Mar-2020
1185,Revenue,CAHD,High Risk Group Funding,Other Public Bodies,Downend School,5000.00, 09-Mar-2020
1186,Revenue,CAHD,High Risk Group Funding,Other Public Bodies,Downend School,1890.00, 09-Mar-2020
1187,Revenue,CAHD,Schools Block Growth Contingency,Other Public Bodies,Downend School,75950.70, 10-Mar-2020
1188,Revenue,CAHD,Central - Bed Purchasing and Direct Payments,Permanent Nursing,Drakes Court,1142.16, 10-Mar-2020
1189,Revenue,CAHD,CSC - Vinney Green Secure Unit,Premises Maintenance by Contractor,Dura-Sport Ltd,34268.50, 27-Mar-2020
1190,Revenue,CAHD,CSC - Residential Placements,Permanent Residential,Durham County Council,23598.00, 05-Mar-2020
1191,Revenue,CAHD,Preventative Services Training Budget,Training Expenses,Early Intervention Wales Training Limited,6200.00, 20-Mar-2020
1192,Revenue,CAHD,North - Community based support,Permanent Residential,East Court,2763.56, 10-Mar-2020
1193,Revenue,CAHD,CSC - Residential Placements,Permanent Residential,East Sussex County Council,33490.00, 05-Mar-2020
1194,Revenue,CAHD,Minor Adaptations Service,Operational Equipment,Eastman & Co (Timber) Limited,1594.53, 27-Mar-2020
1195,Revenue,CAHD,Care Management Team - South,Long Service Awards,Edenred (UK Group) Limited,630.00, 27-Mar-2020
1196,Revenue,CAHD,South - Commissioned Services,Respite Planned - Residential,Edgemont House Ltd,2057.14, 10-Mar-2020
1197,Revenue,CAHD,South - Commissioned Services,Permanent Residential,Edgemont House Ltd,3200.00, 10-Mar-2020
1198,Revenue,CAHD,South - bed purchasing and direct  payments,Permanent Residential,Edgemont House Ltd,3200.00, 10-Mar-2020
1199,Revenue,CAHD,South - Commissioned Services,Permanent Residential,Edgemont House Ltd,5732.01, 10-Mar-2020
1200,Revenue,CAHD,South - bed purchasing and direct  payments,Fees & Charges Income - General,Edgemont House Ltd,5881.17, 10-Mar-2020
1201,Revenue,CAHD,South - Commissioned Services,Permanent Nursing,Edgemont View Ltd,3584.00, 10-Mar-2020
1202,Revenue,CAHD,South Glos Users in South Glos Homes,Permanent Nursing,Edgemont View Ltd,662.24, 10-Mar-2020
1203,Revenue,CAHD,South Glos Users in South Glos Homes,Permanent Nursing,Edgemont View Ltd,662.24, 10-Mar-2020
1204,Revenue,CAHD,South - Commissioned Services,Permanent Nursing,Edgemont View Ltd,2560.00, 10-Mar-2020
1205,Revenue,CAHD,South Glos Users in South Glos Homes,Permanent Nursing,Edgemont View Ltd,662.24, 10-Mar-2020
1206,Revenue,CAHD,South - Commissioned Services,Permanent Nursing,Edgemont View Ltd,4129.44, 10-Mar-2020
1207,Revenue,CAHD,South Glos Users in South Glos Homes,Permanent Nursing,Edgemont View Ltd,662.24, 10-Mar-2020
1208,Revenue,CAHD,South Glos Users in South Glos Homes,Permanent Nursing,Edgemont View Ltd,662.24, 10-Mar-2020
1209,Revenue,CAHD,South Glos Users in South Glos Homes,Permanent Nursing,Edgemont View Ltd,662.24, 10-Mar-2020
1210,Revenue,CAHD,South Glos Users in South Glos Homes,Permanent Nursing,Edgemont View Ltd,662.24, 10-Mar-2020
1211,Revenue,CAHD,South Glos Users in South Glos Homes,Permanent Nursing,Edgemont View Ltd,662.24, 10-Mar-2020
1212,Revenue,CAHD,South Glos Users in South Glos Homes,Permanent Nursing,Edgemont View Ltd,662.24, 10-Mar-2020
1213,Revenue,CAHD,South - Commissioned Services,Permanent Nursing,Edgemont View Ltd,3005.16, 10-Mar-2020
1214,Revenue,CAHD,South Glos Users in South Glos Homes,Permanent Nursing,Edgemont View Ltd,662.24, 10-Mar-2020
1215,Revenue,CAHD,South Glos Users in South Glos Homes,Permanent Nursing,Edgemont View Ltd,1395.43, 10-Mar-2020
1216,Revenue,CAHD,South Glos Users in South Glos Homes,Permanent Nursing,Edgemont View Ltd,662.24, 10-Mar-2020
1217,Revenue,CAHD,South Glos Users in South Glos Homes,Permanent Nursing,Edgemont View Ltd,662.24, 10-Mar-2020
1218,Revenue,CAHD,South Glos Users in South Glos Homes,Permanent Nursing,Edgemont View Ltd,662.24, 10-Mar-2020
1219,Revenue,CAHD,South Glos Users in South Glos Homes,Permanent Nursing,Edgemont View Ltd,662.24, 10-Mar-2020
1220,Revenue,CAHD,South Glos Users in South Glos Homes,Permanent Nursing,Edgemont View Ltd,662.24, 10-Mar-2020
1221,Revenue,CAHD,South - Commissioned Services,Permanent Nursing,Edgemont View Ltd,3584.00, 10-Mar-2020
1222,Revenue,CAHD,South Glos Users in South Glos Homes,Permanent Nursing,Edgemont View Ltd,662.24, 10-Mar-2020
1223,Revenue,CAHD,South - Commissioned Services,Permanent Nursing,Edgemont View Ltd,3400.00, 10-Mar-2020
1224,Revenue,CAHD,South Glos Users in South Glos Homes,Permanent Nursing,Edgemont View Ltd,662.24, 10-Mar-2020
1225,Revenue,CAHD,Planning and Partnerships Procurement,Other Supplies & Services,Eldercare,2838.50, 03-Mar-2020
1226,Revenue,CAHD,Planning and Partnerships Procurement,Other Supplies & Services,Eldercare,2808.75, 30-Mar-2020
1227,Revenue,CAHD,Planning and Partnerships Procurement,Other Supplies & Services,Eldercare,2715.14, 03-Mar-2020
1228,Revenue,CAHD,Planning and Partnerships Procurement,Other Supplies & Services,Eldercare,2539.97, 30-Mar-2020
1229,Revenue,CAHD,Planning and Partnerships Procurement,Other Supplies & Services,Eldercare,1350.00, 05-Mar-2020
1230,Revenue,CAHD,Pathway 1 - Re-Ablement Home Care,Other Small Contracts,Elite Home Care Ltd,848.16, 06-Mar-2020
1231,Revenue,CAHD,South - Commissioned Services,Day Care / Social Activities,Elite Home Care Ltd,198.40, 04-Mar-2020
1232,Revenue,CAHD,South - Commissioned Services,Other Small Contracts,Elite Home Care Ltd,6185.80, 04-Mar-2020
1233,Revenue,CAHD,North - Community based support,Other Small Contracts,Elite Home Care Ltd,744.00, 04-Mar-2020
1234,Revenue,CAHD,South - Commissioned Services,Day Care / Social Activities,Elite Home Care Ltd,193.44, 09-Mar-2020
1235,Revenue,CAHD,South - Commissioned Services,Other Small Contracts,Elite Home Care Ltd,5735.41, 09-Mar-2020
1236,Revenue,CAHD,North - Community based support,Other Small Contracts,Elite Home Care Ltd,813.44, 09-Mar-2020
1237,Revenue,CAHD,South - Commissioned Services,Day Care / Social Activities,Elite Home Care Ltd,193.44, 17-Mar-2020
1238,Revenue,CAHD,South - Commissioned Services,Other Small Contracts,Elite Home Care Ltd,5920.64, 17-Mar-2020
1239,Revenue,CAHD,North - Community based support,Other Small Contracts,Elite Home Care Ltd,798.56, 17-Mar-2020
1240,Revenue,CAHD,South - Commissioned Services,Day Care / Social Activities,Elite Home Care Ltd,203.36, 24-Mar-2020
1241,Revenue,CAHD,South - Commissioned Services,Other Small Contracts,Elite Home Care Ltd,5995.61, 24-Mar-2020
1242,Revenue,CAHD,North - Community based support,Other Small Contracts,Elite Home Care Ltd,808.48, 24-Mar-2020
1243,Revenue,CAHD,South - Commissioned Services,Day Care / Social Activities,Elite Home Care Ltd,203.36, 30-Mar-2020
1244,Revenue,CAHD,South - Commissioned Services,Other Small Contracts,Elite Home Care Ltd,5747.44, 30-Mar-2020
1245,Revenue,CAHD,North - Community based support,Other Small Contracts,Elite Home Care Ltd,793.60, 30-Mar-2020
1246,Revenue,CAHD,CSC - LAC Placements,Personal Needs of Clients,Individual,1648.00, 27-Mar-2020
1247,Revenue,CAHD,CSC - LAC Placements,Personal Needs of Clients,Individual,756.57, 27-Mar-2020
1248,Revenue,CAHD,CSC - Legal Fees,Legal Fees,Individual,475.00, 05-Mar-2020
1249,Revenue,CAHD,Special ISB,Other Public Bodies,Enable Trust,1172.69, 24-Mar-2020
1250,Revenue,CAHD,Special ISB,Other Public Bodies,Enable Trust,1172.69, 24-Mar-2020
1251,Revenue,CAHD,Special ISB,Other Public Bodies,Enable Trust,1172.69, 24-Mar-2020
1252,Revenue,CAHD,Special ISB,Other Public Bodies,Enable Trust,646.93, 24-Mar-2020
1253,Revenue,CAHD,Special ISB,Other Public Bodies,Enable Trust,1536.63, 24-Mar-2020
1254,Revenue,CAHD,Special ISB,Other Public Bodies,Enable Trust,1698.31, 24-Mar-2020
1255,Revenue,CAHD,Special ISB,Other Public Bodies,Enable Trust,1536.63, 24-Mar-2020
1256,Revenue,CAHD,Special ISB,Other Public Bodies,Enable Trust,1172.69, 24-Mar-2020
1257,Revenue,CAHD,Special ISB,Other Public Bodies,Enable Trust,1172.69, 24-Mar-2020
1258,Revenue,CAHD,Special ISB,Other Public Bodies,Enable Trust,1536.63, 24-Mar-2020
1259,Revenue,CAHD,Special ISB,Other Public Bodies,Enable Trust,889.61, 24-Mar-2020
1260,Revenue,CAHD,Special ISB,Other Public Bodies,Enable Trust,1536.63, 24-Mar-2020
1261,Revenue,CAHD,Special ISB,Other Public Bodies,Enable Trust,1172.69, 24-Mar-2020
1262,Revenue,CAHD,Special ISB,Other Public Bodies,Enable Trust,889.61, 24-Mar-2020
1263,Revenue,CAHD,Special ISB,Other Public Bodies,Enable Trust,1172.69, 24-Mar-2020
1264,Revenue,CAHD,Special ISB,Other Public Bodies,Enable Trust,1536.63, 24-Mar-2020
1265,Revenue,CAHD,Special ISB,Other Public Bodies,Enable Trust,1172.69, 24-Mar-2020
1266,Revenue,CAHD,Special ISB,Other Public Bodies,Enable Trust,889.61, 24-Mar-2020
1267,Revenue,CAHD,Special ISB,Other Public Bodies,Enable Trust,2183.55, 24-Mar-2020
1268,Revenue,CAHD,Special ISB,Other Public Bodies,Enable Trust,1172.69, 24-Mar-2020
1269,Revenue,CAHD,Special ISB,Other Public Bodies,Enable Trust,1172.69, 24-Mar-2020
1270,Revenue,CAHD,Special ISB,Other Public Bodies,Enable Trust,889.61, 24-Mar-2020
1271,Revenue,CAHD,Special ISB,Other Public Bodies,Enable Trust,1172.69, 24-Mar-2020
1272,Revenue,CAHD,Special ISB,Other Public Bodies,Enable Trust,1536.63, 24-Mar-2020
1273,Revenue,CAHD,Special ISB,Other Public Bodies,Enable Trust,1172.69, 24-Mar-2020
1274,Revenue,CAHD,Special ISB,Other Public Bodies,Enable Trust,1172.69, 24-Mar-2020
1275,Revenue,CAHD,Special ISB,Other Public Bodies,Enable Trust,1172.69, 24-Mar-2020
1276,Revenue,CAHD,Special ISB,Other Public Bodies,Enable Trust,1536.63, 24-Mar-2020
1277,Revenue,CAHD,Special ISB,Other Public Bodies,Enable Trust,1172.69, 24-Mar-2020
1278,Revenue,CAHD,Special ISB,Other Public Bodies,Enable Trust,1172.69, 24-Mar-2020
1279,Revenue,CAHD,Special ISB,Other Public Bodies,Enable Trust,1172.69, 24-Mar-2020
1280,Revenue,CAHD,Special ISB,Other Public Bodies,Enable Trust,2183.55, 24-Mar-2020
1281,Revenue,CAHD,Special ISB,Other Public Bodies,Enable Trust,1536.63, 24-Mar-2020
1282,Revenue,CAHD,Special ISB,Other Public Bodies,Enable Trust,1172.69, 24-Mar-2020
1283,Revenue,CAHD,Special ISB,Other Public Bodies,Enable Trust,1536.63, 24-Mar-2020
1284,Revenue,CAHD,Special ISB,Other Public Bodies,Enable Trust,1172.69, 24-Mar-2020
1285,Revenue,CAHD,Special ISB,Other Public Bodies,Enable Trust,2183.55, 24-Mar-2020
1286,Revenue,CAHD,Special ISB,Other Public Bodies,Enable Trust,1536.63, 24-Mar-2020
1287,Revenue,CAHD,Special ISB,Other Public Bodies,Enable Trust,1536.63, 24-Mar-2020
1288,Revenue,CAHD,Special ISB,Other Public Bodies,Enable Trust,1172.69, 24-Mar-2020
1289,Revenue,CAHD,Special ISB,Other Public Bodies,Enable Trust,889.61, 24-Mar-2020
1290,Revenue,CAHD,Special ISB,Other Public Bodies,Enable Trust,1172.69, 24-Mar-2020
1291,Revenue,CAHD,Special ISB,Other Public Bodies,Enable Trust,889.61, 24-Mar-2020
1292,Revenue,CAHD,Special ISB,Other Public Bodies,Enable Trust,1172.69, 24-Mar-2020
1293,Revenue,CAHD,Special ISB,Other Public Bodies,Enable Trust,889.61, 24-Mar-2020
1294,Revenue,CAHD,Special ISB,Other Public Bodies,Enable Trust,646.93, 24-Mar-2020
1295,Revenue,CAHD,Special ISB,Other Public Bodies,Enable Trust,889.61, 24-Mar-2020
1296,Revenue,CAHD,Special ISB,Other Public Bodies,Enable Trust,889.61, 24-Mar-2020
1297,Revenue,CAHD,Special ISB,Other Public Bodies,Enable Trust,1172.69, 24-Mar-2020
1298,Revenue,CAHD,Special ISB,Other Public Bodies,Enable Trust,1172.69, 24-Mar-2020
1299,Revenue,CAHD,Special ISB,Other Public Bodies,Enable Trust,1536.63, 24-Mar-2020
1300,Revenue,CAHD,Special ISB,Other Public Bodies,Enable Trust,1536.63, 24-Mar-2020
1301,Revenue,CAHD,Special ISB,Other Public Bodies,Enable Trust,1172.69, 24-Mar-2020
1302,Revenue,CAHD,Special ISB,Other Public Bodies,Enable Trust,1536.63, 24-Mar-2020
1303,Revenue,CAHD,Special ISB,Other Public Bodies,Enable Trust,10706.44, 24-Mar-2020
1304,Revenue,CAHD,Special ISB,Other Public Bodies,Enable Trust,1536.63, 24-Mar-2020
1305,Revenue,CAHD,Special ISB,Other Public Bodies,Enable Trust,889.61, 24-Mar-2020
1306,Revenue,CAHD,Special ISB,Other Public Bodies,Enable Trust,1172.69, 24-Mar-2020
1307,Revenue,CAHD,Special ISB,Other Public Bodies,Enable Trust,1172.69, 24-Mar-2020
1308,Revenue,CAHD,Special ISB,Other Public Bodies,Enable Trust,1536.63, 24-Mar-2020
1309,Revenue,CAHD,Special ISB,Other Public Bodies,Enable Trust,1172.69, 24-Mar-2020
1310,Revenue,CAHD,Special ISB,Other Public Bodies,Enable Trust,1536.63, 24-Mar-2020
1311,Revenue,CAHD,Special ISB,Other Public Bodies,Enable Trust,889.61, 24-Mar-2020
1312,Revenue,CAHD,Special ISB,Other Public Bodies,Enable Trust,1536.63, 24-Mar-2020
1313,Revenue,CAHD,Special ISB,Other Public Bodies,Enable Trust,2183.55, 24-Mar-2020
1314,Revenue,CAHD,Special ISB,Other Public Bodies,Enable Trust,4226.22, 24-Mar-2020
1315,Revenue,CAHD,Special ISB,Other Public Bodies,Enable Trust,1172.69, 24-Mar-2020
1316,Revenue,CAHD,Special ISB,Other Public Bodies,Enable Trust,1536.63, 24-Mar-2020
1317,Revenue,CAHD,Special ISB,Other Public Bodies,Enable Trust,1536.63, 24-Mar-2020
1318,Revenue,CAHD,Special ISB,Other Public Bodies,Enable Trust,889.61, 24-Mar-2020
1319,Revenue,CAHD,Special ISB,Other Public Bodies,Enable Trust,1172.69, 24-Mar-2020
1320,Revenue,CAHD,Special ISB,Other Public Bodies,Enable Trust,889.61, 24-Mar-2020
1321,Revenue,CAHD,Special ISB,Other Public Bodies,Enable Trust,1172.69, 24-Mar-2020
1322,Revenue,CAHD,Special ISB,Other Public Bodies,Enable Trust,1172.69, 24-Mar-2020
1323,Revenue,CAHD,Special ISB,Other Public Bodies,Enable Trust,1172.69, 24-Mar-2020
1324,Revenue,CAHD,Schools Specific Grant Income - from OLA,Other Public Bodies,Enable Trust,650.00, 16-Mar-2020
1325,Revenue,CAHD,Special ISB,Other Public Bodies,Enable Trust,889.61, 24-Mar-2020
1326,Revenue,CAHD,Special ISB,Other Public Bodies,Enable Trust,1172.69, 24-Mar-2020
1327,Revenue,CAHD,Special ISB,Other Public Bodies,Enable Trust,1172.69, 24-Mar-2020
1328,Revenue,CAHD,Special ISB,Other Public Bodies,Enable Trust,1172.69, 24-Mar-2020
1329,Revenue,CAHD,Special ISB,Other Public Bodies,Enable Trust,1698.31, 24-Mar-2020
1330,Revenue,CAHD,Special ISB,Other Public Bodies,Enable Trust,1172.69, 24-Mar-2020
1331,Revenue,CAHD,Special ISB,Other Public Bodies,Enable Trust,889.61, 24-Mar-2020
1332,Revenue,CAHD,Special ISB,Other Public Bodies,Enable Trust,889.61, 24-Mar-2020
1333,Revenue,CAHD,Special ISB,Other Public Bodies,Enable Trust,1172.69, 24-Mar-2020
1334,Revenue,CAHD,Special ISB,Other Public Bodies,Enable Trust,1172.69, 24-Mar-2020
1335,Revenue,CAHD,Special ISB,Other Public Bodies,Enable Trust,2183.55, 24-Mar-2020
1336,Revenue,CAHD,Special ISB,Other Public Bodies,Enable Trust,1172.69, 24-Mar-2020
1337,Revenue,CAHD,Special ISB,Other Public Bodies,Enable Trust,2991.17, 24-Mar-2020
1338,Revenue,CAHD,Special ISB,Other Public Bodies,Enable Trust,1698.31, 24-Mar-2020
1339,Revenue,CAHD,Special ISB,Other Public Bodies,Enable Trust,889.61, 24-Mar-2020
1340,Revenue,CAHD,Special ISB,Other Public Bodies,Enable Trust,889.61, 24-Mar-2020
1341,Revenue,CAHD,Special ISB,Other Public Bodies,Enable Trust,889.61, 24-Mar-2020
1342,Revenue,CAHD,Special ISB,Other Public Bodies,Enable Trust,2183.55, 24-Mar-2020
1343,Revenue,CAHD,Special ISB,Other Public Bodies,Enable Trust,1172.69, 24-Mar-2020
1344,Revenue,CAHD,Special ISB,Other Public Bodies,Enable Trust,1172.69, 24-Mar-2020
1345,Revenue,CAHD,Special ISB,Other Public Bodies,Enable Trust,2183.55, 24-Mar-2020
1346,Revenue,CAHD,Special ISB,Other Public Bodies,Enable Trust,889.61, 24-Mar-2020
1347,Revenue,CAHD,Special ISB,Other Public Bodies,Enable Trust,1698.31, 24-Mar-2020
1348,Revenue,CAHD,Special ISB,Other Public Bodies,Enable Trust,1172.69, 24-Mar-2020
1349,Revenue,CAHD,Special ISB,Other Public Bodies,Enable Trust,1172.69, 24-Mar-2020
1350,Revenue,CAHD,Special ISB,Other Public Bodies,Enable Trust,1172.69, 24-Mar-2020
1351,Revenue,CAHD,Special ISB,Other Public Bodies,Enable Trust,646.93, 24-Mar-2020
1352,Revenue,CAHD,Special ISB,Other Public Bodies,Enable Trust,1536.63, 24-Mar-2020
1353,Revenue,CAHD,Special ISB,Other Public Bodies,Enable Trust,889.61, 24-Mar-2020
1354,Revenue,CAHD,Special ISB,Other Public Bodies,Enable Trust,1172.69, 24-Mar-2020
1355,Revenue,CAHD,Special ISB,Other Public Bodies,Enable Trust,889.61, 24-Mar-2020
1356,Revenue,CAHD,Special ISB,Other Public Bodies,Enable Trust,1172.69, 24-Mar-2020
1357,Revenue,CAHD,Special ISB,Other Public Bodies,Enable Trust,1172.69, 24-Mar-2020
1358,Revenue,CAHD,Special ISB,Other Public Bodies,Enable Trust,1172.69, 24-Mar-2020
1359,Revenue,CAHD,Special ISB,Other Public Bodies,Enable Trust,1698.31, 24-Mar-2020
1360,Revenue,CAHD,Special ISB,Other Public Bodies,Enable Trust,1698.31, 24-Mar-2020
1361,Revenue,CAHD,Special ISB,Other Public Bodies,Enable Trust,1698.31, 24-Mar-2020
1362,Revenue,CAHD,Special ISB,Other Public Bodies,Enable Trust,646.93, 24-Mar-2020
1363,Revenue,CAHD,Special ISB,Other Public Bodies,Enable Trust,1172.69, 24-Mar-2020
1364,Revenue,CAHD,Special ISB,Other Public Bodies,Enable Trust,949.52, 24-Mar-2020
1365,Revenue,CAHD,Special ISB,Other Public Bodies,Enable Trust,1172.69, 24-Mar-2020
1366,Revenue,CAHD,Special ISB,Other Public Bodies,Enable Trust,889.61, 24-Mar-2020
1367,Revenue,CAHD,Special ISB,Other Public Bodies,Enable Trust,1698.31, 24-Mar-2020
1368,Revenue,CAHD,Special ISB,Other Public Bodies,Enable Trust,889.61, 24-Mar-2020
1369,Revenue,CAHD,Special ISB,Other Public Bodies,Enable Trust,1172.69, 24-Mar-2020
1370,Revenue,CAHD,Special ISB,Other Public Bodies,Enable Trust,1172.69, 24-Mar-2020
1371,Revenue,CAHD,Special ISB,Other Public Bodies,Enable Trust,1698.31, 24-Mar-2020
1372,Revenue,CAHD,Special ISB,Other Public Bodies,Enable Trust,1172.69, 24-Mar-2020
1373,Revenue,CAHD,Special ISB,Other Public Bodies,Enable Trust,1172.69, 24-Mar-2020
1374,Revenue,CAHD,Special ISB,Other Public Bodies,Enable Trust,1172.69, 24-Mar-2020
1375,Revenue,CAHD,Special ISB,Other Public Bodies,Enable Trust,2183.55, 24-Mar-2020
1376,Revenue,CAHD,Special ISB,Other Public Bodies,Enable Trust,889.61, 24-Mar-2020
1377,Revenue,CAHD,Special ISB,Other Public Bodies,Enable Trust,1536.63, 24-Mar-2020
1378,Revenue,CAHD,Special ISB,Other Public Bodies,Enable Trust,1172.69, 24-Mar-2020
1379,Revenue,CAHD,Special ISB,Other Public Bodies,Enable Trust,2507.01, 24-Mar-2020
1380,Revenue,CAHD,Special ISB,Other Public Bodies,Enable Trust,1172.69, 24-Mar-2020
1381,Revenue,CAHD,Special ISB,Other Public Bodies,Enable Trust,1172.69, 24-Mar-2020
1382,Revenue,CAHD,Special ISB,Other Public Bodies,Enable Trust,1698.31, 24-Mar-2020
1383,Revenue,CAHD,Special ISB,Other Public Bodies,Enable Trust,1698.31, 24-Mar-2020
1384,Revenue,CAHD,Special ISB,Other Public Bodies,Enable Trust,1698.31, 24-Mar-2020
1385,Revenue,CAHD,Special ISB,Other Public Bodies,Enable Trust,1698.31, 24-Mar-2020
1386,Revenue,CAHD,Special ISB,Other Public Bodies,Enable Trust,889.61, 24-Mar-2020
1387,Revenue,CAHD,Special ISB,Other Public Bodies,Enable Trust,889.61, 24-Mar-2020
1388,Revenue,CAHD,Special ISB,Other Public Bodies,Enable Trust,1172.69, 24-Mar-2020
1389,Revenue,CAHD,Special ISB,Other Public Bodies,Enable Trust,1698.31, 24-Mar-2020
1390,Revenue,CAHD,Special ISB,Other Public Bodies,Enable Trust,889.61, 24-Mar-2020
1391,Revenue,CAHD,Special ISB,Other Public Bodies,Enable Trust,1698.31, 24-Mar-2020
1392,Revenue,CAHD,Special ISB,Other Public Bodies,Enable Trust,4226.22, 24-Mar-2020
1393,Revenue,CAHD,Special ISB,Other Public Bodies,Enable Trust,2183.55, 24-Mar-2020
1394,Revenue,CAHD,Special ISB,Other Public Bodies,Enable Trust,889.61, 24-Mar-2020
1395,Revenue,CAHD,Special ISB,Other Public Bodies,Enable Trust,2183.55, 24-Mar-2020
1396,Revenue,CAHD,Special ISB,Other Public Bodies,Enable Trust,889.61, 24-Mar-2020
1397,Revenue,CAHD,Special ISB,Other Public Bodies,Enable Trust,1698.31, 24-Mar-2020
1398,Revenue,CAHD,Special ISB,Other Public Bodies,Enable Trust,1172.69, 24-Mar-2020
1399,Revenue,CAHD,Special ISB,Other Public Bodies,Enable Trust,2183.55, 24-Mar-2020
1400,Revenue,CAHD,Special ISB,Other Public Bodies,Enable Trust,889.61, 24-Mar-2020
1401,Revenue,CAHD,Special ISB,Other Public Bodies,Enable Trust,1698.31, 24-Mar-2020
1402,Revenue,CAHD,Special ISB,Other Public Bodies,Enable Trust,1698.31, 24-Mar-2020
1403,Revenue,CAHD,Special ISB,Other Public Bodies,Enable Trust,889.61, 24-Mar-2020
1404,Revenue,CAHD,Special ISB,Other Public Bodies,Enable Trust,1698.31, 24-Mar-2020
1405,Revenue,CAHD,Special ISB,Other Public Bodies,Enable Trust,1172.69, 24-Mar-2020
1406,Revenue,CAHD,Special ISB,Other Public Bodies,Enable Trust,889.61, 24-Mar-2020
1407,Revenue,CAHD,Special ISB,Other Public Bodies,Enable Trust,1172.69, 24-Mar-2020
1408,Revenue,CAHD,Special ISB,Other Public Bodies,Enable Trust,1698.31, 24-Mar-2020
1409,Revenue,CAHD,Special ISB,Other Public Bodies,Enable Trust,3287.06, 24-Mar-2020
1410,Revenue,CAHD,Special ISB,Other Public Bodies,Enable Trust,1698.31, 24-Mar-2020
1411,Revenue,CAHD,Special ISB,Other Public Bodies,Enable Trust,1172.69, 24-Mar-2020
1412,Revenue,CAHD,Special ISB,Other Public Bodies,Enable Trust,1172.69, 24-Mar-2020
1413,Revenue,CAHD,Special ISB,Other Public Bodies,Enable Trust,1172.69, 24-Mar-2020
1414,Revenue,CAHD,Special ISB,Other Public Bodies,Enable Trust,1172.69, 24-Mar-2020
1415,Revenue,CAHD,Special ISB,Other Public Bodies,Enable Trust,889.61, 24-Mar-2020
1416,Revenue,CAHD,Special ISB,Other Public Bodies,Enable Trust,2183.55, 24-Mar-2020
1417,Revenue,CAHD,Special ISB,Other Public Bodies,Enable Trust,1698.31, 24-Mar-2020
1418,Revenue,CAHD,Special ISB,Other Public Bodies,Enable Trust,1504.21, 24-Mar-2020
1419,Revenue,CAHD,Special ISB,Schools Funding,Enable Trust,60000.00, 18-Mar-2020
1420,Revenue,CAHD,Schools Specific Grant Income,Other Public Bodies,Enable Trust,1500.00, 24-Mar-2020
1421,Revenue,CAHD,Central - Commissioned Services,Other Small Contracts,Epiphany In Care,1154.30, 09-Mar-2020
1422,Revenue,CAHD,Central - Commissioned Services,Other Small Contracts,Epiphany In Care,5491.75, 25-Mar-2020
1423,Revenue,CAHD,Central - Commissioned Services,Other Small Contracts,Epiphany In Care,1018.50, 13-Mar-2020
1424,Revenue,CAHD,Central - Commissioned Services,Other Small Contracts,Epiphany In Care,5512.00, 25-Mar-2020
1425,Revenue,CAHD,North - Community based support,Other Small Contracts,Epiphany In Care,3404.70, 25-Mar-2020
1426,Revenue,CAHD,Central - Commissioned Services,Other Small Contracts,Epiphany In Care,1100.95, 13-Mar-2020
1427,Revenue,CAHD,Central - Commissioned Services,Other Small Contracts,Epiphany In Care,1067.00, 13-Mar-2020
1428,Revenue,CAHD,Central - Commissioned Services,Other Small Contracts,Epiphany In Care,1067.00, 13-Mar-2020
1429,Revenue,CAHD,South - Commissioned Services,Other Small Contracts,Epiphany In Care,557.00, 23-Mar-2020
1430,Revenue,CAHD,North - Community based support,Other Small Contracts,Epiphany In Care,3162.20, 25-Mar-2020
1431,Revenue,CAHD,North - Community based support,Other Small Contracts,Epiphany In Care,3647.20, 25-Mar-2020
1432,Revenue,CAHD,North - Community based support,Other Small Contracts,Epiphany In Care,4644.08, 27-Mar-2020
1433,Revenue,CAHD,North - Community based support,Other Small Contracts,Epiphany In Care,4644.08, 25-Mar-2020
1434,Revenue,CAHD,South - Commissioned Services,Permanent Nursing,Epworth House,3072.00, 10-Mar-2020
1435,Revenue,CAHD,North - S117,Permanent Residential,Evolve House,3276.80, 10-Mar-2020
1436,Revenue,CAHD,South - Commissioned Services,Permanent Residential,Evolve House,2681.76, 10-Mar-2020
1437,Revenue,CAHD,Placements OLA Special Schools and RB,Other L.A.'s - General,Excalibur Academies Trust T/A,3566.65, 25-Mar-2020
1438,Revenue,CAHD,Schools Specific Grant Income,Other Public Bodies,Excalibur Academies Trust T/A,1500.00, 24-Mar-2020
1439,Revenue,CAHD,CSC - Residential Placements,Permanent Residential,Exclusive Secure Care Services,9115.00, 18-Mar-2020
1440,Revenue,CAHD,Homeless - Private Sector Leasing,Prop.Serv. General Repairs,Express Property Services Limited,3751.37, 16-Mar-2020
1441,Revenue,CAHD,Extra Care Housing,Private & Voluntary Home Care,Extra Care Charitable Trust,26966.00, 12-Mar-2020
1442,Revenue,CAHD,North - Community based support,Permanent Residential,Eyre Court,3719.16, 10-Mar-2020
1443,Revenue,CAHD,Central - Commissioned Services,Permanent Residential,Eyre Court,4915.20, 10-Mar-2020
1444,Revenue,CAHD,North - Community based support,Respite Emergency - Residential,Eyre Court,1480.00, 10-Mar-2020
1445,Revenue,CAHD,North - Community based support,Permanent Residential,Eyre Court,4800.00, 10-Mar-2020
1446,Revenue,CAHD,North - Community based support,Respite Planned - Residential,Eyre Court,1234.29, 10-Mar-2020
1447,Revenue,CAHD,Health Inequalities,Other Supplies & Services,FACE,500.00, 20-Mar-2020
1448,Revenue,CAHD,South - Commissioned Services,Permanent Nursing,Fairview Court,3810.56, 10-Mar-2020
1449,Revenue,CAHD,South Glos Users in South Glos Homes,Permanent Nursing,Fairview Court,662.24, 10-Mar-2020
1450,Revenue,CAHD,South Glos Users in South Glos Homes,Permanent Nursing,Fairview Court,662.24, 10-Mar-2020
1451,Revenue,CAHD,South Glos Users in South Glos Homes,Permanent Nursing,Fairview Court,662.24, 10-Mar-2020
1452,Revenue,CAHD,South - Commissioned Services,Permanent Nursing,Fairview Court,3810.56, 10-Mar-2020
1453,Revenue,CAHD,South Glos Users in South Glos Homes,Permanent Nursing,Fairview Court,662.24, 10-Mar-2020
1454,Revenue,CAHD,North - Community based support,Respite Planned - Nursing,Fairview Court,7241.08, 10-Mar-2020
1455,Revenue,CAHD,Central - Commissioned Services,Permanent Nursing,Fairview Court,4137.76, 10-Mar-2020
1456,Revenue,CAHD,South Glos Users in South Glos Homes,Permanent Nursing,Fairview Court,662.24, 10-Mar-2020
1457,Revenue,CAHD,South Glos Users in South Glos Homes,Permanent Nursing,Fairview Court,662.24, 10-Mar-2020
1458,Revenue,CAHD,South - Commissioned Services,Permanent Nursing,Fairview Court,3547.76, 10-Mar-2020
1459,Revenue,CAHD,South Glos Users in South Glos Homes,Permanent Nursing,Fairview Court,662.24, 10-Mar-2020
1460,Revenue,CAHD,South Glos Users in South Glos Homes,Permanent Nursing,Fairview Court,662.24, 10-Mar-2020
1461,Revenue,CAHD,South Glos Users in South Glos Homes,Permanent Nursing,Fairview Court,662.24, 10-Mar-2020
1462,Revenue,CAHD,South - S117,Permanent Nursing,Fairview Court,4173.84, 10-Mar-2020
1463,Revenue,CAHD,South Glos Users in South Glos Homes,Permanent Nursing,Fairview Court,662.24, 10-Mar-2020
1464,Revenue,CAHD,South Glos Users in South Glos Homes,Permanent Nursing,Fairview Court,662.24, 10-Mar-2020
1465,Revenue,CAHD,South - Commissioned Services,Permanent Nursing,Fairview Court,3382.48, 10-Mar-2020
1466,Revenue,CAHD,South Glos Users in South Glos Homes,Permanent Nursing,Fairview Court,662.24, 10-Mar-2020
1467,Revenue,CAHD,South - bed purchasing and direct  payments,Permanent Nursing,Fairview Court,4078.24, 10-Mar-2020
1468,Revenue,CAHD,South Glos Users in South Glos Homes,Permanent Nursing,Fairview Court,662.24, 10-Mar-2020
1469,Revenue,CAHD,South Glos Users in South Glos Homes,Permanent Nursing,Fairview Court,662.24, 10-Mar-2020
1470,Revenue,CAHD,South Glos Users in South Glos Homes,Permanent Nursing,Fairview Court,662.24, 10-Mar-2020
1471,Revenue,CAHD,South Glos Users in South Glos Homes,Permanent Nursing,Fairview Court,662.24, 10-Mar-2020
1472,Revenue,CAHD,South - Commissioned Services,Permanent Nursing,Fairview Court,4140.00, 10-Mar-2020
1473,Revenue,CAHD,South Glos Users in South Glos Homes,Permanent Nursing,Fairview Court,662.24, 10-Mar-2020
1474,Revenue,CAHD,South - Commissioned Services,Permanent Nursing,Fairview Court,3810.56, 10-Mar-2020
1475,Revenue,CAHD,South Glos Users in South Glos Homes,Permanent Nursing,Fairview Court,662.24, 10-Mar-2020
1476,Revenue,CAHD,South Glos Users in South Glos Homes,Permanent Nursing,Fairview Court,662.24, 10-Mar-2020
1477,Revenue,CAHD,South Glos Users in South Glos Homes,Permanent Nursing,Fairview Court,662.24, 10-Mar-2020
1478,Revenue,CAHD,South Glos Users in South Glos Homes,Permanent Nursing,Fairview Court,662.24, 10-Mar-2020
1479,Revenue,CAHD,South - Commissioned Services,Permanent Nursing,Fairview Court,4137.76, 10-Mar-2020
1480,Revenue,CAHD,South - Commissioned Services,Permanent Nursing,Fairview Court,2955.54, 10-Mar-2020
1481,Revenue,CAHD,South Glos Users in South Glos Homes,Permanent Nursing,Fairview Court,662.24, 10-Mar-2020
1482,Revenue,CAHD,South Glos Users in South Glos Homes,Permanent Nursing,Fairview Court,662.24, 10-Mar-2020
1483,Revenue,CAHD,South - Commissioned Services,Permanent Residential,Fairview Court,4048.64, 10-Mar-2020
1484,Revenue,CAHD,South Glos Users in South Glos Homes,Permanent Nursing,Fairview Court,662.24, 10-Mar-2020
1485,Revenue,CAHD,South Glos Users in South Glos Homes,Permanent Nursing,Fairview Court,662.24, 10-Mar-2020
1486,Revenue,CAHD,North - Community based support,Permanent Residential,Fairview Court,3256.32, 10-Mar-2020
1487,Revenue,CAHD,South - bed purchasing and direct  payments,Permanent Nursing,Fairview Court,4137.76, 10-Mar-2020
1488,Revenue,CAHD,South - Commissioned Services,Respite Planned - Nursing,Fairview Court,1773.33, 10-Mar-2020
1489,Revenue,CAHD,South - Commissioned Services,Permanent Nursing,Fairview Court,3483.68, 10-Mar-2020
1490,Revenue,CAHD,South Glos Users in South Glos Homes,Permanent Nursing,Fairview Court,662.24, 10-Mar-2020
1491,Revenue,CAHD,North - Community based support,Permanent Nursing,Fairview Court,3810.56, 10-Mar-2020
1492,Revenue,CAHD,South Glos Users in South Glos Homes,Permanent Nursing,Fairview Court,662.24, 10-Mar-2020
1493,Revenue,CAHD,South Glos Users in South Glos Homes,Permanent Nursing,Fairview Court,662.24, 10-Mar-2020
1494,Revenue,CAHD,South - Commissioned Services,Permanent Nursing,Fairview Court,3130.36, 10-Mar-2020
1495,Revenue,CAHD,South Glos Users in South Glos Homes,Permanent Nursing,Fairview Court,662.24, 10-Mar-2020
1496,Revenue,CAHD,South - Commissioned Services,Permanent Nursing,Fairview Court,3810.56, 10-Mar-2020
1497,Revenue,CAHD,South Glos Users in South Glos Homes,Permanent Nursing,Fairview Court,662.24, 10-Mar-2020
1498,Revenue,CAHD,South - Commissioned Services,Permanent Nursing,Fairview Court,3547.76, 10-Mar-2020
1499,Revenue,CAHD,South Glos Users in South Glos Homes,Permanent Nursing,Fairview Court,662.24, 10-Mar-2020
1500,Revenue,CAHD,South - Commissioned Services,Permanent Nursing,Fairview Court,4028.00, 10-Mar-2020
1501,Revenue,CAHD,South Glos Users in South Glos Homes,Permanent Nursing,Fairview Court,662.24, 10-Mar-2020
1502,Revenue,CAHD,South Glos Users in South Glos Homes,Permanent Nursing,Fairview Court,662.24, 10-Mar-2020
1503,Revenue,CAHD,South - Commissioned Services,Permanent Nursing,Fairview Court,4137.76, 10-Mar-2020
1504,Revenue,CAHD,South - Commissioned Services,Permanent Nursing,Fairview Court,2394.95, 10-Mar-2020
1505,Revenue,CAHD,South - S117,Permanent Residential,Fairview House,2303.52, 10-Mar-2020
1506,Revenue,CAHD,South - Commissioned Services,Permanent Residential,Fairview House,2303.52, 10-Mar-2020
1507,Revenue,CAHD,South - Commissioned Services,Permanent Residential,Fairview House,3400.00, 10-Mar-2020
1508,Revenue,CAHD,South - Commissioned Services,Permanent Residential,Fairview House,3400.00, 10-Mar-2020
1509,Revenue,CAHD,South - Commissioned Services,Permanent Residential,Fairview House,2307.14, 10-Mar-2020
1510,Revenue,CAHD,South - Commissioned Services,Permanent Residential,Fairview House,2230.32, 10-Mar-2020
1511,Revenue,CAHD,North - Community based support,Permanent Residential,Faith House,3297.28, 10-Mar-2020
1512,Revenue,CAHD,Central - Commissioned Services,Respite Emergency - Residential,Faith House,1558.66, 10-Mar-2020
1513,Revenue,CAHD,Central - Commissioned Services,Respite Emergency - Residential,Faith House,959.18, 10-Mar-2020
1514,Revenue,CAHD,North - Community based support,Permanent Residential,Faith House,2805.76, 10-Mar-2020
1515,Revenue,CAHD,North - Community based support,Permanent Residential,Faith House,2980.00, 10-Mar-2020
1516,Revenue,CAHD,South - Commissioned Services,Permanent Residential,Faith House,2900.00, 10-Mar-2020
1517,Revenue,CAHD,North - Community based support,Respite Emergency - Residential,Faith House,1071.43, 10-Mar-2020
1518,Revenue,CAHD,CSC - Fostering Carer Support,Care Mgt/Asesmnt Staff Pay,Individual,3600.00, 17-Mar-2020
1519,Revenue,CAHD,Central - Commissioned Services,Permanent Nursing,Festival House,3055.04, 10-Mar-2020
1520,Revenue,CAHD,Central - Commissioned Services,Permanent Residential,Fieldview,3481.60, 10-Mar-2020
1521,Revenue,CAHD,North - Community based support,Respite Emergency - Residential,Fieldview,4243.17, 10-Mar-2020
1522,Revenue,CAHD,North - Community based support,Respite Emergency - Residential,Fieldview,8014.29, 10-Mar-2020
1523,Revenue,CAHD,North - Community based support,Permanent Residential,Fieldview,3200.00, 10-Mar-2020
1524,Revenue,CAHD,Central - Bed Purchasing and Direct Payments,Respite Planned - Residential,Fieldview,1578.57, 10-Mar-2020
1525,Revenue,CAHD,MH Purchasing - Younger,Permanent Nursing,Fieldview,5496.52, 10-Mar-2020
1526,Revenue,CAHD,Statemented Support Payments to OLAs,Other L.A.'s - General,Filton Avenue Primary School,1131.84, 20-Mar-2020
1527,Revenue,CAHD,Statemented Support Payments to OLAs,Other L.A.'s - General,Filton Avenue Primary School,1332.27, 20-Mar-2020
1528,Revenue,CAHD,Central - Commissioned Services,Permanent Nursing,First Floor  Lingfield House,2398.00, 10-Mar-2020
1529,Revenue,CAHD,South Glos Users in South Glos Homes,Permanent Nursing,First Floor  Lingfield House,662.24, 10-Mar-2020
1530,Revenue,CAHD,Central - Commissioned Services,Permanent Nursing,First Floor  Lingfield House,2398.00, 10-Mar-2020
1531,Revenue,CAHD,South Glos Users in South Glos Homes,Permanent Nursing,First Floor  Lingfield House,662.24, 10-Mar-2020
1532,Revenue,CAHD,South Glos Users in South Glos Homes,Permanent Nursing,First Floor  Lingfield House,662.24, 10-Mar-2020
1533,Revenue,CAHD,Central - Commissioned Services,Permanent Residential,First Floor  Lingfield House,2764.80, 10-Mar-2020
1534,Revenue,CAHD,Central - Commissioned Services,Permanent Residential,First Floor  Lingfield House,2230.32, 10-Mar-2020
1535,Revenue,CAHD,South Glos Users in South Glos Homes,Permanent Nursing,First Floor  Lingfield House,662.24, 10-Mar-2020
1536,Revenue,CAHD,South Glos Users in South Glos Homes,Permanent Nursing,First Floor  Lingfield House,662.24, 10-Mar-2020
1537,Revenue,CAHD,South Glos Users in South Glos Homes,Permanent Nursing,First Floor  Lingfield House,662.24, 10-Mar-2020
1538,Revenue,CAHD,South - Commissioned Services,Permanent Residential,First Floor  Lingfield House,2817.36, 10-Mar-2020
1539,Revenue,CAHD,South Glos Users in South Glos Homes,Permanent Nursing,First Floor  Lingfield House,662.24, 10-Mar-2020
1540,Revenue,CAHD,North - Community based support,Permanent Nursing,First Floor  Lingfield House,2398.00, 10-Mar-2020
1541,Revenue,CAHD,South Glos Users in South Glos Homes,Permanent Nursing,First Floor  Lingfield House,662.24, 10-Mar-2020
1542,Revenue,CAHD,Central - Commissioned Services,Permanent Nursing,First Floor  Lingfield House,2398.00, 10-Mar-2020
1543,Revenue,CAHD,South Glos Users in South Glos Homes,Permanent Nursing,First Floor  Lingfield House,662.24, 10-Mar-2020
1544,Revenue,CAHD,Central - Commissioned Services,Permanent Nursing,First Floor  Lingfield House,2398.00, 10-Mar-2020
1545,Revenue,CAHD,South Glos Users in South Glos Homes,Permanent Nursing,First Floor  Lingfield House,662.24, 10-Mar-2020
1546,Revenue,CAHD,North - Community based support,Permanent Nursing,First Floor  Lingfield House,2398.00, 10-Mar-2020
1547,Revenue,CAHD,South Glos Users in South Glos Homes,Permanent Nursing,First Floor  Lingfield House,662.24, 10-Mar-2020
1548,Revenue,CAHD,Central - Commissioned Services,Permanent Residential,First Floor  Lingfield House,2768.00, 10-Mar-2020
1549,Revenue,CAHD,North - Community based support,Permanent Nursing,First Floor  Lingfield House,2398.00, 10-Mar-2020
1550,Revenue,CAHD,South Glos Users in South Glos Homes,Permanent Nursing,First Floor  Lingfield House,662.24, 10-Mar-2020
1551,Revenue,CAHD,North - Community based support,Permanent Nursing,First Floor  Lingfield House,2398.00, 10-Mar-2020
1552,Revenue,CAHD,South Glos Users in South Glos Homes,Permanent Nursing,First Floor  Lingfield House,662.24, 10-Mar-2020
1553,Revenue,CAHD,South Glos Users in South Glos Homes,Permanent Nursing,First Floor  Lingfield House,662.24, 10-Mar-2020
1554,Revenue,CAHD,Central - Commissioned Services,Permanent Nursing,First Floor  Lingfield House,2471.60, 10-Mar-2020
1555,Revenue,CAHD,South Glos Users in South Glos Homes,Permanent Nursing,First Floor  Lingfield House,662.24, 10-Mar-2020
1556,Revenue,CAHD,North - Community based support,Permanent Nursing,First Floor  Lingfield House,2439.16, 10-Mar-2020
1557,Revenue,CAHD,South Glos Users in South Glos Homes,Permanent Nursing,First Floor  Lingfield House,662.24, 10-Mar-2020
1558,Revenue,CAHD,Central - Bed Purchasing and Direct Payments,Fees & Charges Income - General,First Floor  Lingfield House,917.98, 10-Mar-2020
1559,Revenue,CAHD,North - Community based support,Permanent Residential,First Floor  Lingfield House,2439.16, 10-Mar-2020
1560,Revenue,CAHD,South Glos Users in South Glos Homes,Permanent Nursing,First Floor  Lingfield House,662.24, 10-Mar-2020
1561,Revenue,CAHD,South Glos Users in South Glos Homes,Permanent Nursing,First Floor  Lingfield House,662.24, 10-Mar-2020
1562,Revenue,CAHD,South Glos Users in South Glos Homes,Permanent Nursing,First Floor  Lingfield House,662.24, 10-Mar-2020
1563,Revenue,CAHD,Central - Bed Purchasing and Direct Payments,Permanent Nursing,First Floor  Lingfield House,2398.00, 10-Mar-2020
1564,Revenue,CAHD,Central - Commissioned Services,Permanent Residential,First Floor  Lingfield House,2768.00, 10-Mar-2020
1565,Revenue,CAHD,Central - Commissioned Services,Fees & Charges Income - General,First Floor  Lingfield House,2772.00, 10-Mar-2020
1566,Revenue,CAHD,Central - Commissioned Services,Permanent Residential,First Floor  Lingfield House,2768.00, 10-Mar-2020
1567,Revenue,CAHD,South Glos Users in South Glos Homes,Permanent Nursing,First Floor  Lingfield House,662.24, 10-Mar-2020
1568,Revenue,CAHD,South Glos Users in South Glos Homes,Permanent Nursing,First Floor  Lingfield House,4470.12, 10-Mar-2020
1569,Revenue,CAHD,Central - Commissioned Services,Permanent Nursing,First Floor  Lingfield House,2398.00, 10-Mar-2020
1570,Revenue,CAHD,South Glos Users in South Glos Homes,Permanent Nursing,First Floor  Lingfield House,662.24, 10-Mar-2020
1571,Revenue,CAHD,South Glos Users in South Glos Homes,Permanent Nursing,First Floor  Lingfield House,662.24, 10-Mar-2020
1572,Revenue,CAHD,South Glos Users in South Glos Homes,Permanent Nursing,First Floor  Lingfield House,662.24, 10-Mar-2020
1573,Revenue,CAHD,South Glos Users in South Glos Homes,Permanent Nursing,First Floor  Lingfield House,662.24, 10-Mar-2020
1574,Revenue,CAHD,South Glos Users in South Glos Homes,Permanent Nursing,First Floor  Lingfield House,662.24, 10-Mar-2020
1575,Revenue,CAHD,South Glos Users in South Glos Homes,Permanent Nursing,First Floor  Lingfield House,662.24, 10-Mar-2020
1576,Revenue,CAHD,South Glos Users in South Glos Homes,Permanent Nursing,First Floor  Lingfield House,662.24, 10-Mar-2020
1577,Revenue,CAHD,South - Commissioned Services,Permanent Residential,First Floor  Lingfield House,2768.00, 10-Mar-2020
1578,Revenue,CAHD,Central - Commissioned Services,Permanent Nursing,First Floor  Lingfield House,2311.20, 10-Mar-2020
1579,Revenue,CAHD,South Glos Users in South Glos Homes,Permanent Nursing,First Floor  Lingfield House,662.24, 10-Mar-2020
1580,Revenue,CAHD,North - Community based support,Permanent Nursing,First Floor  Lingfield House,2437.12, 10-Mar-2020
1581,Revenue,CAHD,South Glos Users in South Glos Homes,Permanent Nursing,First Floor  Lingfield House,662.24, 10-Mar-2020
1582,Revenue,CAHD,Central - Commissioned Services,Permanent Nursing,First Floor  Lingfield House,2398.00, 10-Mar-2020
1583,Revenue,CAHD,South Glos Users in South Glos Homes,Permanent Nursing,First Floor  Lingfield House,662.24, 10-Mar-2020
1584,Revenue,CAHD,Central - Commissioned Services,Permanent Residential,First Floor  Lingfield House,2834.44, 10-Mar-2020
1585,Revenue,CAHD,North - Community based support,Permanent Nursing,First Floor  Lingfield House,2398.00, 10-Mar-2020
1586,Revenue,CAHD,South Glos Users in South Glos Homes,Permanent Nursing,First Floor  Lingfield House,662.24, 10-Mar-2020
1587,Revenue,CAHD,North - Community based support,Permanent Nursing,First Floor  Lingfield House,2398.00, 10-Mar-2020
1588,Revenue,CAHD,South Glos Users in South Glos Homes,Permanent Nursing,First Floor  Lingfield House,662.24, 10-Mar-2020
1589,Revenue,CAHD,Central - Commissioned Services,Permanent Nursing,First Floor  Lingfield House,2398.00, 10-Mar-2020
1590,Revenue,CAHD,South Glos Users in South Glos Homes,Permanent Nursing,First Floor  Lingfield House,662.24, 10-Mar-2020
1591,Revenue,CAHD,South Glos Users in South Glos Homes,Permanent Nursing,First Floor  Lingfield House,662.24, 10-Mar-2020
1592,Revenue,CAHD,North - Community based support,Permanent Nursing,First Floor  Lingfield House,2356.60, 10-Mar-2020
1593,Revenue,CAHD,South Glos Users in South Glos Homes,Permanent Nursing,First Floor  Lingfield House,662.24, 10-Mar-2020
1594,Revenue,CAHD,North - Community based support,Permanent Nursing,First Floor  Lingfield House,2471.44, 10-Mar-2020
1595,Revenue,CAHD,South Glos Users in South Glos Homes,Permanent Nursing,First Floor  Lingfield House,662.24, 10-Mar-2020
1596,Revenue,CAHD,Central - Commissioned Services,Permanent Nursing,First Floor  Lingfield House,2486.12, 10-Mar-2020
1597,Revenue,CAHD,South Glos Users in South Glos Homes,Permanent Nursing,First Floor  Lingfield House,662.24, 10-Mar-2020
1598,Revenue,CAHD,North - Community based support,Permanent Residential,First Floor  Lingfield House,3400.00, 10-Mar-2020
1599,Revenue,CAHD,South Glos Users in South Glos Homes,Permanent Nursing,First Floor  Lingfield House,662.24, 10-Mar-2020
1600,Revenue,CAHD,Central - Commissioned Services,Permanent Nursing,First Floor  Lingfield House,3200.00, 10-Mar-2020
1601,Revenue,CAHD,South Glos Users in South Glos Homes,Permanent Nursing,First Floor  Lingfield House,662.24, 10-Mar-2020
1602,Revenue,CAHD,North - Community based support,Permanent Nursing,First Floor  Lingfield House,2398.00, 10-Mar-2020
1603,Revenue,CAHD,South Glos Users in South Glos Homes,Permanent Nursing,First Floor  Lingfield House,662.24, 10-Mar-2020
1604,Revenue,CAHD,Central - Commissioned Services,Permanent Nursing,First Floor  Lingfield House,3234.72, 10-Mar-2020
1605,Revenue,CAHD,South Glos Users in South Glos Homes,Permanent Nursing,First Floor  Lingfield House,662.24, 10-Mar-2020
1606,Revenue,CAHD,Central - Commissioned Services,Permanent Nursing,First Floor  Lingfield House,3472.44, 10-Mar-2020
1607,Revenue,CAHD,South Glos Users in South Glos Homes,Permanent Nursing,First Floor  Lingfield House,662.24, 10-Mar-2020
1608,Revenue,CAHD,South Glos Users in South Glos Homes,Permanent Nursing,First Floor  Lingfield House,662.24, 10-Mar-2020
1609,Revenue,CAHD,South Glos Users in South Glos Homes,Permanent Nursing,First Floor  Lingfield House,662.24, 10-Mar-2020
1610,Revenue,CAHD,Central - Commissioned Services,Permanent Nursing,First Floor  Lingfield House,2937.76, 10-Mar-2020
1611,Revenue,CAHD,Central - Commissioned Services,Permanent Nursing,First Floor  Lingfield House,2837.76, 10-Mar-2020
1612,Revenue,CAHD,South Glos Users in South Glos Homes,Permanent Nursing,First Floor  Lingfield House,662.24, 10-Mar-2020
1613,Revenue,CAHD,Central - Commissioned Services,Permanent Nursing,First Floor  Lingfield House,2731.36, 10-Mar-2020
1614,Revenue,CAHD,South Glos Users in South Glos Homes,Permanent Nursing,First Floor  Lingfield House,662.24, 10-Mar-2020
1615,Revenue,CAHD,Central - Commissioned Services,Permanent Nursing,First Floor  Lingfield House,2803.48, 10-Mar-2020
1616,Revenue,CAHD,South Glos Users in South Glos Homes,Permanent Nursing,First Floor  Lingfield House,662.24, 10-Mar-2020
1617,Revenue,CAHD,South Glos Users in South Glos Homes,Permanent Nursing,First Floor  Lingfield House,662.24, 10-Mar-2020
1618,Revenue,CAHD,Central - Commissioned Services,Permanent Nursing,First Floor  Lingfield House,2997.60, 10-Mar-2020
1619,Revenue,CAHD,South Glos Users in South Glos Homes,Permanent Nursing,First Floor  Lingfield House,662.24, 10-Mar-2020
1620,Revenue,CAHD,South Glos Users in South Glos Homes,Permanent Nursing,First Floor  Lingfield House,662.24, 10-Mar-2020
1621,Revenue,CAHD,Central - Commissioned Services,Permanent Nursing,First Floor  Lingfield House,2833.76, 10-Mar-2020
1622,Revenue,CAHD,South Glos Users in South Glos Homes,Permanent Nursing,First Floor  Lingfield House,662.24, 10-Mar-2020
1623,Revenue,CAHD,Central - Commissioned Services,Permanent Residential,First Floor  Lingfield House,2948.04, 10-Mar-2020
1624,Revenue,CAHD,South Glos Users in South Glos Homes,Permanent Nursing,First Floor  Lingfield House,662.24, 10-Mar-2020
1625,Revenue,CAHD,South Glos Users in South Glos Homes,Permanent Nursing,First Floor  Lingfield House,662.24, 10-Mar-2020
1626,Revenue,CAHD,South Glos Users in South Glos Homes,Permanent Nursing,First Floor  Lingfield House,662.24, 10-Mar-2020
1627,Revenue,CAHD,South Glos Users in South Glos Homes,Permanent Nursing,First Floor  Lingfield House,662.24, 10-Mar-2020
1628,Revenue,CAHD,South Glos Users in South Glos Homes,Permanent Nursing,First Floor  Lingfield House,662.24, 10-Mar-2020
1629,Revenue,CAHD,South Glos Users in South Glos Homes,Permanent Nursing,First Floor  Lingfield House,662.24, 10-Mar-2020
1630,Revenue,CAHD,South Glos Users in South Glos Homes,Permanent Nursing,First Floor  Lingfield House,662.24, 10-Mar-2020
1631,Revenue,CAHD,Central - Commissioned Services,Permanent Nursing,First Floor  Lingfield House,2471.44, 10-Mar-2020
1632,Revenue,CAHD,South Glos Users in South Glos Homes,Permanent Nursing,First Floor  Lingfield House,662.24, 10-Mar-2020
1633,Revenue,CAHD,Central - Commissioned Services,Permanent Nursing,First Floor  Lingfield House,3038.56, 10-Mar-2020
1634,Revenue,CAHD,South Glos Users in South Glos Homes,Permanent Nursing,First Floor  Lingfield House,662.24, 10-Mar-2020
1635,Revenue,CAHD,North - Community based support,Permanent Nursing,First Floor  Lingfield House,2834.20, 10-Mar-2020
1636,Revenue,CAHD,South Glos Users in South Glos Homes,Permanent Nursing,First Floor  Lingfield House,662.24, 10-Mar-2020
1637,Revenue,CAHD,South Glos Users in South Glos Homes,Permanent Nursing,First Floor  Lingfield House,662.24, 10-Mar-2020
1638,Revenue,CAHD,Central - Commissioned Services,Permanent Nursing,First Floor  Lingfield House,3234.72, 10-Mar-2020
1639,Revenue,CAHD,South Glos Users in South Glos Homes,Permanent Nursing,First Floor  Lingfield House,662.24, 10-Mar-2020
1640,Revenue,CAHD,North - Community based support,Permanent Nursing,First Floor  Lingfield House,2515.48, 10-Mar-2020
1641,Revenue,CAHD,South Glos Users in South Glos Homes,Permanent Nursing,First Floor  Lingfield House,662.24, 10-Mar-2020
1642,Revenue,CAHD,South - Commissioned Services,Permanent Nursing,First Floor  Lingfield House,2616.12, 10-Mar-2020
1643,Revenue,CAHD,South Glos Users in South Glos Homes,Permanent Nursing,First Floor  Lingfield House,662.24, 10-Mar-2020
1644,Revenue,CAHD,Central - Commissioned Services,Permanent Nursing,First Floor  Lingfield House,2471.44, 10-Mar-2020
1645,Revenue,CAHD,South Glos Users in South Glos Homes,Permanent Nursing,First Floor  Lingfield House,662.24, 10-Mar-2020
1646,Revenue,CAHD,Central - Commissioned Services,Permanent Nursing,First Floor  Lingfield House,6057.14, 10-Mar-2020
1647,Revenue,CAHD,South - Commissioned Services,Permanent Nursing,First Floor  Lingfield House,3243.36, 10-Mar-2020
1648,Revenue,CAHD,South Glos Users in South Glos Homes,Permanent Nursing,First Floor  Lingfield House,662.24, 10-Mar-2020
1649,Revenue,CAHD,South - Commissioned Services,Permanent Nursing,First Floor  Lingfield House,2608.68, 10-Mar-2020
1650,Revenue,CAHD,South Glos Users in South Glos Homes,Permanent Nursing,First Floor  Lingfield House,662.24, 10-Mar-2020
1651,Revenue,CAHD,South - Commissioned Services,Permanent Nursing,First Floor  Lingfield House,2504.28, 10-Mar-2020
1652,Revenue,CAHD,South Glos Users in South Glos Homes,Permanent Nursing,First Floor  Lingfield House,662.24, 10-Mar-2020
1653,Revenue,CAHD,South Glos Users in South Glos Homes,Permanent Nursing,First Floor  Lingfield House,662.24, 10-Mar-2020
1654,Revenue,CAHD,South - Commissioned Services,Permanent Residential,First Floor  Lingfield House,2662.40, 10-Mar-2020
1655,Revenue,CAHD,South - bed purchasing and direct  payments,Permanent Nursing,First Floor  Lingfield House,2421.92, 10-Mar-2020
1656,Revenue,CAHD,South Glos Users in South Glos Homes,Permanent Nursing,First Floor  Lingfield House,662.24, 10-Mar-2020
1657,Revenue,CAHD,South - Commissioned Services,Permanent Residential,First Floor  Lingfield House,2399.96, 10-Mar-2020
1658,Revenue,CAHD,South - Commissioned Services,Permanent Nursing,First Floor  Lingfield House,2421.92, 10-Mar-2020
1659,Revenue,CAHD,South Glos Users in South Glos Homes,Permanent Nursing,First Floor  Lingfield House,662.24, 10-Mar-2020
1660,Revenue,CAHD,South Glos Users in South Glos Homes,Permanent Nursing,First Floor  Lingfield House,662.24, 10-Mar-2020
1661,Revenue,CAHD,South - Commissioned Services,Permanent Nursing,First Floor  Lingfield House,3440.00, 10-Mar-2020
1662,Revenue,CAHD,South - Commissioned Services,Permanent Nursing,First Floor  Lingfield House,2398.00, 10-Mar-2020
1663,Revenue,CAHD,South Glos Users in South Glos Homes,Permanent Nursing,First Floor  Lingfield House,662.24, 10-Mar-2020
1664,Revenue,CAHD,South - Commissioned Services,Permanent Residential,First Floor  Lingfield House,2303.60, 10-Mar-2020
1665,Revenue,CAHD,North - Community based support,Permanent Nursing,First Floor  Lingfield House,2401.84, 10-Mar-2020
1666,Revenue,CAHD,North - Community based support,Permanent Residential,First Floor  Lingfield House,2174.20, 10-Mar-2020
1667,Revenue,CAHD,Central - Commissioned Services,Permanent Nursing,First Floor  Lingfield House,4173.84, 10-Mar-2020
1668,Revenue,CAHD,Central - Commissioned Services,Respite Emergency - Residential,First Floor  Lingfield House,1186.24, 10-Mar-2020
1669,Revenue,CAHD,North - Community based support,Permanent Nursing,First Floor  Lingfield House,2657.80, 10-Mar-2020
1670,Revenue,CAHD,EARLY YEARS DEPRIVATION PAYMENT,Preventative Assistance,First Friends (Mangotsfield),669.16, 24-Mar-2020
1671,Revenue,CAHD,EARLY YEARS DEPRIVATION PAYMENT,Preventative Assistance,First Step Pre School Ltd,924.69, 24-Mar-2020
1672,Revenue,CAHD,Early Years High Needs Support,Other Private Contractors,First Steps Day Nursery,695.76, 20-Mar-2020
1673,Revenue,CAHD,CSC - Agency Fostering,Foster Parent Allowances,Five Rivers Child Care Limited,3627.00, 16-Mar-2020
1674,Revenue,CAHD,CSC - Agency Fostering,Foster Parent Allowances,Five Rivers Child Care Limited,3807.29, 02-Mar-2020
1675,Revenue,CAHD,CSC - Agency Fostering,Foster Parent Allowances,Five Rivers Child Care Limited,3393.00, 02-Mar-2020
1676,Revenue,CAHD,CSC - Agency Fostering,Foster Parent Allowances,Five Rivers Child Care Limited,4014.43, 02-Mar-2020
1677,Revenue,CAHD,CSC - Agency Fostering,Foster Parent Allowances,Five Rivers Child Care Limited,3291.21, 02-Mar-2020
1678,Revenue,CAHD,CSC - Agency Fostering,Foster Parent Allowances,Five Rivers Child Care Limited,3393.00, 02-Mar-2020
1679,Revenue,CAHD,CSC - Agency Fostering,Foster Parent Allowances,Five Rivers Child Care Limited,3434.43, 02-Mar-2020
1680,Revenue,CAHD,CSC - Agency Fostering,Foster Parent Allowances,Five Rivers Child Care Limited,3225.38, 02-Mar-2020
1681,Revenue,CAHD,CSC - Agency Fostering,Foster Parent Allowances,Five Rivers Child Care Limited,3225.38, 02-Mar-2020
1682,Revenue,CAHD,CSC - Agency Fostering,Foster Parent Allowances,Five Rivers Child Care Limited,3627.00, 31-Mar-2020
1683,Revenue,CAHD,CSC - Agency Fostering,Foster Parent Allowances,Five Rivers Child Care Limited,4291.29, 31-Mar-2020
1684,Revenue,CAHD,CSC - Agency Fostering,Foster Parent Allowances,Five Rivers Child Care Limited,3518.19, 31-Mar-2020
1685,Revenue,CAHD,CSC - Agency Fostering,Foster Parent Allowances,Five Rivers Child Care Limited,3627.00, 31-Mar-2020
1686,Revenue,CAHD,CSC - Agency Fostering,Foster Parent Allowances,Five Rivers Child Care Limited,3447.82, 31-Mar-2020
1687,Revenue,CAHD,CSC - Agency Fostering,Foster Parent Allowances,Five Rivers Child Care Limited,3447.82, 31-Mar-2020
1688,Revenue,CAHD,CSC - Agency Fostering,Foster Parent Allowances,Foster Care Associates Limited,4131.68, 16-Mar-2020
1689,Revenue,CAHD,CSC - Agency Fostering,Foster Parent Allowances,Foster Care Associates Limited,3526.69, 16-Mar-2020
1690,Revenue,CAHD,CSC - Agency Fostering,Foster Parent Allowances,Foster Care Associates Limited,3393.00, 16-Mar-2020
1691,Revenue,CAHD,CSC - Parent & Child Assessments,Foster Parent Allowances,Fostering Solutions Limited,5869.54, 02-Mar-2020
1692,Revenue,CAHD,CSC - Parent & Child Assessments,Foster Parent Allowances,Fostering Solutions Limited,5490.86, 02-Mar-2020
1693,Revenue,CAHD,CSC - Parent & Child Assessments,Foster Parent Allowances,Fostering Solutions Limited,7027.57, 02-Mar-2020
1694,Revenue,CAHD,CSC - Parent & Child Assessments,Foster Parent Allowances,Fostering Solutions Limited,5869.54, 31-Mar-2020
1695,Revenue,CAHD,CSC - Parent & Child Assessments,Foster Parent Allowances,Fostering Solutions Limited,7512.23, 31-Mar-2020
1696,Revenue,CAHD,Central - Commissioned Services,Other Small Contracts,Fourways Care Limited,318.00, 04-Mar-2020
1697,Revenue,CAHD,South - Commissioned Services,Other Small Contracts,Fourways Care Limited,271.68, 04-Mar-2020
1698,Revenue,CAHD,North - Community based support,Day Care / Social Activities,Fourways Care Limited,87.84, 04-Mar-2020
1699,Revenue,CAHD,North - Community based support,Other Small Contracts,Fourways Care Limited,11533.84, 04-Mar-2020
1700,Revenue,CAHD,Central - Commissioned Services,Other Small Contracts,Fourways Care Limited,318.00, 12-Mar-2020
1701,Revenue,CAHD,South - Commissioned Services,Other Small Contracts,Fourways Care Limited,271.68, 12-Mar-2020
1702,Revenue,CAHD,North - Community based support,Day Care / Social Activities,Fourways Care Limited,87.84, 12-Mar-2020
1703,Revenue,CAHD,North - Community based support,Other Small Contracts,Fourways Care Limited,11913.68, 12-Mar-2020
1704,Revenue,CAHD,Central - Commissioned Services,Other Small Contracts,Fourways Care Limited,318.00, 16-Mar-2020
1705,Revenue,CAHD,South - Commissioned Services,Other Small Contracts,Fourways Care Limited,271.68, 16-Mar-2020
1706,Revenue,CAHD,North - Community based support,Day Care / Social Activities,Fourways Care Limited,78.08, 16-Mar-2020
1707,Revenue,CAHD,North - Community based support,Other Small Contracts,Fourways Care Limited,11881.04, 16-Mar-2020
1708,Revenue,CAHD,Central - Commissioned Services,Other Small Contracts,Fourways Care Limited,318.00, 26-Mar-2020
1709,Revenue,CAHD,South - Commissioned Services,Other Small Contracts,Fourways Care Limited,271.68, 26-Mar-2020
1710,Revenue,CAHD,North - Community based support,Day Care / Social Activities,Fourways Care Limited,87.84, 26-Mar-2020
1711,Revenue,CAHD,North - Community based support,Other Small Contracts,Fourways Care Limited,11515.44, 26-Mar-2020
1712,Revenue,CAHD,Central - Commissioned Services,Other Small Contracts,Fourways Care Limited,318.00, 31-Mar-2020
1713,Revenue,CAHD,South - Commissioned Services,Other Small Contracts,Fourways Care Limited,96.00, 31-Mar-2020
1714,Revenue,CAHD,North - Community based support,Day Care / Social Activities,Fourways Care Limited,92.72, 31-Mar-2020
1715,Revenue,CAHD,North - Community based support,Other Small Contracts,Fourways Care Limited,11140.40, 31-Mar-2020
1716,Revenue,CAHD,North - Community based support,Other Small Contracts,Freeways Trust Limited,846.56, 23-Mar-2020
1717,Revenue,CAHD,Central - Commissioned Services,Permanent Residential,Freeways Trust Limited,5241.32, 10-Mar-2020
1718,Revenue,CAHD,Central - Commissioned Services,Permanent Residential,Freeways Trust Limited,4374.80, 10-Mar-2020
1719,Revenue,CAHD,Central - Commissioned Services,Permanent Residential,Freeways Trust Limited,5051.28, 10-Mar-2020
1720,Revenue,CAHD,South - Commissioned Services,Respite Planned - Residential,Freeways Trust Limited,645.14, 10-Mar-2020
1721,Revenue,CAHD,Central - Commissioned Services,Permanent Residential,Freeways Trust Limited,5297.88, 10-Mar-2020
1722,Revenue,CAHD,South - Commissioned Services,Permanent Residential,Freeways Trust Limited,4345.04, 10-Mar-2020
1723,Revenue,CAHD,Central - Commissioned Services,Permanent Residential,Freeways Trust Limited,3928.00, 10-Mar-2020
1724,Revenue,CAHD,Central - Commissioned Services,Permanent Residential,Freeways Trust Limited,5268.28, 10-Mar-2020
1725,Revenue,CAHD,North - Community based support,Permanent Residential,Freeways Trust Limited,3930.76, 10-Mar-2020
1726,Revenue,CAHD,North - Community based support,Permanent Residential,Freeways Trust Limited,1965.38, 10-Mar-2020
1727,Revenue,CAHD,Central - Commissioned Services,Permanent Residential,Freeways Trust Limited,5874.44, 10-Mar-2020
1728,Revenue,CAHD,North - Community based support,Supported Living,Freeways Trust Ltd,845.52, 10-Mar-2020
1729,Revenue,CAHD,S28A cases,Permanent Residential,Freeways Trust Ltd,3886.64, 10-Mar-2020
1730,Revenue,CAHD,North - Community based support,Permanent Residential,Freeways Trust Ltd,3763.40, 10-Mar-2020
1731,Revenue,CAHD,South - Commissioned Services,Permanent Residential,Freeways Trust Ltd,3991.40, 10-Mar-2020
1732,Revenue,CAHD,North - Community based support,Permanent Residential,Freeways Trust Ltd,3301.04, 10-Mar-2020
1733,Revenue,CAHD,North - Community based support,Permanent Residential,Freeways Trust Ltd,3381.20, 10-Mar-2020
1734,Revenue,CAHD,18-25 Year Olds,Permanent Residential,Freeways Trust Ltd,3680.48, 10-Mar-2020
1735,Revenue,CAHD,Section 117 Placements MH Younger,Permanent Residential,Freeways Trust Ltd,3339.04, 10-Mar-2020
1736,Revenue,CAHD,North - Community based support,Permanent Residential,Freeways Trust Ltd,3884.00, 10-Mar-2020
1737,Revenue,CAHD,Central - Commissioned Services,Day Care / Social Activities,Frenchay Beckspool Building,1895.60, 10-Mar-2020
1738,Revenue,CAHD,South - Commissioned Services,Day Care / Social Activities,Frenchay Beckspool Building,902.40, 10-Mar-2020
1739,Revenue,CAHD,South - Commissioned Services,Day Care / Social Activities,Frenchay Beckspool Building,640.08, 10-Mar-2020
1740,Revenue,CAHD,Pathway 3 - (Complex Beds),Permanent Nursing,Frenchay House,3343.00, 20-Mar-2020
1741,Revenue,CAHD,North - Community based support,Permanent Nursing,Frenchay Park Nursing Home,3481.60, 10-Mar-2020
1742,Revenue,CAHD,North - Community based support,Permanent Nursing,Frenchay Park Nursing Home,3035.71, 10-Mar-2020
1743,Revenue,CAHD,Central - Commissioned Services,Permanent Nursing,Frenchay Park Nursing Home,3400.00, 10-Mar-2020
1744,Revenue,CAHD,CSC - Through & Leaving Care Team,Agency Staff (Admin/Support Staff) Pay,Frontline Staffing Ltd,1731.23, 03-Mar-2020
1745,Revenue,CAHD,CSC - Social Work Team - CENTRAL,Agency Staff (Admin/Support Staff) Pay,Frontline Staffing Ltd,1871.60, 12-Mar-2020
1746,Revenue,CAHD,CSC - Social Work Team - CENTRAL,Agency Staff (Admin/Support Staff) Pay,Frontline Staffing Ltd,1801.42, 12-Mar-2020
1747,Revenue,CAHD,CSC - Through & Leaving Care Team,Agency Staff (Admin/Support Staff) Pay,Frontline Staffing Ltd,1731.23, 13-Mar-2020
1748,Revenue,CAHD,CSC - Social Work Team - CENTRAL,Agency Staff (Admin/Support Staff) Pay,Frontline Staffing Ltd,1356.91, 16-Mar-2020
1749,Revenue,CAHD,CSC - Through & Leaving Care Team,Agency Staff (Admin/Support Staff) Pay,Frontline Staffing Ltd,1731.23, 26-Mar-2020
1750,Revenue,CAHD,CSC - Social Work Team - CENTRAL,Agency Staff (Admin/Support Staff) Pay,Frontline Staffing Ltd,1707.84, 25-Mar-2020
1751,Revenue,CAHD,CSC - Through & Leaving Care Team,Agency Staff (Admin/Support Staff) Pay,Frontline Staffing Ltd,1871.60, 27-Mar-2020
1752,Revenue,CAHD,CSC - Social Work Team - CENTRAL,Agency Staff (Admin/Support Staff) Pay,Frontline Staffing Ltd,1824.81, 31-Mar-2020
1753,Revenue,CAHD,CSC - Agency Fostering,Foster Parent Allowances,Fusion Fostering Ltd,4209.05, 16-Mar-2020
1754,Revenue,CAHD,CSC - Asylum Seekers - Unaccompanied,Foster Parent Allowances,Fusion Fostering Ltd,3405.57, 16-Mar-2020
1755,Revenue,CAHD,CSC - Vinney Green Secure Unit,Personal Needs of Clients,Gary Thomas Films,600.00, 20-Mar-2020
1756,Revenue,CAHD,Alexandra Way,Premises Maintenance by Contractor,George Grimes,1010.00, 25-Mar-2020
1757,Revenue,CAHD,Alexandra Way,Premises Maintenance by Contractor,George Grimes,1010.00, 25-Mar-2020
1758,Revenue,CAHD,Rapid Response Service,Cleaning & Domestic Services,Germstar Uk Limited,896.45, 27-Mar-2020
1759,Revenue,CAHD,North - Community based support,Supported Living,Gladstone House,3174.16, 10-Mar-2020
1760,Revenue,CAHD,18-25 Year Olds,Supported Living,Gladstone House,3174.16, 10-Mar-2020
1761,Revenue,CAHD,South - Commissioned Services,Permanent Residential,Gladstone House,5999.84, 10-Mar-2020
1762,Revenue,CAHD,Jointly Funded H&SC Packages,Permanent Residential,Gladstone House,783.98, 10-Mar-2020
1763,Revenue,CAHD,MH Purchasing - Younger,Permanent Residential,Gladstone House,3135.90, 10-Mar-2020
1764,Revenue,CAHD,North - Community based support,Permanent Residential,Glan Y Felin,6803.40, 10-Mar-2020
1765,Revenue,CAHD,South - Commissioned Services,Permanent Residential,Glasallt Fawr,5344.40, 10-Mar-2020
1766,Revenue,CAHD,North - Community based support,Permanent Nursing,Glebe House Nursing Home,3664.16, 10-Mar-2020
1767,Revenue,CAHD,South Glos Users in South Glos Homes,Permanent Nursing,Glebe House Nursing Home,662.24, 10-Mar-2020
1768,Revenue,CAHD,North - Community based support,Permanent Nursing,Glebe House Nursing Home,3973.12, 10-Mar-2020
1769,Revenue,CAHD,South Glos Users in South Glos Homes,Permanent Nursing,Glebe House Nursing Home,662.24, 10-Mar-2020
1770,Revenue,CAHD,South Glos Users in South Glos Homes,Permanent Nursing,Glebe House Nursing Home,662.24, 10-Mar-2020
1771,Revenue,CAHD,South Glos Users in South Glos Homes,Permanent Nursing,Glebe House Nursing Home,662.24, 10-Mar-2020
1772,Revenue,CAHD,South Glos Users in South Glos Homes,Permanent Nursing,Glebe House Nursing Home,662.24, 10-Mar-2020
1773,Revenue,CAHD,South Glos Users in South Glos Homes,Permanent Nursing,Glebe House Nursing Home,662.24, 10-Mar-2020
1774,Revenue,CAHD,North - Community based support,Permanent Residential,Glebe House Nursing Home,3785.04, 10-Mar-2020
1775,Revenue,CAHD,South Glos Users in South Glos Homes,Permanent Nursing,Glebe House Nursing Home,662.24, 10-Mar-2020
1776,Revenue,CAHD,North - Community based support,Permanent Residential,Glebe House Nursing Home,3833.84, 10-Mar-2020
1777,Revenue,CAHD,North - Community based support,Permanent Nursing,Glebe House Nursing Home,4080.00, 10-Mar-2020
1778,Revenue,CAHD,South Glos Users in South Glos Homes,Permanent Nursing,Glebe House Nursing Home,662.24, 10-Mar-2020
1779,Revenue,CAHD,South Glos Users in South Glos Homes,Permanent Nursing,Glebe House Nursing Home,662.24, 10-Mar-2020
1780,Revenue,CAHD,North - Community based support,Permanent Nursing,Glebe House Nursing Home,4048.60, 10-Mar-2020
1781,Revenue,CAHD,South Glos Users in South Glos Homes,Permanent Nursing,Glebe House Nursing Home,662.24, 10-Mar-2020
1782,Revenue,CAHD,Central - Commissioned Services,Permanent Residential,Glebe House Nursing Home,3980.00, 10-Mar-2020
1783,Revenue,CAHD,South Glos Users in South Glos Homes,Permanent Nursing,Glebe House Nursing Home,662.24, 10-Mar-2020
1784,Revenue,CAHD,North - Community based support,Permanent Nursing,Glebe House Nursing Home,4080.00, 10-Mar-2020
1785,Revenue,CAHD,South Glos Users in South Glos Homes,Permanent Nursing,Glebe House Nursing Home,662.24, 10-Mar-2020
1786,Revenue,CAHD,North - Community based support,Permanent Nursing,Glebe House Nursing Home,6265.71, 10-Mar-2020
1787,Revenue,CAHD,South Glos Users in South Glos Homes,Permanent Nursing,Glebe House Nursing Home,662.24, 10-Mar-2020
1788,Revenue,CAHD,North - Community based support,Permanent Nursing,Glebe House Nursing Home,3960.16, 10-Mar-2020
1789,Revenue,CAHD,South Glos Users in South Glos Homes,Permanent Nursing,Glebe House Nursing Home,662.24, 10-Mar-2020
1790,Revenue,CAHD,North - Community based support,Permanent Residential,Glebe House Nursing Home,5051.24, 10-Mar-2020
1791,Revenue,CAHD,South Glos Users in South Glos Homes,Permanent Nursing,Glebe House Nursing Home,662.24, 10-Mar-2020
1792,Revenue,CAHD,North - Community based support,Permanent Nursing,Glebe House Nursing Home,3502.08, 10-Mar-2020
1793,Revenue,CAHD,South Glos Users in South Glos Homes,Permanent Nursing,Glebe House Nursing Home,662.24, 10-Mar-2020
1794,Revenue,CAHD,Central - Commissioned Services,Permanent Nursing,Glebe House Nursing Home,4400.00, 10-Mar-2020
1795,Revenue,CAHD,Central - Commissioned Services,Permanent Nursing,Glenview Care Home,3224.00, 10-Mar-2020
1796,Revenue,CAHD,South - Commissioned Services,Permanent Nursing,Glenview Care Home,2891.76, 10-Mar-2020
1797,Revenue,CAHD,North - S117,Permanent Nursing,Glenview Care Home,3301.36, 10-Mar-2020
1798,Revenue,CAHD,North - Community based support,Permanent Nursing,Glenview Care Home,3224.00, 10-Mar-2020
1799,Revenue,CAHD,South - Commissioned Services,Permanent Nursing,Glenview Care Home,3993.60, 10-Mar-2020
1800,Revenue,CAHD,North - Community based support,Permanent Nursing,Glenview Care Home,2891.76, 10-Mar-2020
1801,Revenue,CAHD,CSC - LAC Placements,Client Transport,Gloucestershire County Council,775.00, 18-Mar-2020
1802,Revenue,CAHD,Schools Specific Grant Income,Other Public Bodies,Gordano School,1500.00, 26-Mar-2020
1803,Revenue,CAHD,South - Commissioned Services,Permanent Residential,Gordena Care Home,4018.92, 10-Mar-2020
1804,Revenue,CAHD,South - Commissioned Services,Permanent Residential,Gordena Care Home,2736.12, 10-Mar-2020
1805,Revenue,CAHD,South - Commissioned Services,Permanent Residential,Gordena Care Home,8526.26, 10-Mar-2020
1806,Revenue,CAHD,South - Commissioned Services,Permanent Residential,Gordena Care Home,2643.31, 10-Mar-2020
